{"text_format":"1","workbook":"xlsx","n_sheets":19,"sheets":["Working","ChangeLog","Setup","Matrix","Players","GroupFixtures","GroupMatrix","GroupTable","Table","Round1","Round2","Round3","Round4","Round5","Round6","Round7","Round8","Round9","NAF"],"not_rendered":{"charts":0,"images":0,"macros":1,"external_links":1,"defined_names":33,"comments":2,"pivot_tables":0},"unopened":[],"bounds":{"document_bytes":16777216,"sheet_cells":100000,"rows_first":2000,"rows_last":500,"rows_between":2000,"halvings":0,"cell_chars":16384,"cell_head_chars":4096},"cells_cut":0,"cells_raw":0,"read":"whole","date_system":"1900"}

{"sheet":"Working","index":0,"n_rows":34,"n_cols":31,"rows_kept":34,"cut":false,"hidden":false,"merged":[]}
[null,null,null,null,null,null,null,null,null,null,null,null,null,null,null,null,null,null,null,null,null,null,null,null,null,"Latest Rd:",6]
[null,null,null,null,null,null,null,null,null,null,null,null,null,null,null,null,null,null,null,null,null,null,null,null,null,"Players:",{"$f":"COUNTA(Players!B:B)-1","v":128}]
[null,null,null,null,null,null,null,null,null,null,null,null,null,null,null,null,null,null,null,null,null,null,null,null,null,"Display",14,"Columns"]
[null,null,null,null,null,null,null,null,null,null,null,null,null,null,null,null,null,null,null,null,null,null,null,null,null,"Enter",7,"Columns"]
[null,null,null,null,null,null,null,null,null,null,null,null,null,null,null,null,null,null,null,null,null,null,null,null,null,"Max random",3]
[null,null,null,null,null,null,null,null,null,null,null,null,null,null,null,null,null,null,null,null,null,null,null,null,null,"Number of Groups",{"$f":"COUNTA(Players!M:M)-1","v":16},null,null,null,"Group"]
[null,null,null,null,null,null,null,null,null,null,null,null,null,null,null,null,null,null,null,null,null,null,null,null,null,null,null,null,null,null,"Individual"]
[null,null,null,null,null,null,null,null,null,null,null,null,null,null,null,null,null,null,null,null,null,null,null,null,null,"Group display",17,"columns"]
[]
[null,null,null,null,null,null,null,null,null,null,null,null,null,null,null,null,null,null,null,null,null,null,null,null,null,null,null,null,"Cumulative"]
[null,null,null,null,null,null,null,null,null,null,null,null,null,null,null,null,null,null,null,null,null,null,null,null,null,null,"Amazons"]
[null,null,null,null,null,null,null,null,null,null,null,null,null,null,null,null,null,null,null,null,null,null,null,null,null,null,"Chaos",null,null,null,"Initial Display Columns"]
[null,null,null,null,null,null,null,null,null,null,null,null,null,null,null,null,null,null,null,null,null,null,null,null,null,null,"Chaos Dwarves",null,null,null,"Player"]
[null,null,null,null,null,null,null,null,null,null,null,null,null,null,null,null,null,null,null,null,null,null,null,null,null,null,"Chaos Pact",null,null,null,"Points"]
[null,null,null,null,null,null,null,null,null,null,null,null,null,null,null,null,null,null,null,null,null,null,null,null,null,null,"Dark Elves",null,null,null,"TD For"]
[null,null,null,null,null,null,null,null,null,null,null,null,null,null,null,null,null,null,null,null,null,null,null,null,null,null,"Dwarves",null,null,null,"Cas For"]
[null,null,null,null,null,null,null,null,null,null,null,null,null,null,null,null,null,null,null,null,null,null,null,null,null,null,"Elves",null,null,null,{"$f":"[1]Setup!F8","v":"Bonus 1"}]
[null,null,null,null,null,null,null,null,null,null,null,null,null,null,null,null,null,null,null,null,null,null,null,null,null,null,"Goblins",null,null,null,{"$f":"[1]Setup!F9","v":"Bonus 2"}]
[null,null,null,null,null,null,null,null,null,null,null,null,null,null,null,null,null,null,null,null,null,null,null,null,null,null,"Halflings",null,null,null,"TD Against"]
[null,null,null,null,null,null,null,null,null,null,null,null,null,null,null,null,null,null,null,null,null,null,null,null,null,null,"High Elves",null,null,null,"Cas Against"]
[null,null,null,null,null,null,null,null,null,null,null,null,null,null,null,null,null,null,null,null,null,null,null,null,null,null,"Humans",null,null,null,"TD Net"]
[null,null,null,null,null,null,null,null,null,null,null,null,null,null,null,null,null,null,null,null,null,null,null,null,null,null,"Khemri",null,null,null,"Cas Net"]
[null,null,null,null,null,null,null,null,null,null,null,null,null,null,null,null,null,null,null,null,null,null,null,null,null,null,"Lizardmen",null,null,null,"Wins"]
[null,null,null,null,null,null,null,null,null,null,null,null,null,null,null,null,null,null,null,null,null,null,null,null,null,null,"Necromantic",null,null,null,"Draws"]
[null,null,null,null,null,null,null,null,null,null,null,null,null,null,null,null,null,null,null,null,null,null,null,null,null,null,"Norse",null,null,null,"Losses"]
[null,null,null,null,null,null,null,null,null,null,null,null,null,null,null,null,null,null,null,null,null,null,null,null,null,null,"Nurgle's Rotters",null,null,null,"Opp Score"]
[null,null,null,null,null,null,null,null,null,null,null,null,null,null,null,null,null,null,null,null,null,null,null,null,null,null,"Ogres",null,null,null,"Group"]
[null,null,null,null,null,null,null,null,null,null,null,null,null,null,null,null,null,null,null,null,null,null,null,null,null,null,"Orc"]
[null,null,null,null,null,null,null,null,null,null,null,null,null,null,null,null,null,null,null,null,null,null,null,null,null,null,"Skaven"]
[null,null,null,null,null,null,null,null,null,null,null,null,null,null,null,null,null,null,null,null,null,null,null,null,null,null,"Slann"]
[null,null,null,null,null,null,null,null,null,null,null,null,null,null,null,null,null,null,null,null,null,null,null,null,null,null,"Undead"]
[null,null,null,null,null,null,null,null,null,null,null,null,null,null,null,null,null,null,null,null,null,null,null,null,null,null,"Underworld"]
[null,null,null,null,null,null,null,null,null,null,null,null,null,null,null,null,null,null,null,null,null,null,null,null,null,null,"Vampires"]
[null,null,null,null,null,null,null,null,null,null,null,null,null,null,null,null,null,null,null,null,null,null,null,null,null,null,"Wood Elves"]

{"sheet":"ChangeLog","index":1,"n_rows":27,"n_cols":4,"rows_kept":27,"cut":false,"hidden":false,"merged":[]}
[null,"This spreadsheet is based on one by Kaper on an Excel forum: http://www.excelforum.com/excel-programming-vba-macros/1105569-swiss-pairing-algorithm-in-excel-to-organize-a-chess-tournament.html"]
[null,"Massive thanks due to him!"]
[null,"The original was used for Chess, and it has been adapted to work for Blood Bowl by sann0638 (Mike Davies)"]
[]
["Version","Summary","Date","Notes"]
["1.0","Multi-sheet version of the chess","2016-06-19"]
[1.1000000000000001,"Remove Black and White stuff","2016-06-19"]
[1.2,"Change to TDs to generate points","2016-06-19"]
[null,"Got the Swiss working properly","2016-06-19","Published."]
[1.3,"More help information.","2016-06-20"]
[null,"Added Table","2016-06-20"]
[null,"Added Opponent Score","2016-06-20"]
[2.1,"Big overhaul to where info stored","2016-06-21"]
[2.2000000000000002,"Putting in the Score formula","2016-06-21","Published."]
[3.1,"Added all tiebreaker columns","2016-06-22"]
[null,"Realised opponent score was wrong, fixed it.","2016-06-22"]
[3.2,"Fixed problem with sorting the table.","2016-06-23","Published."]
[3.3,"Tiebreakers implemented","2016-06-24"]
[null,"NAF Upload file","2016-06-24","Published."]
[4.0999999999999996,"Group results and matrix added","2016-06-25"]
[null,"Group results fully implemented","2016-06-26"]
[4.2,"Fixed net casualties","2016-06-28"]
[4.3,"Tiebreakers corrected, yet again!","2016-09-17","Published."]
[4.4000000000000004,"Group results corrected, groups added to table","2016-09-17"]
[null,"Removed need for Groups to be in there, corrected number of players.","2016-09-18","Published."]
["5.0","Mostly working Group Swiss","2016-09-21"]
[5.0999999999999996,"Working Group Swiss.","2016-09-21","Published."]

{"sheet":"Setup","index":2,"n_rows":68,"n_cols":20,"rows_kept":68,"cut":false,"hidden":false,"merged":[]}
["SCORING SETUP",null,null,null,null,"Group/Ind Swiss?","Group"]
[null,null,null,null,null,null,null,null,null,null,null,null,null,null,null,null,null,null,null,"Testing Functionality"]
["Points for…",null,null,null,null,"Entry Data"]
["Win by at least 2 TD",1,null,null,null,"Player"]
["Win by 1 TD",1,null,null,null,"Points"]
["Draw",0.5,null,null,null,"TD",null,null,"Buttons for running a tournament:"]
["Lose by 1 TD",0,null,null,null,"Cas"]
["Lose by at least 2 TD",0,null,null,null,"Bonus 1","Bonus1 Name"]
[null,null,null,null,null,"Bonus 2","Bonus2 Name"]
["Bonus points for TD/Cas etc",null,null,null,null,"Group"]
["Points per TD",0]
["Max TD Bonus Pts",0]
["Points per Cas",0]
["Max Cas Bonus Pts",0]
[{"$f":"F8&\" Max Bonus Pts\"","v":"Bonus 1 Max Bonus Pts"},0]
[{"$f":"F9&\" Max Bonus Pts\"","v":"Bonus 2 Max Bonus Pts"},0]
[]
["Test Scoring System Here"]
["Your Score (required)",4]
["Opponent Score (required)",3]
["Your Cas (optional)",3]
[{"$f":"\"Your \"&F8&\" (optional)\"","v":"Your Bonus 1 (optional)"},1]
[{"$f":"\"Your \"&F9&\" (optional)\"","v":"Your Bonus 2 (optional)"},2]
[]
["Your Points",{"$f":"fctScore(B19,B20,B21,B22,B23)","v":1}]
[]
["Individual Tie Breaks"]
["Player"]
["Points","Order"]
["TD For"]
["TD Against"]
["TD Net"]
["Cas For"]
["Cas Against"]
["Cas Net"]
[{"$f":"F8","v":"Bonus 1"}]
[{"$f":"F9","v":"Bonus 2"}]
["Wins"]
["Draws"]
["Losses"]
["Opp Score"]
[]
["Group Options"]
["Points for a win",1]
["Points for a draw",0.5]
["Points for a loss",0]
["Points for a group win",1]
["Points for a group draw",0.5]
["Points for a group loss",0]
[]
["Group Tie Breaks"]
["Group"]
["Points","Order"]
["TD For"]
["TD Against"]
["Net TDs"]
["Cas For"]
["Cas Against"]
["Net Cas"]
[{"$f":"\"Group Total \"&F8","v":"Group Total Bonus 1"}]
[{"$f":"\"Group Total \"&F9","v":"Group Total Bonus 2"}]
["Group Wins"]
["Groups Draws"]
["Group Losses"]
["Individual Wins"]
["Individual Draws"]
["Individual Losses"]
["Total Individual Points",1]

{"sheet":"Matrix","index":3,"n_rows":129,"n_cols":129,"rows_kept":129,"cut":false,"hidden":false,"merged":[]}
[null,"Driesfield ","Malodoror ","JJ ","Araznaroth ","Woete ","gninocker ","Phoenix11 ","Dekra1979 ","Tripleskull ","MissSweden ","kfoged ","Tank ","Topper ","SpecialOne ","Jaqra ","Niebling ","Lycos ","PurpleGoo ","Geggster ","Podfrey ","JimJimany ","Joemanji ","Mubo ","Wilzif ","MacWitt ","Harza ","jopotzuki ","edheim ","BeerBeer ","J-Ho","ratogre ","valkohukka ","BiBi ","Bouzzy ","BudWiser ","Gros Nain ","Harti ","Justicium ","Matt le fou ","Simon_ACP ","Arioso ","RoterSternHochdah ","Muadib ","Candlejack ","Gaunab ","Prince ","DocMaxx ","Jonny_Kanone ","BlackOrc ","Itzla ","Wolio ","noraal ","Favi ","cz ","swifty ","Alex05 ","Beppe ","Dirold ","Farina ","Kaltenland ","Liam ","Matte8 ","Spartako ","Verrinho ","zulu ","Endalos ","The_Ref ","straume ","bothun ","FrankPedersen ","mynock ","GreatWhiteHope ","Mewash ","Reszka ","Leonek ","Domingo ","Slimaq ","Warrior1980 ","Juniooor7 ","Shawass ","DonShula ","Garrick ","Purdindas ","JamesEs ","sann0638 ","Valen ","Loki ","HumptyTrump ","Dark Duke ","Obeliz ","Joanet ","Duke_Luthor_Von_Hawkfire ","Barry ","Idroj ","Malasnoticias ","Tactel ","Melisqus ","Inforthepain ","Pidpad ","Skuld ","JohnnyD ","Skoberget ","Dragons ","Pellevin ","Strider84 ","Jokaero ","Phifoe ","Goss ","Madmatt13 ","Elrik ","sigu70 ","Macabeo ","Balder ","Corwin ","Faccko ","Mufflo ","brocCooli ","Duckwing ","Bernuz ","Purrelito ","nonumber ","20Phoenix ","SFisher91 ","Dionysian ","Northernknight ","MadeofWelsh ","Ploppy_McPloppy ","andydavo "]
["Driesfield ",null,null,null,null,null,null,null,null,null,null,null,null,null,null,null,null,"R3, 0.5 - 0.5",null,null,null,null,null,null,null,null,null,null,null,null,null,null,null,null,null,null,null,null,null,null,null,null,null,null,null,null,null,null,null,null,null,null,null,null,null,null,"R5, 1 - 0",null,null,null,null,null,null,null,null,null,null,null,null,null,null,null,null,null,null,null,"R4, 1 - 0",null,null,null,null,null,null,null,null,null,null,null,null,null,null,null,null,null,null,"R6, 0.5 - 0.5",null,null,null,null,"R1, 0 - 1","R1, 1 - 0","R1, 1 - 0","R3, 0 - 1",null,null,"R6, 1 - 0",null,"R3, 1 - 0","R4, 4 - 18","R2, 0 - 1",null,"R4, 1 - 0",null,"R5, 0 - 1",null,"R2, 18 - 4","R2, 0 - 1",null,"R2, 0 - 1","R3, 23 - 5",null,null,null,null,null,null,null,"R5, 1 - 0"]
["Malodoror ",null,null,null,null,null,null,null,null,null,null,null,null,null,null,null,null,null,null,null,null,"R3, 0.5 - 0.5",null,null,null,null,null,null,null,null,null,null,null,null,null,null,null,null,null,null,null,null,null,null,null,null,null,null,null,null,null,null,null,null,"R5, 1 - 0",null,null,null,null,null,null,null,null,null,null,null,null,null,null,null,null,null,null,null,null,null,null,"R4, 0.5 - 0.5",null,null,null,null,null,null,null,null,null,null,null,null,"R6, 0 - 1",null,null,null,null,null,null,null,"R1, 0 - 1",null,null,"R1, 0.5 - 0.5",null,null,"R2, 0.5 - 0.5","R2, 0 - 1",null,null,null,"R4, 0 - 1",null,"R3, 1 - 0",null,null,null,"R2, 0 - 1",null,null,null,null,"R2, 0.5 - 0.5",null,"R5, 1 - 0",null,null,"R4, 5 - 22","R6, 0 - 1"]
["JJ ",null,null,null,null,null,null,null,null,null,null,null,null,null,null,null,null,null,null,null,null,null,"R3, 1 - 0",null,null,null,null,null,null,null,null,null,null,null,null,null,null,null,null,null,null,null,null,null,null,null,null,null,null,"R5, 1 - 0",null,null,null,null,null,null,null,null,null,null,null,null,null,null,null,null,null,null,null,null,null,null,null,null,null,null,null,null,null,"R4, 0 - 1",null,null,null,null,null,null,null,null,null,null,null,null,"R6, 0.5 - 0.5",null,null,null,null,null,null,null,"R1, 0.5 - 0.5",null,null,"R1, 0.5 - 0.5",null,"R3, 0 - 1",null,null,"R4, 0 - 1","R5, 3 - 20","R4, 1 - 0",null,null,"R5, 0 - 1","R5, 0.5 - 0.5","R6, 1 - 0","R2, 0.5 - 0.5",null,"R2, 0 - 1",null,"R2, 0 - 1",null,null,null,"R2, 22 - 6","R5, 0.5 - 0.5",null,"R4, 0 - 1"]
["Araznaroth ",null,null,null,null,null,null,null,null,null,null,null,null,null,null,null,null,null,null,null,null,null,null,"R3, 0.5 - 0.5",null,null,null,null,null,null,null,null,null,null,null,null,null,null,null,null,null,null,null,null,null,null,null,null,null,null,null,"R5, 0.5 - 0.5",null,null,null,null,null,null,null,null,null,null,null,null,null,null,null,null,null,null,null,null,null,null,null,null,null,null,"R4, 0.5 - 0.5",null,null,null,null,null,null,null,null,null,null,"R6, 0.5 - 0.5",null,null,null,null,null,null,null,null,null,null,null,"R5, 0.5 - 0.5","R1, 0 - 1","R1, 1 - 0","R1, 0.5 - 0.5","R4, 0.5 - 0.5",null,"R3, 0.5 - 0.5",null,null,null,null,null,null,"R2, 0.5 - 0.5","R2, 1 - 0",null,"R4, 0.5 - 0.5",null,"R2, 1 - 0",null,"R3, 0.5 - 0.5",null,"R3, 21 - 4",null,"R6, 0.5 - 0.5",null,"R5, 1 - 0","R6, 19 - 3"]
["Woete ",null,null,null,null,null,null,null,null,null,null,null,null,null,null,null,null,null,"R3, 0 - 1",null,null,null,null,null,null,null,null,null,null,null,null,null,null,null,null,null,null,null,null,null,null,null,null,null,null,null,null,null,null,null,"R5, 1 - 0",null,null,null,null,null,null,null,null,null,null,null,null,null,null,null,null,null,null,null,null,null,null,null,null,null,null,null,null,null,"R4, 1 - 0",null,null,null,null,null,null,null,null,null,null,null,null,null,null,null,"R6, 1 - 0",null,null,null,null,null,null,"R2, 1 - 0","R1, 1 - 0","R2, 0.5 - 0.5",null,null,"R4, 1 - 0","R5, 1 - 0","R3, 0 - 1",null,null,"R2, 0 - 1","R2, 1 - 0",null,null,null,"R5, 0 - 1","R2, 0 - 1",null,null,null,"R5, 1 - 0",null,null,null,null,"R2, 0 - 1"]
["gninocker ",null,null,null,null,null,null,null,null,null,null,null,null,null,null,null,null,null,null,null,"R3, 1 - 0",null,null,null,null,null,null,null,null,null,null,null,null,null,null,null,null,null,null,null,null,null,null,null,null,null,null,null,null,null,null,null,"R5, 0.5 - 0.5",null,null,null,null,null,null,null,null,null,null,null,null,null,null,null,null,null,null,null,null,"R4, 0.5 - 0.5",null,null,null,null,null,null,null,null,null,null,null,null,null,null,null,null,null,null,null,null,"R6, 0.5 - 0.5",null,null,"R1, 1 - 0",null,null,null,null,"R5, 0.5 - 0.5",null,null,null,"R4, 0.5 - 0.5",null,null,null,null,"R3, 1 - 0","R3, 1 - 0","R6, 0.5 - 0.5","R2, 0 - 1","R2, 1 - 0","R2, 1 - 0","R5, 0 - 1","R3, 18 - 3","R3, 1 - 0",null,"R5, 0.5 - 0.5",null,null,null,"R2, 18 - 3"]
["Phoenix11 ",null,null,null,null,null,null,null,null,null,null,null,null,null,null,null,null,null,null,"R3, 0 - 1",null,null,null,null,null,null,null,null,null,null,null,null,null,null,null,null,null,null,null,null,null,null,null,null,null,null,null,null,null,null,null,null,null,"R5, 0 - 1",null,null,null,null,null,null,null,null,null,null,null,null,null,null,null,null,null,null,null,null,null,"R4, 0 - 1",null,null,null,null,null,null,null,null,null,null,null,null,null,null,null,"R6, 1 - 0",null,null,null,null,null,null,null,"R1, 0 - 1","R1, 1 - 0",null,"R2, 1 - 0","R1, 0 - 1",null,null,null,"R4, 0.5 - 0.5",null,"R3, 0 - 1",null,"R4, 9 - 11",null,"R2, 1 - 0",null,"R5, 1 - 0","R5, 1 - 0","R2, 0 - 1","R2, 0 - 1",null,null,null,null,null,null,null,"R5, 0.5 - 0.5"]
["Dekra1979 ",null,null,null,null,null,null,null,null,null,null,null,null,null,null,null,null,null,null,null,null,null,null,null,"R3, 0.5 - 0.5",null,null,null,null,null,null,null,null,null,null,null,null,null,null,null,null,null,null,null,null,null,null,null,null,null,null,null,null,null,null,"R5, 1 - 0",null,null,null,null,null,null,null,null,null,null,null,null,null,null,null,null,null,null,"R4, 0 - 1",null,null,null,null,null,null,null,null,null,null,null,null,null,null,null,null,null,null,"R6, 0.5 - 0.5",null,null,null,null,null,null,"R1, 0 - 1","R1, 1 - 0","R1, 0.5 - 0.5","R3, 0.5 - 0.5",null,null,"R3, 0 - 1","R3, 2 - 18",null,"R3, 0 - 1",null,"R4, 0 - 1",null,"R2, 0.5 - 0.5",null,null,"R2, 0 - 1",null,"R2, 0.5 - 0.5",null,null,null,null,"R4, 19 - 4","R5, 0.5 - 0.5","R2, 0.5 - 0.5"]
["Tripleskull ",null,null,null,null,null,null,null,null,null,null,null,null,null,null,null,null,null,null,null,null,null,null,null,null,null,null,null,null,"R2, 1 - 0",null,null,null,null,null,null,null,null,null,null,"R1, 0 - 1",null,null,null,null,null,null,null,null,null,null,null,null,null,null,null,null,null,null,null,null,null,null,null,null,null,null,null,null,null,null,null,"R3, 1 - 0",null,null,null,null,null,null,null,null,null,null,null,null,"R6, 1 - 0",null,null,null,null,null,null,null,null,null,null,null,null,null,null,"R4, 1 - 0",null,"R4, 1 - 0",null,null,"R2, 1 - 0","R2, 0.5 - 0.5","R2, 1 - 0",null,null,"R1, 0.5 - 0.5",null,"R5, 0 - 1",null,"R1, 1 - 0",null,"R6, 0.5 - 0.5",null,null,"R2, 12 - 13","R2, 0 - 1",null,null,null,null,"R3, 1 - 0",null,"R5, 0.5 - 0.5","R5, 0.5 - 0.5"]
["MissSweden ",null,null,null,null,null,null,null,null,null,null,null,null,null,null,null,null,null,null,null,null,null,null,null,null,null,null,null,null,null,null,null,"R2, 0.5 - 0.5",null,null,null,"R1, 0.5 - 0.5",null,null,null,null,null,null,null,null,null,null,null,null,null,null,null,null,null,null,null,null,null,null,null,null,null,null,null,null,null,null,null,null,null,null,"R3, 0 - 1",null,null,null,null,null,null,null,null,null,null,null,null,null,null,null,"R6, 1 - 0",null,null,null,null,null,null,null,null,null,"R4, 0 - 1",null,null,null,null,null,null,null,null,"R1, 0.5 - 0.5",null,"R3, 0 - 1","R2, 1 - 0",null,"R2, 0.5 - 0.5","R2, 0.5 - 0.5","R1, 0.5 - 0.5","R2, 1 - 0","R6, 1 - 0",null,null,null,null,null,null,null,"R5, 0 - 1",null,null,"R4, 1 - 0","R5, 0.5 - 0.5","R3, 0 - 1"]
["kfoged ",null,null,null,null,null,null,null,null,null,null,null,null,null,null,null,null,null,null,null,null,null,null,null,null,null,null,"R2, 1 - 0",null,null,null,null,null,null,null,null,null,null,"R1, 0 - 1",null,null,null,null,null,null,null,null,null,null,null,null,null,null,null,null,null,null,null,null,null,null,null,null,null,null,null,null,null,"R3, 0.5 - 0.5",null,null,null,null,null,null,null,null,null,null,null,null,null,null,"R6, 1 - 0",null,null,null,null,null,null,null,null,null,null,null,null,null,null,null,null,"R4, 1 - 0",null,null,"R4, 0 - 1","R3, 0 - 1","R3, 0 - 1",null,null,null,"R2, 1 - 0","R2, 1 - 0","R1, 1 - 0",null,"R4, 20 - 3","R6, 0 - 1",null,"R2, 1 - 0",null,"R2, 11 - 12",null,null,null,null,"R3, 1 - 0","R5, 1 - 0"]
["Tank ",null,null,null,null,null,null,null,null,null,null,null,null,null,null,null,null,null,null,null,null,null,null,null,null,"R2, 0 - 1",null,null,null,null,null,null,null,null,"R1, 0 - 1",null,null,null,null,null,null,null,null,null,null,null,null,null,null,null,null,null,null,null,null,null,null,null,null,null,null,null,null,null,null,null,null,null,null,null,"R3, 1 - 0",null,null,null,null,null,null,null,null,null,null,null,null,null,null,null,null,null,"R6, 0.5 - 0.5",null,null,null,null,null,null,null,null,null,"R4, 0.5 - 0.5",null,null,null,null,null,"R6, 0 - 1",null,"R2, 0.5 - 0.5","R4, 0 - 1","R1, 0.5 - 0.5","R2, 0 - 1",null,"R2, 0 - 1",null,"R2, 1 - 0",null,null,"R2, 20 - 4",null,null,"R4, 0 - 1","R6, 1 - 0","R3, 0.5 - 0.5",null,null,"R4, 0 - 1","R5, 0 - 1",null,"R4, 20 - 4","R5, 0.5 - 0.5"]
["Topper ",null,null,null,null,null,null,null,null,null,null,null,null,null,null,null,null,null,null,null,null,null,null,null,null,null,null,null,null,null,"R2, 0.5 - 0.5",null,null,"R1, 0 - 1",null,null,null,null,null,null,null,null,null,null,null,null,null,null,null,null,null,null,null,null,null,null,null,null,null,null,null,null,null,null,null,null,"R3, 0.5 - 0.5",null,null,null,null,null,null,null,null,null,null,null,null,null,null,null,null,null,"R6, 0 - 1",null,null,null,null,null,null,null,null,null,null,null,null,null,null,null,null,"R2, 0 - 1",null,"R4, 0 - 1",null,null,"R2, 0 - 1",null,"R2, 1 - 0",null,null,null,"R1, 0.5 - 0.5","R2, 6 - 22","R6, 0.5 - 0.5",null,null,"R6, 1 - 0","R1, 1 - 0","R2, 0 - 1",null,"R5, 0.5 - 0.5",null,"R2, 23 - 2","R3, 1 - 0","R6, 20 - 3","R5, 0 - 1"]
["SpecialOne ",null,null,null,null,null,null,null,null,null,null,null,null,null,null,null,null,null,null,null,null,null,null,null,null,null,null,null,"R2, 1 - 0",null,null,null,null,null,null,"R1, 0.5 - 0.5",null,null,null,null,null,null,null,null,null,null,null,null,null,null,null,null,null,null,null,null,null,null,null,null,null,null,null,null,null,"R3, 0 - 1",null,null,null,null,null,null,null,null,null,null,null,null,null,null,null,"R6, 0 - 1",null,null,null,null,null,null,null,null,null,null,null,null,null,null,null,null,null,null,null,"R4, 1 - 0",null,null,null,"R2, 0 - 1","R6, 0.5 - 0.5",null,null,"R1, 0 - 1","R2, 0 - 1",null,"R2, 0 - 1",null,null,"R1, 1 - 0",null,"R2, 0.5 - 0.5",null,"R6, 0 - 1",null,null,null,"R5, 0.5 - 0.5",null,"R5, 1 - 0","R3, 1 - 0"]
["Jaqra ",null,null,null,null,null,null,null,null,null,null,null,null,null,null,null,null,null,null,null,null,null,null,null,null,null,null,null,null,null,null,"R2, 1 - 0",null,null,null,null,null,"R1, 0 - 1",null,null,null,null,null,null,null,null,null,null,null,null,null,null,null,null,null,null,null,null,null,null,null,null,null,null,null,null,null,"R3, 0 - 1",null,null,null,null,null,null,null,null,null,null,null,null,null,null,"R6, 0 - 1",null,null,null,null,null,null,null,null,null,null,null,null,null,null,null,null,null,null,null,null,null,"R4, 0 - 1","R1, 0 - 1","R2, 19 - 3","R2, 0 - 1","R2, 1 - 0","R2, 1 - 0",null,"R2, 0 - 1",null,null,null,null,null,"R1, 1 - 0","R2, 1 - 0",null,null,"R5, 0 - 1","R5, 0 - 1",null,"R6, 0.5 - 0.5",null,null,"R3, 0.5 - 0.5"]
["Niebling ",null,null,null,null,null,null,null,null,null,null,null,null,null,null,null,null,null,null,null,null,null,null,null,null,null,"R2, 0.5 - 0.5",null,null,null,null,null,null,null,null,null,null,null,null,"R1, 0.5 - 0.5",null,null,null,null,null,null,null,null,null,null,null,null,null,null,null,null,null,null,null,null,null,null,null,null,null,null,null,null,null,"R3, 1 - 0",null,null,null,null,null,null,null,null,null,null,null,null,null,null,null,null,"R6, 0 - 1",null,null,null,null,null,null,null,null,null,null,null,null,"R4, 0.5 - 0.5",null,null,"R4, 3 - 19",null,null,"R2, 0.5 - 0.5",null,"R1, 1 - 0",null,null,null,null,"R2, 1 - 0","R6, 0 - 1",null,"R2, 0.5 - 0.5",null,null,null,"R1, 0 - 1",null,null,"R5, 1 - 0",null,null,"R4, 1 - 0","R5, 0.5 - 0.5"]
["Lycos ","R3, 0.5 - 0.5",null,null,null,null,null,null,null,null,null,null,null,null,null,null,null,null,null,null,null,null,null,null,null,null,null,null,null,null,null,null,"R6, 0.5 - 0.5",null,null,null,null,null,null,null,null,null,null,null,null,null,null,null,null,null,null,null,null,null,null,null,null,null,null,null,null,null,null,null,null,null,null,null,null,"R2, 0.5 - 0.5",null,null,null,null,null,null,null,null,null,"R5, 1 - 0",null,null,null,null,null,null,null,null,null,null,null,null,null,null,null,null,null,null,null,null,"R2, 0 - 1",null,"R1, 0.5 - 0.5",null,null,"R3, 0 - 1","R4, 1 - 0",null,"R1, 0 - 1","R4, 1 - 0",null,"R1, 1 - 0","R3, 1 - 0",null,null,null,"R2, 1 - 0","R3, 0.5 - 0.5","R1, 0.5 - 0.5",null,null,null,null,null,"R2, 1 - 0",null,null,"R1, 0.5 - 0.5","R2, 12 - 10"]
["PurpleGoo ",null,null,null,null,"R3, 1 - 0",null,null,null,null,null,null,null,null,null,null,null,null,null,null,null,null,null,null,null,"R6, 0 - 1",null,null,null,null,null,null,null,null,null,null,null,null,null,null,null,null,null,null,null,null,null,null,null,null,null,null,null,null,null,null,null,null,null,null,null,null,null,null,null,null,"R2, 0.5 - 0.5",null,null,null,null,null,null,null,null,null,null,null,null,null,"R5, 1 - 0",null,null,null,null,null,null,null,null,null,null,null,null,null,null,null,null,null,null,null,"R2, 0 - 1","R3, 0.5 - 0.5",null,null,null,null,"R3, 0.5 - 0.5",null,"R5, 0 - 1","R4, 0.5 - 0.5","R1, 1 - 0",null,"R3, 1 - 0",null,"R4, 1 - 0",null,"R1, 1 - 0",null,null,null,"R2, 0 - 1",null,null,"R1, 0 - 1","R5, 0 - 1","R1, 1 - 0"]
["Geggster ",null,null,null,null,null,null,"R3, 1 - 0",null,null,null,null,null,null,null,null,null,null,null,null,null,null,null,null,null,null,null,null,null,null,null,"R6, 0 - 1",null,null,null,null,null,null,null,null,null,null,null,null,null,null,null,null,null,null,null,null,null,null,null,null,null,null,null,null,null,null,null,null,null,null,null,null,null,null,"R2, 0.5 - 0.5",null,null,null,null,null,null,null,"R5, 0 - 1",null,null,null,null,null,null,null,null,null,null,null,null,null,null,null,null,null,null,null,null,null,"R3, 1 - 0","R4, 0.5 - 0.5",null,"R1, 1 - 0",null,null,null,"R2, 0.5 - 0.5","R1, 0 - 1","R1, 0 - 1","R4, 0.5 - 0.5","R5, 1 - 0","R3, 1 - 0",null,null,"R2, 0.5 - 0.5",null,"R1, 0 - 1",null,null,null,null,null,null,null,"R1, 0 - 1","R2, 1 - 0","R3, 1 - 0"]
["Podfrey ",null,null,null,null,null,"R3, 0 - 1",null,null,null,null,null,null,null,null,null,null,null,null,null,null,null,null,null,null,null,null,null,"R6, 0.5 - 0.5",null,null,null,null,null,null,null,null,null,null,null,null,null,null,null,null,null,null,null,null,null,null,null,null,null,null,null,null,null,null,null,null,null,null,null,null,null,null,null,null,null,null,null,"R2, 1 - 0",null,"R5, 0.5 - 0.5",null,null,null,null,null,null,null,null,null,null,null,null,null,null,null,null,null,null,null,null,null,null,null,null,null,null,"R1, 0 - 1","R3, 1 - 0","R2, 1 - 0",null,null,"R1, 0.5 - 0.5","R4, 0.5 - 0.5",null,"R5, 1 - 0","R3, 0.5 - 0.5",null,"R1, 1 - 0",null,"R2, 1 - 0","R1, 1 - 0",null,null,"R2, 0 - 1",null,null,null,"R2, 0 - 1",null,"R6, 1 - 0",null,"R1, 1 - 0",null,"R1, 0.5 - 0.5"]
["JimJimany ",null,"R3, 0.5 - 0.5",null,null,null,null,null,null,null,null,null,null,null,null,null,null,null,null,null,null,null,null,null,null,null,null,"R6, 0.5 - 0.5",null,null,null,null,null,null,null,null,null,null,null,null,null,null,null,null,null,null,null,null,null,null,null,null,null,null,null,null,null,null,null,null,null,null,null,null,null,null,null,"R2, 0.5 - 0.5",null,null,null,null,null,null,null,"R5, 0 - 1",null,null,null,null,null,null,null,null,null,null,null,null,null,null,null,null,null,null,null,null,null,null,null,null,"R3, 22 - 4","R2, 1 - 0","R2, 1 - 0",null,"R1, 0.5 - 0.5","R3, 7 - 21","R1, 0 - 1",null,null,"R3, 0 - 1",null,"R1, 0 - 1","R4, 0.5 - 0.5","R2, 0 - 1",null,"R5, 0.5 - 0.5",null,null,null,"R1, 0 - 1","R5, 1 - 0","R1, 0.5 - 0.5",null,null,"R1, 0 - 1",null,null,null,"R2, 0 - 1"]
["Joemanji ",null,null,"R3, 0 - 1",null,null,null,null,null,null,null,null,null,null,null,null,null,null,null,null,null,null,null,null,null,null,null,null,null,"R6, 0 - 1",null,null,null,null,null,null,null,null,null,null,null,null,null,null,null,null,null,null,null,null,null,null,null,null,null,null,null,null,null,null,null,null,null,null,null,"R2, 0 - 1",null,null,null,null,null,null,null,null,null,null,null,"R5, 0 - 1",null,null,null,null,null,null,null,null,null,null,null,null,null,null,null,null,null,null,null,null,null,null,null,null,null,null,"R4, 1 - 0","R1, 0.5 - 0.5",null,"R5, 0 - 1","R4, 1 - 0","R6, 0 - 1",null,"R3, 0 - 1",null,null,"R1, 1 - 0",null,null,null,"R6, 0 - 1",null,null,"R1, 1 - 0",null,null,"R5, 0.5 - 0.5","R2, 0.5 - 0.5",null,"R1, 0 - 1"]
["Mubo ",null,null,null,"R3, 0.5 - 0.5",null,null,null,null,null,null,null,null,null,null,null,null,null,null,null,null,null,null,null,null,null,null,null,null,null,"R6, 0 - 1",null,null,null,null,null,null,null,null,null,null,null,null,null,null,null,null,null,null,null,null,null,null,null,null,null,null,null,null,null,null,null,null,null,null,null,null,null,"R2, 1 - 0",null,null,null,null,"R5, 0 - 1",null,null,null,null,null,null,null,null,null,null,null,null,null,null,null,null,null,null,null,null,null,null,null,null,null,null,null,null,null,"R3, 3 - 19","R3, 0.5 - 0.5","R5, 0.5 - 0.5",null,null,"R3, 0 - 1",null,null,"R4, 0.5 - 0.5","R1, 1 - 0","R1, 0.5 - 0.5",null,null,null,null,null,"R2, 0 - 1",null,"R2, 0.5 - 0.5","R1, 0 - 1",null,"R2, 0 - 1",null,"R2, 12 - 13","R5, 0 - 1","R1, 0.5 - 0.5"]
["Wilzif ",null,null,null,null,null,null,null,"R3, 0.5 - 0.5",null,null,null,null,null,null,null,null,null,null,null,null,null,null,null,null,null,"R6, 0 - 1",null,null,null,null,null,null,null,null,null,null,null,null,null,null,null,null,null,null,null,null,null,null,null,null,null,null,null,null,null,null,null,null,null,null,null,null,null,null,null,null,null,null,null,null,"R2, 0.5 - 0.5",null,null,null,null,"R5, 1 - 0",null,null,null,null,null,null,null,null,null,null,null,null,null,null,null,null,null,null,null,null,null,null,null,"R1, 0.5 - 0.5","R5, 0 - 1",null,"R3, 0.5 - 0.5","R2, 0 - 1","R4, 0 - 1","R4, 1 - 0","R3, 0 - 1",null,null,"R5, 1 - 0","R4, 0 - 1",null,null,null,"R4, 0 - 1","R2, 1 - 0","R2, 0 - 1",null,null,"R1, 0.5 - 0.5",null,"R1, 1 - 0","R1, 0 - 1",null,null,null,"R2, 0.5 - 0.5"]
["MacWitt ",null,null,null,null,null,null,null,null,null,null,null,"R2, 1 - 0",null,null,null,null,null,"R6, 1 - 0",null,null,null,null,null,null,null,null,null,null,null,null,null,null,null,null,null,null,null,null,null,null,null,null,null,null,null,null,null,null,null,null,null,null,null,null,null,null,null,null,null,null,null,null,null,null,"R5, 0 - 1",null,null,null,null,null,null,null,null,null,null,null,"R1, 0 - 1",null,null,null,null,null,null,null,null,"R4, 0.5 - 0.5",null,null,null,null,null,null,"R3, 1 - 0",null,null,null,null,null,null,null,"R2, 0.5 - 0.5",null,null,null,null,null,"R3, 0 - 1","R2, 0 - 1",null,null,null,null,null,null,null,"R5, 0.5 - 0.5",null,null,null,"R3, 0 - 1","R2, 0 - 1",null,null,"R2, 0 - 1",null,null,"R3, 0.5 - 0.5"]
["Harza ",null,null,null,null,null,null,null,null,null,null,null,null,null,null,null,"R2, 0.5 - 0.5",null,null,null,null,null,null,null,"R6, 1 - 0",null,null,null,null,null,null,null,null,null,null,null,null,null,null,null,null,null,null,null,null,null,null,null,null,null,null,null,null,null,null,null,null,null,null,null,null,null,null,null,null,null,null,null,"R5, 0.5 - 0.5",null,null,null,null,"R1, 0.5 - 0.5",null,null,null,null,null,null,null,null,null,null,null,"R4, 0 - 1",null,null,null,null,null,null,null,null,null,"R3, 0 - 1",null,null,null,null,"R4, 0.5 - 0.5",null,null,null,"R3, 0 - 1",null,null,"R5, 1 - 0",null,"R2, 1 - 0",null,null,"R3, 0.5 - 0.5","R1, 21 - 4",null,null,null,null,"R5, 0 - 1",null,null,"R1, 0.5 - 0.5","R3, 0.5 - 0.5","R5, 23 - 7",null,null,null,"R2, 0 - 1","R2, 0.5 - 0.5"]
["jopotzuki ",null,null,null,null,null,null,null,null,null,null,"R2, 0 - 1",null,null,null,null,null,null,null,null,null,"R6, 0.5 - 0.5",null,null,null,null,null,null,null,null,null,null,null,null,null,null,null,null,null,null,null,null,null,null,null,null,null,null,null,null,null,null,null,null,null,null,null,null,null,null,null,null,null,null,null,null,"R5, 0 - 1",null,null,null,null,null,null,null,"R1, 0 - 1",null,null,null,null,null,null,"R4, 0 - 1",null,null,null,null,null,null,null,null,"R3, 1 - 0",null,null,null,null,null,null,null,null,null,null,null,null,"R5, 13 - 11","R2, 1 - 0",null,"R3, 0 - 1",null,"R3, 0 - 1","R2, 0 - 1",null,null,"R2, 1 - 0",null,null,null,null,"R1, 23 - 5",null,"R5, 0 - 1",null,null,"R2, 0 - 1","R3, 0.5 - 0.5",null,"R1, 0.5 - 0.5",null,null,"R2, 0 - 1"]
["edheim ",null,null,null,null,null,null,null,null,null,null,null,null,null,"R2, 0 - 1",null,null,null,null,null,"R6, 0.5 - 0.5",null,null,null,null,null,null,null,null,null,null,null,null,null,null,null,null,null,null,null,null,null,null,null,null,null,null,null,null,null,null,null,null,null,null,null,null,null,null,null,null,null,null,null,null,null,null,"R5, 1 - 0",null,null,null,null,null,null,null,"R1, 0.5 - 0.5",null,null,null,null,null,null,null,null,null,null,null,"R4, 1 - 0",null,"R3, 0 - 1",null,null,null,null,null,null,null,null,null,null,null,null,null,"R2, 0.5 - 0.5",null,null,"R2, 0.5 - 0.5",null,null,null,null,"R6, 0 - 1",null,"R5, 0.5 - 0.5",null,null,null,null,"R1, 21 - 5","R5, 0 - 1",null,"R1, 0.5 - 0.5","R2, 0 - 1",null,"R3, 0.5 - 0.5",null,"R2, 1 - 0",null,"R1, 1 - 0"]
["BeerBeer ",null,null,null,null,null,null,null,null,"R2, 0 - 1",null,null,null,null,null,null,null,null,null,null,null,null,"R6, 1 - 0",null,null,null,null,null,null,null,null,null,null,null,null,null,null,null,null,null,null,null,null,null,null,null,null,null,null,null,null,null,null,null,null,null,null,null,null,null,null,null,null,null,null,null,null,null,null,"R5, 0.5 - 0.5",null,null,null,null,null,null,null,null,null,null,"R1, 0 - 1",null,null,null,"R4, 1 - 0",null,null,null,null,null,null,"R3, 0 - 1",null,null,null,null,null,null,null,null,"R2, 0.5 - 0.5",null,null,null,null,"R3, 0.5 - 0.5",null,"R2, 0.5 - 0.5",null,null,"R4, 4 - 22","R2, 0.5 - 0.5",null,"R5, 1 - 0","R5, 0 - 1","R2, 1 - 0",null,null,null,null,null,"R3, 0.5 - 0.5","R1, 1 - 0","R2, 1 - 0","R1, 0.5 - 0.5","R2, 0 - 1"]
["J-Ho",null,null,null,null,null,null,null,null,null,null,null,null,"R2, 0.5 - 0.5",null,null,null,null,null,null,null,null,null,"R6, 1 - 0",null,null,null,null,null,null,null,null,null,null,null,null,null,null,null,null,null,null,null,null,null,null,null,null,null,null,null,null,null,null,null,null,null,null,null,null,null,null,null,null,null,null,null,null,null,null,null,null,"R5, 0 - 1",null,null,null,null,null,"R1, 0 - 1",null,null,null,null,null,null,null,null,null,"R4, 0.5 - 0.5",null,null,null,"R3, 0.5 - 0.5",null,null,null,null,null,null,null,null,null,"R3, 0.5 - 0.5","R3, 1 - 20","R4, 0 - 1",null,null,"R2, 1 - 0",null,null,"R3, 0 - 1",null,null,"R3, 1 - 0",null,"R5, 0.5 - 0.5",null,null,null,"R1, 6 - 20","R4, 1 - 0","R4, 20 - 4","R2, 0.5 - 0.5","R1, 0.5 - 0.5",null,"R1, 1 - 0","R2, 0.5 - 0.5","R2, 0.5 - 0.5","R3, 1 - 0"]
["ratogre ",null,null,null,null,null,null,null,null,null,null,null,null,null,null,"R2, 0 - 1",null,null,null,"R6, 1 - 0",null,null,null,null,null,null,null,null,null,null,null,null,null,null,null,null,null,null,null,null,null,null,null,null,null,null,null,null,null,null,null,null,null,null,null,null,null,null,null,null,null,null,null,null,null,null,null,null,null,null,"R5, 1 - 0",null,null,null,null,null,null,null,null,"R1, 0 - 1",null,null,null,"R4, 0 - 1",null,null,null,null,null,null,null,null,null,null,"R3, 0 - 1",null,null,null,null,null,null,null,"R4, 0 - 1",null,null,null,null,null,"R2, 3 - 18",null,"R2, 0.5 - 0.5","R3, 0 - 1",null,null,null,null,"R3, 0.5 - 0.5",null,null,null,"R5, 0.5 - 0.5","R2, 0 - 1",null,"R2, 0.5 - 0.5",null,null,"R1, 0 - 1"]
["valkohukka ",null,null,null,null,null,null,null,null,null,"R2, 0.5 - 0.5",null,null,null,null,null,null,"R6, 0.5 - 0.5",null,null,null,null,null,null,null,null,null,null,null,null,null,null,null,null,null,null,null,null,null,null,null,null,null,null,null,null,null,null,null,null,null,null,null,null,null,null,null,null,null,null,null,null,null,null,null,null,null,null,null,null,null,"R5, 1 - 0",null,null,null,null,"R1, 0.5 - 0.5",null,null,null,null,null,"R4, 1 - 0",null,null,null,null,null,null,null,null,null,null,null,null,null,"R3, 1 - 0",null,null,null,null,null,"R2, 1 - 0",null,null,"R2, 1 - 0",null,null,"R5, 1 - 0","R3, 1 - 0",null,"R6, 20 - 5",null,null,null,"R1, 22 - 4",null,"R5, 0 - 1",null,null,null,null,null,null,"R2, 0.5 - 0.5","R2, 0 - 1","R1, 0.5 - 0.5","R6, 0.5 - 0.5","R1, 0.5 - 0.5"]
["BiBi ",null,null,null,null,null,null,null,null,null,null,null,null,"R1, 1 - 0",null,null,null,null,null,null,null,null,null,null,null,null,null,null,null,null,null,null,null,null,null,null,null,null,null,null,null,null,"R3, 1 - 0",null,null,null,null,null,null,null,null,null,null,null,null,null,null,null,null,null,null,"R4, 1 - 0",null,null,null,null,null,null,null,null,null,null,null,null,"R2, 0.5 - 0.5",null,null,null,null,null,null,null,null,null,null,null,null,null,null,null,null,null,null,null,null,null,null,null,null,null,null,"R1, 0 - 1",null,null,"R5, 0 - 1","R6, 1 - 0",null,"R1, 9 - 9","R6, 0.5 - 0.5","R1, 0 - 1","R1, 0 - 1",null,null,"R2, 0.5 - 0.5",null,null,"R4, 0 - 1","R5, 0.5 - 0.5",null,null,"R3, 1 - 0","R6, 0 - 1",null,"R4, 0.5 - 0.5","R3, 5 - 22",null,null,"R1, 0.5 - 0.5","R4, 0.5 - 0.5"]
["Bouzzy ",null,null,null,null,null,null,null,null,null,null,null,"R1, 1 - 0",null,null,null,null,null,null,null,null,null,null,null,null,null,null,null,null,null,null,null,null,null,null,null,null,null,null,null,null,null,null,null,null,"R3, 1 - 0",null,null,null,null,null,null,null,null,null,null,null,"R4, 0 - 1",null,null,null,null,null,null,null,null,null,null,null,null,null,null,null,null,null,null,null,null,"R2, 0.5 - 0.5",null,null,null,null,null,null,null,null,null,null,null,null,null,null,null,null,null,null,null,null,null,null,"R5, 1 - 0",null,null,null,null,"R6, 0.5 - 0.5","R1, 0 - 1",null,null,null,null,"R1, 0.5 - 0.5","R5, 0 - 1","R3, 1 - 0",null,null,null,"R4, 0.5 - 0.5","R2, 0.5 - 0.5","R6, 6 - 6",null,"R4, 3 - 18","R1, 0 - 1","R6, 1 - 0",null,"R4, 0 - 1",null,"R1, 1 - 0"]
["BudWiser ",null,null,null,null,null,null,null,null,null,null,null,null,null,"R1, 0.5 - 0.5",null,null,null,null,null,null,null,null,null,null,null,null,null,null,null,null,null,null,null,null,null,null,null,null,null,null,null,null,null,"R3, 0.5 - 0.5",null,null,null,null,null,null,null,null,null,null,null,null,null,null,"R4, 0 - 1",null,null,null,null,null,null,null,null,null,null,null,null,null,"R2, 0 - 1",null,null,null,null,null,null,null,null,null,null,null,null,null,null,null,null,null,null,null,null,null,null,null,null,null,null,null,null,"R1, 0.5 - 0.5",null,null,"R1, 0 - 1",null,"R6, 0.5 - 0.5",null,null,"R6, 0.5 - 0.5","R1, 1 - 0","R3, 1 - 0","R3, 0 - 1","R4, 0 - 1","R6, 0 - 1","R1, 0.5 - 0.5","R2, 0 - 1",null,"R3, 0.5 - 0.5","R5, 0 - 1","R2, 9 - 11",null,"R1, 0 - 1","R1, 0.5 - 0.5",null,"R6, 0.5 - 0.5","R4, 0 - 1"]
["Gros Nain ",null,null,null,null,null,null,null,null,null,"R1, 0.5 - 0.5",null,null,null,null,null,null,null,null,null,null,null,null,null,null,null,null,null,null,null,null,null,null,null,null,null,null,null,null,null,null,null,null,null,null,null,null,null,"R3, 0 - 1",null,null,null,null,null,null,null,null,null,"R4, 0.5 - 0.5",null,null,null,null,null,null,null,null,null,null,null,null,null,null,null,null,"R2, 1 - 0",null,null,null,null,null,null,null,null,null,null,null,null,null,null,null,null,null,null,null,null,null,null,null,null,"R1, 0 - 1",null,"R5, 0.5 - 0.5",null,"R6, 20 - 5","R1, 1 - 0",null,null,"R1, 23 - 3","R1, 1 - 0","R6, 1 - 0",null,null,"R4, 1 - 0","R2, 22 - 3","R1, 0 - 1",null,"R3, 1 - 0","R5, 0 - 1","R4, 20 - 4","R2, 0.5 - 0.5",null,"R1, 1 - 0",null,"R4, 0.5 - 0.5","R4, 0.5 - 0.5","R2, 19 - 5",null,"R6, 0 - 1"]
["Harti ",null,null,null,null,null,null,null,null,null,null,null,null,null,null,"R1, 1 - 0",null,null,null,null,null,null,null,null,null,null,null,null,null,null,null,null,null,null,null,null,null,null,null,null,null,null,null,null,null,null,"R3, 0 - 1",null,null,null,null,null,null,null,null,null,null,null,null,null,null,null,"R4, 0.5 - 0.5",null,null,null,null,null,null,null,null,null,null,null,null,null,null,null,null,null,"R2, 1 - 0",null,null,null,null,null,null,null,null,null,null,null,null,null,null,null,null,null,null,null,null,null,null,"R5, 0 - 1","R1, 1 - 0","R5, 0 - 1",null,"R6, 0 - 1","R6, 0 - 1",null,"R1, 0 - 1",null,null,"R1, 1 - 0","R2, 0 - 1","R3, 0.5 - 0.5",null,null,null,"R5, 1 - 0","R4, 0.5 - 0.5",null,null,"R4, 0 - 1","R2, 12 - 11","R1, 0 - 1",null,"R6, 0.5 - 0.5"]
["Justicium ",null,null,null,null,null,null,null,null,null,null,"R1, 1 - 0",null,null,null,null,null,null,null,null,null,null,null,null,null,null,null,null,null,null,null,null,null,null,null,null,null,null,null,null,null,"R3, 0 - 1",null,null,null,null,null,null,null,null,null,null,null,null,null,null,null,null,null,null,null,null,null,"R4, 0 - 1",null,null,null,null,null,null,null,null,null,null,null,null,null,"R2, 1 - 0",null,null,null,null,null,null,null,null,null,null,null,null,null,null,null,null,null,null,null,null,null,null,null,null,"R5, 18 - 2","R1, 0 - 1",null,null,null,"R4, 19 - 2","R1, 0 - 1","R6, 0 - 1",null,"R1, 1 - 0",null,"R3, 1 - 0",null,"R5, 0 - 1","R3, 0 - 1","R4, 1 - 0","R2, 1 - 0",null,null,"R4, 0 - 1","R2, 23 - 5",null,null,"R6, 1 - 0","R1, 0 - 1"]
["Matt le fou ",null,null,null,null,null,null,null,null,null,null,null,null,null,null,null,"R1, 0.5 - 0.5",null,null,null,null,null,null,null,null,null,null,null,null,null,null,null,null,null,null,null,null,null,null,null,null,null,null,null,null,null,null,"R3, 0.5 - 0.5",null,null,null,null,null,null,null,null,null,null,null,null,"R4, 0 - 1",null,null,null,null,null,null,null,null,null,null,null,null,null,null,null,"R2, 0 - 1",null,null,null,null,null,null,null,null,null,null,null,null,null,null,null,null,null,null,null,null,null,null,null,"R5, 0.5 - 0.5",null,null,null,null,null,"R1, 0 - 1","R6, 1 - 0",null,"R1, 9 - 10",null,"R4, 0 - 1","R6, 0.5 - 0.5",null,"R1, 0 - 1","R4, 0 - 1","R5, 0.5 - 0.5",null,null,"R3, 1 - 0",null,"R1, 0 - 1","R6, 0 - 1","R3, 0 - 1",null,null,null,"R2, 22 - 6"]
["Simon_ACP ",null,null,null,null,null,null,null,null,"R1, 1 - 0",null,null,null,null,null,null,null,null,null,null,null,null,null,null,null,null,null,null,null,null,null,null,null,null,null,null,null,null,null,null,null,null,null,"R3, 1 - 0",null,null,null,null,null,null,null,null,null,null,null,null,null,null,null,null,null,null,null,null,"R4, 0.5 - 0.5",null,null,null,null,null,null,null,null,null,null,null,null,null,null,"R2, 1 - 0",null,null,null,null,null,null,null,null,null,null,null,null,null,null,null,null,null,null,null,null,null,null,"R4, 0 - 1",null,null,null,"R6, 0.5 - 0.5","R1, 1 - 0",null,null,null,"R6, 0 - 1","R1, 0 - 1",null,"R5, 1 - 0",null,"R2, 0 - 1",null,"R3, 1 - 0","R4, 0.5 - 0.5",null,"R1, 0 - 1",null,"R6, 1 - 0","R1, 0 - 1","R2, 20 - 4"]
["Arioso ",null,null,null,null,null,null,null,null,null,null,null,null,null,null,null,null,null,null,null,null,null,null,null,null,null,null,null,null,null,null,null,null,null,null,null,null,null,"R3, 1 - 0",null,null,null,null,null,null,null,null,null,null,null,null,"R6, 0 - 1",null,null,null,null,null,null,null,null,null,null,null,"R5, 0 - 1",null,null,null,"R1, 1 - 0",null,null,null,null,null,null,null,null,null,null,null,null,null,null,null,null,null,null,null,null,null,null,null,null,null,null,null,null,null,null,null,null,"R4, 0.5 - 0.5",null,null,"R2, 0.5 - 0.5",null,"R2, 20 - 3",null,null,null,null,"R1, 0 - 1",null,"R1, 0.5 - 0.5",null,null,"R2, 0 - 1",null,"R4, 0.5 - 0.5",null,null,null,null,null,null,"R6, 0 - 1","R2, 1 - 0","R1, 0.5 - 0.5"]
["RoterSternHochdah ",null,null,null,null,null,null,null,null,null,null,null,null,null,null,null,null,null,null,null,null,null,null,null,null,null,null,null,null,null,null,null,null,"R3, 0 - 1",null,null,null,null,null,null,null,null,null,null,null,null,null,null,null,null,null,null,null,"R6, 1 - 0",null,null,null,null,null,null,null,null,"R5, 0 - 1",null,null,null,null,null,null,"R1, 0.5 - 0.5",null,null,null,null,null,null,null,null,null,null,null,null,null,null,null,null,null,null,null,null,null,null,null,null,null,null,null,null,null,null,"R4, 0 - 1","R3, 0.5 - 0.5",null,"R5, 1 - 0",null,null,"R1, 1 - 0","R1, 0 - 1",null,null,null,null,null,null,null,null,null,"R2, 0.5 - 0.5","R4, 1 - 0",null,"R2, 0.5 - 0.5","R2, 1 - 0","R1, 1 - 0",null,null,"R6, 0.5 - 0.5","R5, 1 - 0",null,"R5, 0 - 1"]
["Muadib ",null,null,null,null,null,null,null,null,null,null,null,null,null,null,null,null,null,null,null,null,null,null,null,null,null,null,null,null,null,null,null,null,null,null,null,null,null,null,null,"R3, 0 - 1",null,null,null,null,null,null,null,null,null,"R6, 0 - 1",null,null,null,null,null,null,null,"R5, 0.5 - 0.5",null,null,null,null,null,null,null,null,null,null,null,"R1, 1 - 0",null,null,null,null,null,null,null,null,null,null,null,null,null,null,null,null,null,null,null,null,null,null,null,null,null,null,null,null,null,"R5, 1 - 0","R2, 1 - 0",null,"R2, 0 - 1","R4, 0 - 1",null,null,null,null,"R1, 0 - 1",null,null,null,"R6, 0 - 1",null,null,"R2, 1 - 0",null,null,"R4, 0 - 1","R2, 1 - 0",null,null,null,"R2, 1 - 0",null,null,"R6, 0.5 - 0.5","R1, 0 - 1"]
["Candlejack ",null,null,null,null,null,null,null,null,null,null,null,null,null,null,null,null,null,null,null,null,null,null,null,null,null,null,null,null,null,null,null,null,null,null,"R3, 0.5 - 0.5",null,null,null,null,null,null,null,null,null,null,null,null,null,null,null,null,null,null,null,null,"R6, 0 - 1",null,null,null,"R5, 1 - 0",null,null,null,null,null,null,null,null,null,null,null,"R1, 0 - 1",null,null,null,null,null,null,null,null,null,null,null,null,null,null,null,null,null,null,null,null,null,null,null,null,null,null,null,null,null,"R4, 0.5 - 0.5",null,"R5, 0.5 - 0.5","R3, 0.5 - 0.5",null,"R1, 0.5 - 0.5",null,null,"R1, 1 - 0",null,null,null,"R3, 0 - 1","R4, 0.5 - 0.5",null,null,"R2, 1 - 0",null,null,"R6, 1 - 0","R2, 0.5 - 0.5","R5, 0.5 - 0.5","R4, 3 - 20","R1, 0.5 - 0.5","R5, 17 - 2"]
["Gaunab ",null,null,null,null,null,null,null,null,null,null,null,null,null,null,null,null,null,null,null,null,null,null,null,null,null,null,null,null,null,null,null,null,null,"R3, 0 - 1",null,null,null,null,null,null,null,null,null,null,null,null,null,null,null,null,null,null,null,"R6, 1 - 0",null,null,null,null,"R5, 0 - 1",null,null,null,null,null,null,null,null,null,null,null,"R1, 0 - 1",null,null,null,null,null,null,null,null,null,null,null,null,null,null,null,null,null,null,null,null,null,null,null,null,null,null,null,null,null,null,null,"R4, 1 - 0","R2, 0.5 - 0.5","R1, 0.5 - 0.5","R1, 0 - 1",null,"R4, 0 - 1",null,null,null,null,null,"R2, 1 - 0",null,null,null,null,"R3, 0.5 - 0.5","R4, 0.5 - 0.5","R1, 0 - 1",null,"R6, 1 - 0",null,null,"R2, 1 - 0"]
["Prince ",null,null,null,null,null,null,null,null,null,null,null,null,null,null,null,null,null,null,null,null,null,null,null,null,null,null,null,null,null,null,null,null,null,null,null,null,"R3, 1 - 0",null,null,null,null,null,null,null,null,null,null,null,null,null,null,"R6, 1 - 0",null,null,null,null,"R5, 1 - 0",null,null,null,null,null,null,null,null,"R1, 1 - 0",null,null,null,null,null,null,null,null,null,null,null,null,null,null,null,null,null,null,null,null,null,null,null,null,null,null,null,null,null,null,null,null,null,"R2, 0.5 - 0.5",null,"R5, 0.5 - 0.5",null,null,null,null,null,"R1, 0.5 - 0.5",null,"R2, 0.5 - 0.5","R1, 0 - 1",null,"R2, 0.5 - 0.5","R4, 0 - 1",null,null,null,null,"R2, 1 - 0",null,"R6, 0 - 1",null,"R2, 1 - 0","R2, 0.5 - 0.5",null,null,"R1, 0.5 - 0.5","R6, 1 - 0"]
["DocMaxx ",null,null,null,null,null,null,null,null,null,null,null,null,null,null,null,null,null,null,null,null,null,null,null,null,null,null,null,null,null,null,null,null,null,null,null,null,null,null,"R3, 0.5 - 0.5",null,null,null,null,null,null,null,null,null,"R6, 1 - 0",null,null,null,null,null,null,null,null,null,null,null,null,null,null,"R5, 0 - 1","R1, 0.5 - 0.5",null,null,null,null,null,null,null,null,null,null,null,null,null,null,null,null,null,null,null,null,null,null,null,null,null,null,null,null,null,null,null,null,null,null,"R3, 0 - 1",null,null,null,null,"R1, 0.5 - 0.5",null,null,"R5, 1 - 0",null,"R2, 0 - 1",null,"R1, 0 - 1","R2, 1 - 0",null,null,"R4, 1 - 0",null,"R4, 0 - 1","R2, 0 - 1",null,null,"R6, 0.5 - 0.5","R1, 1 - 0",null,null,null,null,"R2, 0.5 - 0.5"]
["Jonny_Kanone ",null,null,null,null,null,null,null,null,null,null,null,null,null,null,null,null,null,null,null,null,null,null,null,null,null,null,null,null,null,null,null,null,null,null,null,"R3, 1 - 0",null,null,null,null,null,null,null,null,null,null,null,null,null,null,null,null,null,null,"R6, 0.5 - 0.5",null,null,null,null,null,"R5, 0 - 1",null,null,null,null,null,null,"R1, 0.5 - 0.5",null,null,null,null,null,null,null,null,null,null,null,null,null,null,null,null,null,null,null,null,null,null,null,null,null,null,null,null,null,null,null,null,"R4, 1 - 0","R6, 5 - 19",null,null,null,null,null,"R1, 1 - 0",null,null,"R1, 0.5 - 0.5",null,"R4, 0 - 1",null,"R2, 1 - 0","R2, 0 - 1",null,"R3, 1 - 0",null,null,null,null,"R2, 1 - 0","R1, 0 - 1","R5, 0.5 - 0.5","R6, 0 - 1","R2, 0.5 - 0.5"]
["BlackOrc ",null,null,"R5, 0 - 1",null,null,null,null,null,null,null,null,null,null,null,null,null,null,null,null,null,null,null,null,null,null,null,null,null,null,null,null,null,null,null,null,null,null,null,null,null,null,null,null,null,null,null,"R6, 0 - 1",null,null,null,null,null,null,null,null,null,null,null,null,null,null,null,null,null,null,null,null,null,null,null,"R4, 0 - 1",null,null,null,null,null,null,null,null,null,null,null,null,null,null,null,null,null,null,null,null,"R2, 0.5 - 0.5",null,null,null,null,null,"R3, 1 - 0",null,null,null,null,"R2, 1 - 0",null,null,"R2, 0.5 - 0.5",null,null,"R1, 0.5 - 0.5","R1, 0.5 - 0.5",null,null,"R3, 0 - 1","R1, 1 - 0",null,null,"R6, 10 - 11","R2, 0.5 - 0.5",null,null,null,null,"R6, 0 - 1",null,null,null,"R1, 17 - 2","R4, 0 - 1"]
["Itzla ",null,null,null,null,"R5, 0 - 1",null,null,null,null,null,null,null,null,null,null,null,null,null,null,null,null,null,null,null,null,null,null,null,null,null,null,null,null,null,null,null,null,null,null,null,null,null,"R6, 1 - 0",null,null,null,null,null,null,null,null,null,null,null,null,null,null,null,null,null,null,null,null,null,null,null,null,null,"R4, 1 - 0",null,null,null,null,null,null,null,null,null,null,null,null,null,null,null,null,null,null,null,null,null,"R2, 1 - 0",null,null,null,null,null,null,null,null,null,"R3, 0.5 - 0.5",null,null,null,"R1, 0.5 - 0.5",null,null,"R6, 1 - 0",null,null,"R1, 0 - 1",null,"R1, 0 - 1",null,null,"R6, 0 - 1",null,null,null,"R5, 2 - 20",null,null,null,"R1, 6 - 21","R6, 1 - 0","R6, 1 - 0","R4, 1 - 0"]
["Wolio ",null,null,null,"R5, 0.5 - 0.5",null,null,null,null,null,null,null,null,null,null,null,null,null,null,null,null,null,null,null,null,null,null,null,null,null,null,null,null,null,null,null,null,null,null,null,null,"R6, 1 - 0",null,null,null,null,null,null,null,null,null,null,null,null,null,null,null,null,null,null,null,null,null,null,null,null,null,"R4, 1 - 0",null,null,null,null,null,null,null,null,null,null,null,null,null,null,null,null,null,null,null,null,null,null,null,null,null,"R2, 1 - 0",null,null,null,null,null,"R3, 0 - 1","R1, 0 - 1",null,"R2, 0 - 1",null,null,null,null,null,"R1, 1 - 0",null,null,null,"R1, 1 - 0","R2, 22 - 3",null,"R1, 0 - 1",null,null,null,null,null,null,null,"R6, 0.5 - 0.5","R4, 1 - 0",null,"R6, 0.5 - 0.5"]
["noraal ",null,null,null,null,null,"R5, 0.5 - 0.5",null,null,null,null,null,null,null,null,null,null,null,null,null,null,null,null,null,null,null,null,null,null,null,null,null,null,null,null,null,null,null,null,null,null,null,null,null,null,null,"R6, 0 - 1",null,null,null,null,null,null,null,null,null,null,null,null,null,null,null,null,null,null,"R4, 1 - 0",null,null,null,null,null,null,null,null,null,null,null,null,null,null,null,null,null,null,null,null,null,null,null,null,null,null,null,null,null,null,"R2, 1 - 0",null,null,null,"R3, 1 - 0","R1, 1 - 0",null,null,null,null,"R4, 13 - 13",null,null,"R1, 0.5 - 0.5","R5, 1 - 0","R1, 1 - 0",null,"R4, 0.5 - 0.5","R6, 0.5 - 0.5",null,null,"R2, 1 - 0","R1, 0.5 - 0.5",null,null,"R4, 0 - 1",null,null,"R6, 1 - 0",null,"R1, 9 - 10",null,"R6, 0.5 - 0.5"]
["Favi ",null,null,null,null,null,null,"R5, 1 - 0",null,null,null,null,null,null,null,null,null,null,null,null,null,null,null,null,null,null,null,null,null,null,null,null,null,null,null,null,null,null,null,null,null,null,"R6, 0 - 1",null,null,null,null,null,null,null,null,null,null,null,null,null,null,null,null,null,null,null,null,null,null,null,null,null,null,null,"R4, 1 - 0",null,null,null,null,null,null,null,null,null,null,null,null,null,null,null,null,null,null,null,null,null,null,null,null,"R2, 0 - 1",null,null,null,null,null,"R2, 1 - 0",null,"R3, 0 - 1",null,null,null,"R1, 0 - 1",null,null,null,null,null,null,null,null,null,"R2, 0 - 1",null,null,"R1, 0.5 - 0.5",null,"R1, 3 - 18",null,"R6, 1 - 0","R4, 0.5 - 0.5"]
["cz ",null,"R5, 0 - 1",null,null,null,null,null,null,null,null,null,null,null,null,null,null,null,null,null,null,null,null,null,null,null,null,null,null,null,null,null,null,null,null,null,null,null,null,null,null,null,null,null,null,"R6, 0 - 1",null,null,null,null,null,null,null,null,null,null,null,null,null,null,null,null,null,null,null,null,null,null,null,null,null,null,"R4, 0.5 - 0.5",null,null,null,null,null,null,null,null,null,null,null,null,null,null,null,null,null,null,null,null,null,"R2, 0.5 - 0.5",null,null,"R3, 0 - 1",null,null,"R3, 3 - 20",null,"R1, 0.5 - 0.5",null,null,null,null,null,"R1, 1 - 0","R4, 1 - 0",null,null,"R1, 0 - 1",null,null,null,"R2, 0.5 - 0.5",null,null,"R1, 0 - 1",null,"R1, 21 - 6","R6, 0 - 1",null,null,null,"R4, 1 - 0"]
["swifty ",null,null,null,null,null,null,null,"R5, 0 - 1",null,null,null,null,null,null,null,null,null,null,null,null,null,null,null,null,null,null,null,null,null,null,null,null,null,null,null,null,null,null,null,null,null,null,null,null,null,null,null,"R6, 0.5 - 0.5",null,null,null,null,null,null,null,null,null,null,null,null,null,null,null,null,null,null,null,"R4, 1 - 0",null,null,null,null,null,null,null,null,null,null,null,null,null,null,null,null,null,null,null,null,"R2, 0.5 - 0.5",null,null,null,null,null,null,null,null,null,null,"R2, 1 - 0",null,"R3, 0 - 1","R3, 1 - 0",null,"R1, 0 - 1",null,null,null,null,"R1, 0.5 - 0.5",null,"R4, 13 - 12",null,"R4, 0 - 1",null,null,"R1, 0 - 1",null,null,null,"R6, 1 - 0",null,"R4, 1 - 0",null,null,"R6, 1 - 0","R6, 5 - 18","R1, 20 - 2"]
["Alex05 ","R5, 0 - 1",null,null,null,null,null,null,null,null,null,null,null,null,null,null,null,null,null,null,null,null,null,null,null,null,null,null,null,null,null,null,null,null,null,null,null,null,null,null,null,null,null,null,"R6, 1 - 0",null,null,null,null,null,null,null,null,null,null,null,null,null,null,null,null,null,null,null,null,null,"R4, 1 - 0",null,null,null,null,null,null,null,null,null,null,null,null,null,null,null,null,null,null,null,null,null,null,null,"R2, 1 - 0",null,null,null,null,null,null,null,null,null,null,null,null,null,"R3, 1 - 0",null,"R1, 0 - 1",null,null,null,null,null,null,null,null,"R2, 1 - 0","R1, 0 - 1",null,null,null,null,"R6, 0 - 1","R4, 1 - 0","R3, 0 - 1",null,"R1, 11 - 11",null,"R6, 0 - 1","R4, 19 - 3"]
["Beppe ",null,null,null,null,null,null,null,null,null,null,null,null,null,null,null,null,null,null,null,null,null,null,null,null,null,null,null,null,null,null,null,null,null,"R4, 1 - 0",null,null,null,null,null,null,null,null,null,null,null,"R5, 0 - 1",null,null,null,null,null,null,null,null,null,null,null,null,null,null,null,null,null,null,null,null,null,null,null,null,null,null,null,null,"R6, 0.5 - 0.5",null,null,null,null,null,null,null,null,null,null,null,null,null,"R1, 1 - 0",null,null,null,null,null,null,null,null,null,null,"R5, 0.5 - 0.5","R6, 1 - 0","R4, 0.5 - 0.5",null,"R2, 0 - 1","R2, 5 - 18","R5, 0 - 1","R6, 0 - 1","R2, 1 - 0",null,null,"R2, 0 - 1",null,null,null,null,"R3, 0 - 1",null,null,null,"R3, 1 - 0",null,null,null,"R2, 0 - 1","R1, 0 - 1"]
["Dirold ",null,null,null,null,null,null,null,null,null,null,null,null,null,null,null,null,null,null,null,null,null,null,null,null,null,null,null,null,null,null,null,null,null,null,null,"R4, 0.5 - 0.5",null,null,null,null,null,null,"R5, 0.5 - 0.5",null,null,null,null,null,null,null,null,null,null,null,null,null,null,null,null,null,null,null,null,null,null,null,null,null,null,null,null,null,null,null,null,"R6, 1 - 0",null,null,null,null,null,null,null,null,null,null,null,null,null,null,null,null,null,"R1, 1 - 0",null,null,null,null,null,"R1, 0 - 1","R2, 1 - 0",null,"R1, 0.5 - 0.5",null,"R2, 0.5 - 0.5","R5, 0.5 - 0.5","R2, 18 - 4",null,"R5, 1 - 0",null,null,null,null,"R3, 0 - 1",null,null,null,null,null,"R3, 0 - 1","R3, 0 - 1",null,null,"R1, 0.5 - 0.5",null,null,null,"R5, 7 - 20"]
["Farina ",null,null,null,null,null,null,null,null,null,null,null,null,null,null,null,null,null,null,null,null,null,null,null,null,null,null,null,null,null,null,null,null,null,null,"R4, 1 - 0",null,null,null,null,null,null,null,null,null,"R5, 1 - 0",null,null,null,null,null,null,null,null,null,null,null,null,null,null,null,null,null,null,null,null,null,null,null,null,null,null,null,null,null,null,null,"R6, 0.5 - 0.5",null,null,null,null,null,null,null,null,null,null,null,null,null,null,null,null,null,null,"R1, 0 - 1",null,null,null,null,"R2, 0 - 1",null,"R5, 0.5 - 0.5","R1, 0 - 1",null,"R2, 0 - 1",null,"R2, 0.5 - 0.5","R2, 21 - 4",null,null,null,null,null,null,null,null,"R3, 0.5 - 0.5",null,null,"R5, 1 - 0","R1, 0.5 - 0.5",null,null,null,null,null,"R1, 0.5 - 0.5"]
["Kaltenland ",null,null,null,null,null,null,null,null,null,null,null,null,null,null,null,null,null,null,null,null,null,null,null,null,null,null,null,null,null,null,null,null,null,null,null,null,null,null,"R4, 1 - 0",null,null,null,null,"R5, 0 - 1",null,null,null,null,null,null,null,null,null,null,null,null,null,null,null,null,null,null,null,null,null,null,null,null,null,null,null,null,null,null,null,null,null,null,null,"R6, 1 - 0",null,null,null,null,null,null,null,null,null,null,"R1, 1 - 0",null,null,null,null,null,null,null,null,"R4, 1 - 0","R5, 0.5 - 0.5","R1, 1 - 0","R2, 0.5 - 0.5","R6, 1 - 0",null,null,"R2, 0 - 1",null,"R3, 0 - 1","R2, 12 - 11","R5, 1 - 0",null,"R3, 0 - 1",null,null,null,null,null,"R3, 0 - 1",null,"R5, 0.5 - 0.5",null,"R1, 0 - 1",null,null,"R1, 1 - 0","R6, 0.5 - 0.5"]
["Liam ",null,null,null,null,null,null,null,null,null,null,null,null,null,null,null,null,null,null,null,null,null,null,null,null,null,null,null,null,null,null,null,null,"R4, 0 - 1",null,null,null,null,null,null,null,null,null,null,null,null,null,null,"R5, 1 - 0",null,null,null,null,null,null,null,null,null,null,null,null,null,null,null,null,null,null,null,null,null,null,null,null,null,null,null,null,null,null,"R6, 1 - 0",null,null,null,null,null,null,null,null,null,null,null,null,null,null,null,"R1, 1 - 0",null,null,null,null,"R2, 1 - 0","R1, 1 - 0","R5, 0.5 - 0.5","R6, 0 - 1","R1, 1 - 0",null,"R2, 0.5 - 0.5","R5, 0 - 1",null,null,null,null,"R5, 0.5 - 0.5","R3, 0 - 1",null,null,"R3, 1 - 0","R6, 1 - 0",null,null,"R5, 0.5 - 0.5",null,null,null,null,null,null,"R1, 1 - 0","R1, 0 - 1"]
["Matte8 ",null,null,null,null,null,null,null,null,null,null,null,null,null,null,null,null,null,null,null,null,null,null,null,null,null,null,null,null,null,null,null,null,null,null,null,null,"R4, 0.5 - 0.5",null,null,null,null,"R5, 1 - 0",null,null,null,null,null,null,null,null,null,null,null,null,null,null,null,null,null,null,null,null,null,null,null,null,null,null,null,null,null,null,null,"R6, 0.5 - 0.5",null,null,null,null,null,null,null,null,null,null,null,null,null,null,null,null,null,"R1, 1 - 0",null,null,null,null,null,null,null,null,"R1, 0.5 - 0.5","R2, 0.5 - 0.5","R1, 1 - 0","R5, 1 - 0","R5, 0 - 1",null,null,"R2, 9 - 8",null,null,"R3, 1 - 0","R2, 1 - 0",null,"R2, 0 - 1",null,null,"R3, 0 - 1","R3, 1 - 0",null,null,"R1, 0 - 1"]
["Spartako ",null,null,null,null,null,null,null,null,null,null,null,null,null,null,null,null,null,null,null,null,null,null,null,null,null,null,null,null,null,null,null,null,null,null,null,null,null,"R4, 1 - 0",null,null,"R5, 1 - 0",null,null,null,null,null,null,null,null,null,null,null,null,null,null,null,null,null,null,null,null,null,null,null,null,null,null,null,null,null,null,null,null,null,null,null,null,"R6, 0 - 1",null,null,null,null,null,null,null,null,null,null,null,null,null,null,"R1, 0 - 1",null,null,null,null,null,null,"R6, 0 - 1",null,"R1, 0 - 1",null,null,null,"R2, 6 - 7","R5, 0 - 1",null,"R2, 1 - 0",null,null,null,null,"R3, 1 - 0","R3, 1 - 0",null,null,null,null,null,null,null,"R1, 0 - 1",null,null,"R1, 0.5 - 0.5","R5, 6 - 22","R3, 0 - 1"]
["Verrinho ",null,null,null,null,null,null,null,null,null,null,null,null,null,null,null,null,null,null,null,null,null,null,null,null,null,null,null,null,null,null,null,null,null,null,null,null,null,null,null,"R4, 0.5 - 0.5",null,null,null,null,null,null,"R5, 1 - 0",null,null,null,null,null,null,null,null,null,null,null,null,null,null,null,null,null,null,null,null,null,null,null,null,null,"R6, 0 - 1",null,null,null,null,null,null,null,null,null,null,null,null,null,null,null,null,"R1, 1 - 0",null,null,null,null,null,null,null,null,null,"R1, 0 - 1",null,"R6, 1 - 0","R4, 0.5 - 0.5",null,null,"R3, 1 - 0",null,null,null,"R2, 1 - 0","R2, 4 - 21","R4, 0.5 - 0.5",null,null,"R3, 0 - 1",null,"R6, 1 - 0",null,"R3, 0.5 - 0.5",null,null,"R1, 0.5 - 0.5",null,null,null,null,"R1, 0 - 1","R3, 20 - 6"]
["zulu ",null,null,null,null,null,null,null,null,null,null,null,null,null,"R3, 1 - 0",null,null,null,null,null,null,null,"R2, 1 - 0",null,null,"R5, 1 - 0",null,null,null,null,null,null,null,null,null,null,null,null,null,null,null,null,null,null,null,null,null,"R1, 0.5 - 0.5",null,null,null,null,"R4, 0 - 1",null,null,null,null,null,null,null,null,null,null,null,null,null,null,null,null,null,null,null,null,null,null,null,null,null,null,null,null,null,null,null,null,null,null,null,null,null,null,null,null,null,null,null,null,null,null,null,"R1, 0 - 1","R1, 0 - 1",null,"R6, 0 - 1",null,null,null,"R2, 0.5 - 0.5","R4, 0 - 1",null,"R5, 0.5 - 0.5","R5, 0.5 - 0.5",null,null,"R1, 6 - 22",null,null,"R2, 0.5 - 0.5","R5, 0.5 - 0.5","R4, 0.5 - 0.5","R4, 0.5 - 0.5","R3, 0.5 - 0.5","R3, 0.5 - 0.5","R3, 1 - 0","R1, 1 - 0","R6, 0 - 1","R5, 0.5 - 0.5",null,"R2, 1 - 0"]
["Endalos ",null,null,null,null,null,null,null,null,null,null,null,null,"R3, 0.5 - 0.5",null,null,null,null,"R2, 0.5 - 0.5",null,null,null,null,null,null,null,null,"R5, 1 - 0",null,null,null,null,null,null,null,null,null,null,null,null,null,null,null,null,null,null,"R1, 0 - 1",null,null,null,null,null,null,null,null,null,"R4, 0 - 1",null,null,null,null,null,null,null,null,null,null,null,null,null,null,null,null,null,null,null,null,null,null,null,null,null,null,null,null,null,null,null,null,null,null,null,null,null,null,null,null,null,null,null,null,null,"R6, 0.5 - 0.5",null,null,"R4, 1 - 0","R2, 1 - 0",null,null,null,null,null,"R5, 0 - 1","R5, 1 - 0","R4, 0 - 1","R2, 0.5 - 0.5",null,"R4, 0 - 1",null,null,null,"R1, 0 - 1",null,null,null,null,"R3, 0 - 1",null,"R5, 0.5 - 0.5"]
["The_Ref ",null,null,null,null,null,null,null,null,null,null,null,null,null,null,"R3, 1 - 0",null,null,null,null,null,"R2, 0.5 - 0.5",null,null,null,null,null,null,"R5, 0 - 1",null,null,null,null,null,null,null,null,null,null,null,null,"R1, 0 - 1",null,null,null,null,null,null,null,null,null,"R4, 0 - 1",null,null,null,null,null,null,null,null,null,null,null,null,null,null,null,null,null,null,null,null,null,null,null,null,null,null,null,null,null,null,null,null,null,null,null,null,null,null,null,null,null,null,null,null,null,null,null,null,"R6, 0.5 - 0.5",null,null,"R1, 1 - 0",null,"R5, 0.5 - 0.5","R4, 0 - 1",null,null,null,null,null,"R2, 0.5 - 0.5",null,"R5, 0 - 1","R4, 0.5 - 0.5",null,"R5, 1 - 0","R4, 0.5 - 0.5",null,null,null,"R1, 0 - 1",null,"R5, 0 - 1","R3, 1 - 0","R2, 1 - 0","R3, 0.5 - 0.5"]
["straume ",null,null,null,null,null,null,null,null,null,null,"R3, 0.5 - 0.5",null,null,null,null,null,null,null,null,null,null,null,"R2, 0 - 1",null,null,"R5, 0.5 - 0.5",null,null,null,null,null,null,null,null,null,null,null,null,null,null,null,null,null,null,null,null,null,"R1, 0.5 - 0.5",null,null,null,null,null,null,"R4, 0 - 1",null,null,null,null,null,null,null,null,null,null,null,null,null,null,null,null,null,null,null,null,null,null,null,null,null,null,null,null,null,null,null,null,null,null,null,null,null,null,null,null,null,"R6, 0.5 - 0.5",null,null,null,"R1, 0.5 - 0.5",null,null,null,"R2, 0.5 - 0.5","R5, 0.5 - 0.5","R2, 4 - 21",null,null,null,null,"R4, 1 - 0","R4, 0.5 - 0.5","R5, 0 - 1",null,"R1, 9 - 10","R5, 1 - 0",null,"R3, 0.5 - 0.5",null,null,"R5, 1 - 0","R1, 0.5 - 0.5",null,"R3, 0 - 1","R5, 1 - 0"]
["bothun ",null,null,null,null,null,null,null,null,null,null,null,null,null,null,null,"R3, 0 - 1","R2, 0.5 - 0.5",null,null,null,null,null,null,null,null,null,null,null,"R5, 0.5 - 0.5",null,null,null,null,null,null,null,null,null,null,null,null,"R1, 0.5 - 0.5",null,null,null,null,null,null,null,"R4, 0 - 1",null,null,null,null,null,null,null,null,null,null,null,null,null,null,null,null,null,null,null,null,null,null,null,null,null,null,null,null,null,null,null,null,null,null,null,null,null,null,null,null,null,null,null,null,null,null,null,null,"R6, 1 - 0",null,null,"R4, 0 - 1","R2, 1 - 0","R1, 1 - 0",null,null,"R4, 1 - 0",null,"R2, 0.5 - 0.5",null,null,null,"R4, 1 - 0",null,null,null,"R5, 23 - 4","R1, 5 - 23","R4, 1 - 0","R5, 1 - 0",null,null,null,"R3, 0.5 - 0.5","R5, 0 - 1","R2, 0 - 1","R3, 1 - 0","R1, 0 - 1"]
["FrankPedersen ",null,null,null,null,null,null,null,null,null,null,null,"R3, 0 - 1",null,null,null,null,null,null,"R2, 0.5 - 0.5",null,null,null,null,null,null,null,null,null,null,null,"R5, 0 - 1",null,null,null,null,null,null,null,null,null,null,null,"R1, 0 - 1",null,null,null,null,null,null,null,null,null,"R4, 0 - 1",null,null,null,null,null,null,null,null,null,null,null,null,null,null,null,null,null,null,null,null,null,null,null,null,null,null,null,null,null,null,null,null,null,null,null,null,null,null,null,null,null,null,null,null,"R6, 0.5 - 0.5",null,"R1, 1 - 0","R4, 1 - 0",null,null,"R2, 1 - 0",null,null,null,null,null,"R4, 1 - 0","R2, 1 - 0",null,null,null,"R5, 1 - 0","R4, 1 - 0","R4, 1 - 0",null,"R5, 0.5 - 0.5",null,null,"R3, 0 - 1","R5, 1 - 0",null,null,"R1, 0.5 - 0.5",null,"R3, 0 - 1"]
["mynock ",null,null,null,null,null,null,null,null,null,"R3, 1 - 0",null,null,null,null,null,null,null,null,null,null,null,null,null,"R2, 0.5 - 0.5",null,null,null,null,null,null,null,"R5, 0 - 1",null,null,null,null,null,null,null,null,null,null,null,null,"R1, 1 - 0",null,null,null,"R4, 1 - 0",null,null,null,null,null,null,null,null,null,null,null,null,null,null,null,null,null,null,null,null,null,null,null,null,null,null,null,null,null,null,null,null,null,null,null,null,null,null,null,null,null,null,null,null,null,null,null,null,null,null,null,null,"R2, 0 - 1",null,"R6, 0.5 - 0.5",null,"R5, 0 - 1",null,"R5, 1 - 0",null,"R2, 0 - 1","R4, 1 - 0",null,"R1, 9 - 9",null,"R5, 0.5 - 0.5","R4, 0 - 1",null,null,"R6, 1 - 0","R4, 1 - 0",null,null,null,null,"R1, 0.5 - 0.5",null,"R5, 0 - 1","R3, 1 - 0"]
["GreatWhiteHope ",null,null,null,null,null,null,null,null,"R3, 0 - 1",null,null,null,null,null,null,null,null,null,null,"R2, 0 - 1",null,null,null,null,null,null,null,null,null,"R5, 1 - 0",null,null,null,null,null,null,null,null,null,null,null,null,null,"R1, 1 - 0",null,null,null,null,null,null,null,null,null,"R4, 0.5 - 0.5",null,null,null,null,null,null,null,null,null,null,null,null,null,null,null,null,null,null,null,null,null,null,null,null,null,null,null,null,null,null,null,null,null,null,null,null,null,null,null,null,null,null,null,null,null,null,"R6, 0.5 - 0.5",null,"R1, 1 - 0",null,null,null,null,"R2, 1 - 0","R4, 1 - 0",null,null,null,null,null,"R4, 0 - 1","R5, 0 - 1",null,"R4, 0.5 - 0.5","R4, 0 - 1","R1, 9 - 11","R5, 0.5 - 0.5","R3, 0 - 1",null,null,null,null,"R1, 1 - 0"]
["Mewash ",null,null,null,null,null,"R4, 0.5 - 0.5",null,null,null,null,null,null,null,null,null,null,null,null,null,null,null,null,"R5, 1 - 0",null,null,"R1, 0.5 - 0.5",null,null,null,null,null,null,null,null,"R2, 1 - 0",null,null,null,null,null,null,null,null,null,null,null,null,null,null,null,null,null,null,null,null,null,null,null,null,null,null,null,null,"R6, 1 - 0",null,null,null,null,null,null,null,null,null,null,null,null,null,null,null,null,null,null,null,null,null,null,null,null,null,null,null,null,null,null,null,null,null,null,null,null,"R3, 0 - 1","R6, 0 - 1",null,"R5, 0 - 1",null,"R3, 1 - 0",null,null,null,null,null,null,null,null,"R1, 0.5 - 0.5","R6, 1 - 0","R4, 20 - 4",null,"R1, 0 - 1",null,null,"R5, 1 - 0",null,null,null,null,null,"R1, 20 - 5"]
["Reszka ",null,null,null,null,null,null,null,"R4, 1 - 0",null,null,null,null,null,null,null,null,null,null,null,"R5, 0.5 - 0.5",null,null,null,null,null,null,"R1, 1 - 0",null,null,null,null,null,"R2, 0.5 - 0.5",null,null,null,null,null,null,null,null,null,null,null,null,null,null,null,null,null,null,null,null,null,null,null,null,null,null,null,null,"R6, 0.5 - 0.5",null,null,null,null,null,null,null,null,null,null,null,null,null,null,null,null,null,null,null,null,null,null,null,null,null,null,null,null,null,null,null,null,null,null,null,null,null,null,"R3, 0.5 - 0.5","R3, 0 - 1",null,"R6, 0 - 1","R3, 0.5 - 0.5",null,null,null,null,null,null,null,"R3, 0 - 1","R6, 1 - 0",null,"R1, 0 - 1",null,null,null,null,null,null,"R5, 0.5 - 0.5","R1, 4 - 20","R4, 0 - 1"]
["Leonek ",null,null,null,null,null,null,"R4, 1 - 0",null,null,null,null,null,null,null,null,null,null,null,null,null,"R5, 1 - 0",null,null,null,null,null,null,"R1, 0.5 - 0.5",null,null,null,null,null,null,null,"R2, 0 - 1",null,null,null,null,null,null,null,null,null,null,null,null,null,null,null,null,null,null,null,null,"R6, 0.5 - 0.5",null,null,null,null,null,null,null,null,null,null,null,null,null,null,null,null,null,null,null,null,null,null,null,null,null,null,null,null,null,null,null,null,null,null,null,null,null,null,null,null,null,null,"R3, 1 - 0","R3, 20 - 6","R2, 0 - 1",null,"R3, 0 - 1",null,null,null,null,"R3, 0 - 1",null,null,null,null,null,null,null,"R1, 1 - 0",null,"R6, 0 - 1",null,null,null,null,null,"R5, 1 - 0",null,null,"R2, 0 - 1"]
["Domingo ","R4, 0 - 1",null,null,null,null,null,null,null,null,null,null,null,null,null,null,null,null,null,null,null,null,null,null,"R5, 0 - 1",null,null,null,null,null,null,null,"R1, 0.5 - 0.5",null,null,null,null,null,null,"R2, 1 - 0",null,null,null,null,null,null,null,null,null,null,null,null,null,null,null,null,null,null,"R6, 0 - 1",null,null,null,null,null,null,null,null,null,null,null,null,null,null,null,null,null,null,null,null,null,null,null,null,null,null,null,null,null,null,null,null,null,null,null,null,null,null,null,null,null,"R3, 1 - 0",null,null,"R6, 1 - 0",null,"R4, 23 - 4",null,null,null,null,null,"R3, 0.5 - 0.5",null,null,"R1, 1 - 0",null,"R3, 1 - 0",null,"R6, 0.5 - 0.5","R1, 1 - 0",null,"R5, 0 - 1",null,null,"R5, 1 - 0",null,null,"R5, 0 - 1"]
["Slimaq ",null,"R4, 0.5 - 0.5",null,null,null,null,null,null,null,null,null,null,null,null,null,null,null,null,null,null,null,"R5, 1 - 0",null,null,"R1, 1 - 0",null,null,null,null,null,null,null,null,null,null,null,null,"R2, 0 - 1",null,null,null,null,null,null,null,null,null,null,null,null,null,null,null,null,null,null,null,null,"R6, 0.5 - 0.5",null,null,null,null,null,null,null,null,null,null,null,null,null,null,null,null,null,null,null,null,null,null,null,null,null,null,null,null,null,null,null,null,null,null,null,null,null,null,null,null,"R2, 1 - 0","R6, 1 - 0",null,"R2, 21 - 3","R4, 1 - 0",null,"R2, 0 - 1",null,null,null,"R3, 0 - 1",null,null,"R2, 1 - 0",null,null,null,null,null,null,"R1, 0 - 1",null,null,null,null,null,null,"R5, 0.5 - 0.5"]
["Warrior1980 ",null,null,null,"R4, 0.5 - 0.5",null,null,null,null,null,null,null,null,null,null,null,null,null,null,"R5, 1 - 0",null,null,null,null,null,null,null,null,null,null,"R1, 1 - 0",null,null,null,"R2, 0.5 - 0.5",null,null,null,null,null,null,null,null,null,null,null,null,null,null,null,null,null,null,null,null,null,null,null,null,null,null,null,null,"R6, 1 - 0",null,null,null,null,null,null,null,null,null,null,null,null,null,null,null,null,null,null,null,null,null,null,null,null,null,null,null,null,null,null,null,null,null,null,null,null,"R6, 1 - 0",null,null,"R3, 1 - 0",null,null,null,"R3, 0.5 - 0.5",null,null,null,null,null,null,"R1, 0 - 1","R1, 1 - 0",null,"R6, 1 - 0",null,null,null,null,"R4, 0 - 1",null,"R5, 1 - 0",null,"R1, 20 - 4","R6, 0.5 - 0.5"]
["Juniooor7 ",null,null,"R4, 1 - 0",null,null,null,null,null,null,null,null,null,null,null,null,null,"R5, 0 - 1",null,null,null,null,null,null,null,null,null,null,null,null,null,"R1, 1 - 0",null,null,null,null,null,null,null,null,"R2, 0 - 1",null,null,null,null,null,null,null,null,null,null,null,null,null,null,null,null,null,null,null,null,"R6, 0 - 1",null,null,null,null,null,null,null,null,null,null,null,null,null,null,null,null,null,null,null,null,null,null,null,null,null,null,null,null,null,null,null,null,null,null,null,null,null,null,null,null,"R3, 1 - 0",null,"R3, 0 - 1",null,null,null,"R2, 0 - 1",null,null,null,"R3, 1 - 0",null,null,"R6, 0 - 1",null,null,"R1, 0.5 - 0.5",null,"R2, 1 - 0",null,null,"R1, 2 - 17",null,null,null,null,"R5, 0.5 - 0.5"]
["Shawass ",null,null,null,null,"R4, 0 - 1",null,null,null,null,null,null,null,null,null,null,null,null,"R5, 0 - 1",null,null,null,null,null,null,null,null,null,null,"R1, 1 - 0",null,null,null,null,null,null,null,"R2, 0 - 1",null,null,null,null,null,null,null,null,null,null,null,null,null,null,null,null,null,null,null,null,null,null,"R6, 0 - 1",null,null,null,null,null,null,null,null,null,null,null,null,null,null,null,null,null,null,null,null,null,null,null,null,null,null,null,null,null,null,null,null,null,null,null,null,null,null,null,null,null,null,"R2, 1 - 0",null,null,"R3, 17 - 3",null,"R3, 0.5 - 0.5",null,null,null,null,"R1, 0.5 - 0.5",null,"R2, 6 - 19",null,null,null,null,null,"R5, 0 - 1","R1, 20 - 4",null,"R6, 0 - 1",null,"R5, 1 - 0"]
["DonShula ",null,null,null,null,null,null,null,null,null,null,null,null,null,"R6, 1 - 0",null,null,null,null,null,null,null,null,null,null,null,null,"R4, 1 - 0",null,null,null,null,null,null,null,null,null,null,null,null,null,null,null,null,null,null,null,null,null,null,null,null,null,null,null,null,null,null,null,null,null,null,null,null,null,null,null,null,null,null,null,null,null,null,null,null,null,null,null,null,null,null,null,null,null,null,null,null,null,null,null,null,null,null,"R5, 0 - 1",null,null,"R2, 0.5 - 0.5",null,null,"R2, 20 - 8",null,null,null,null,null,null,null,"R1, 0.5 - 0.5",null,null,null,null,null,"R6, 0 - 1","R4, 1 - 0",null,"R1, 0 - 1",null,"R1, 1 - 0","R6, 1 - 0","R2, 0.5 - 0.5","R3, 1 - 0",null,null,"R2, 1 - 0"]
["Garrick ",null,null,null,null,null,null,null,null,null,null,null,null,null,null,"R6, 1 - 0",null,null,null,null,null,null,null,null,null,null,null,null,null,null,null,null,"R4, 0 - 1",null,null,null,null,null,null,null,null,null,null,null,null,null,null,null,null,null,null,null,null,null,null,null,null,null,null,null,null,null,null,null,null,null,null,null,null,null,null,null,null,null,null,null,null,null,null,null,null,null,null,null,null,null,null,null,null,null,null,null,null,null,null,null,"R5, 0 - 1",null,null,null,"R1, 5 - 21","R2, 0 - 1",null,null,null,"R3, 0 - 1",null,null,"R4, 6 - 21","R1, 0.5 - 0.5",null,null,null,null,"R1, 0 - 1","R6, 0 - 1",null,null,"R5, 0 - 1","R5, 0.5 - 0.5","R1, 0.5 - 0.5","R2, 0 - 1",null,null,"R2, 1 - 0","R2, 0.5 - 0.5","R3, 1 - 0",null,"R2, 0.5 - 0.5"]
["Purdindas ",null,null,null,null,null,null,null,null,null,null,"R6, 0 - 1",null,null,null,null,null,null,null,null,null,null,null,null,null,null,null,null,null,null,null,"R4, 1 - 0",null,null,null,null,null,null,null,null,null,null,null,null,null,null,null,null,null,null,null,null,null,null,null,null,null,null,null,null,null,null,null,null,null,null,null,null,null,null,null,null,null,null,null,null,null,null,null,null,null,null,null,null,null,null,null,null,null,null,null,null,null,"R5, 1 - 0",null,null,null,null,null,null,"R5, 0.5 - 0.5","R6, 1 - 0","R2, 0.5 - 0.5",null,null,null,null,null,null,null,"R1, 0.5 - 0.5",null,null,null,null,"R1, 0 - 1","R6, 0.5 - 0.5",null,"R6, 0 - 1","R6, 0.5 - 0.5",null,"R3, 0 - 1","R2, 0 - 1","R1, 1 - 0","R4, 1 - 0",null,null,null,"R2, 0 - 1"]
["JamesEs ",null,null,null,null,null,null,null,null,null,null,null,null,"R6, 1 - 0",null,null,null,null,null,null,null,null,null,null,null,null,null,null,null,"R4, 0 - 1",null,null,null,null,null,null,null,null,null,null,null,null,null,null,null,null,null,null,null,null,null,null,null,null,null,null,null,null,null,null,null,null,null,null,null,null,null,null,null,null,null,null,null,null,null,null,null,null,null,null,null,null,null,null,null,null,null,null,null,null,"R5, 0 - 1",null,null,null,null,null,null,null,null,null,"R2, 0 - 1","R5, 1 - 0",null,null,null,null,null,null,null,null,null,"R1, 1 - 0",null,"R1, 0.5 - 0.5",null,null,null,"R6, 1 - 0",null,null,"R1, 0 - 1","R1, 0 - 1",null,null,"R3, 0 - 1",null,"R2, 0 - 1","R2, 0.5 - 0.5","R1, 0 - 1"]
["sann0638 ",null,null,null,null,null,null,null,null,"R6, 0 - 1",null,null,null,null,null,null,null,null,null,null,null,null,null,null,null,null,"R4, 1 - 0",null,null,null,null,null,null,null,null,null,null,null,null,null,null,null,null,null,null,null,null,null,null,null,null,null,null,null,null,null,null,null,null,null,null,null,null,null,null,null,null,null,null,null,null,null,null,null,null,null,null,null,null,null,null,null,null,null,null,null,null,null,null,"R5, 0.5 - 0.5",null,null,null,null,null,null,null,null,"R2, 1 - 0",null,null,"R2, 9 - 8","R1, 10 - 10",null,null,null,"R1, 0.5 - 0.5",null,null,null,null,"R4, 1 - 0",null,null,null,null,"R1, 1 - 0",null,"R6, 0 - 1","R1, 0.5 - 0.5","R2, 0.5 - 0.5",null,"R2, 1 - 0","R3, 0 - 1","R2, 1 - 0"]
["Valen ",null,null,null,null,null,null,null,null,null,null,null,null,null,null,null,"R6, 1 - 0",null,null,null,null,null,null,null,null,"R4, 0.5 - 0.5",null,null,null,null,null,null,null,null,null,null,null,null,null,null,null,null,null,null,null,null,null,null,null,null,null,null,null,null,null,null,null,null,null,null,null,null,null,null,null,null,null,null,null,null,null,null,null,null,null,null,null,null,null,null,null,null,null,null,null,null,null,null,null,null,null,null,null,null,null,"R5, 0.5 - 0.5",null,null,null,"R2, 0 - 1",null,"R6, 0.5 - 0.5","R5, 0.5 - 0.5","R1, 4 - 18",null,"R1, 1 - 0","R4, 0 - 1",null,null,null,null,"R3, 0 - 1",null,"R6, 0 - 1",null,null,null,"R6, 0 - 1","R1, 1 - 0",null,null,null,null,null,"R1, 1 - 0","R3, 1 - 0",null,"R2, 1 - 0","R2, 0.5 - 0.5"]
["Loki ",null,null,null,null,null,null,null,null,null,"R6, 0 - 1",null,null,null,null,null,null,null,null,null,null,null,null,null,null,null,null,null,"R4, 0 - 1",null,null,null,null,null,null,null,null,null,null,null,null,null,null,null,null,null,null,null,null,null,null,null,null,null,null,null,null,null,null,null,null,null,null,null,null,null,null,null,null,null,null,null,null,null,null,null,null,null,null,null,null,null,null,null,null,null,null,null,null,null,null,null,"R5, 0.5 - 0.5",null,null,null,null,null,null,null,null,null,null,"R2, 1 - 0","R1, 11 - 11",null,null,null,null,"R2, 6 - 22",null,null,"R1, 0.5 - 0.5",null,"R1, 0 - 1","R3, 0.5 - 0.5",null,"R1, 0.5 - 0.5","R6, 1 - 0",null,"R6, 1 - 0","R2, 1 - 0",null,"R2, 0 - 1",null,"R2, 0.5 - 0.5","R1, 1 - 0","R1, 0 - 1","R3, 0 - 1"]
["HumptyTrump ",null,null,null,null,null,null,null,null,null,null,null,"R6, 0.5 - 0.5",null,null,null,null,null,null,null,null,null,null,null,null,null,null,null,null,null,"R4, 0.5 - 0.5",null,null,null,null,null,null,null,null,null,null,null,null,null,null,null,null,null,null,null,null,null,null,null,null,null,null,null,null,null,null,null,null,null,null,null,null,null,null,null,null,null,null,null,null,null,null,null,null,null,null,null,null,null,null,null,null,null,null,null,null,"R5, 1 - 0",null,null,null,null,null,null,null,null,null,null,null,"R4, 0.5 - 0.5","R2, 0 - 1",null,null,"R1, 0 - 1","R3, 0 - 1",null,"R3, 1 - 0","R6, 1 - 0",null,null,null,"R6, 0.5 - 0.5","R1, 0.5 - 0.5",null,"R1, 1 - 0",null,null,null,null,"R2, 1 - 0",null,"R1, 0.5 - 0.5","R2, 0.5 - 0.5","R3, 0.5 - 0.5"]
["Dark Duke ",null,null,null,"R6, 0.5 - 0.5",null,null,null,null,null,null,null,null,null,null,null,null,null,null,null,null,null,null,null,null,null,null,null,"R3, 1 - 0",null,null,null,null,null,null,null,null,null,null,null,null,null,null,null,null,null,null,null,null,null,null,null,null,null,null,"R2, 0.5 - 0.5",null,"R1, 0 - 1",null,null,null,null,null,null,null,null,null,null,null,null,null,null,null,null,null,null,null,null,null,null,null,null,null,null,null,"R5, 0.5 - 0.5",null,null,null,null,null,null,null,null,null,null,null,null,null,null,"R5, 1 - 0",null,"R3, 0 - 1","R1, 0.5 - 0.5",null,null,null,null,null,"R5, 0.5 - 0.5","R4, 0.5 - 0.5",null,null,null,null,"R1, 0 - 1","R1, 0.5 - 0.5",null,"R5, 0.5 - 0.5","R5, 0 - 1",null,null,"R3, 12 - 15","R4, 1 - 0",null,null,null,null,"R6, 0.5 - 0.5"]
["Obeliz ",null,"R6, 1 - 0",null,null,null,null,null,null,null,null,null,null,null,null,null,null,null,null,null,null,null,null,null,null,null,null,"R3, 0 - 1",null,null,null,null,null,null,null,null,null,null,null,null,null,null,null,null,null,null,null,null,null,null,null,null,null,null,null,null,"R2, 0 - 1",null,null,null,null,null,null,null,"R1, 0 - 1",null,null,null,null,null,null,null,null,null,null,null,null,null,null,null,null,null,null,null,"R5, 1 - 0",null,null,null,null,null,null,null,null,null,null,null,null,null,null,null,null,null,null,null,null,null,"R4, 0 - 1","R5, 0.5 - 0.5",null,null,null,null,null,"R5, 0 - 1","R1, 0.5 - 0.5","R3, 0 - 1",null,null,null,null,"R1, 0 - 1",null,"R6, 1 - 0",null,null,null,"R4, 0 - 1",null,"R3, 19 - 4"]
["Joanet ",null,null,null,null,null,null,"R6, 0 - 1",null,null,null,null,null,null,null,null,null,null,null,null,null,null,null,null,null,null,null,null,null,"R3, 1 - 0",null,null,null,null,null,null,null,null,null,null,null,null,null,null,null,null,null,null,null,null,"R2, 0 - 1",null,null,null,null,null,null,null,null,null,"R1, 0 - 1",null,null,null,null,null,null,null,null,null,null,null,null,null,null,null,null,null,null,null,null,null,null,null,null,null,null,null,"R5, 0 - 1",null,null,null,null,null,null,null,null,null,null,null,null,null,null,"R3, 1 - 0",null,"R5, 0 - 1",null,null,null,"R6, 0.5 - 0.5",null,"R2, 12 - 10",null,"R1, 0 - 1","R5, 1 - 0","R1, 0.5 - 0.5",null,null,null,null,null,"R6, 0 - 1","R4, 0 - 1",null,"R3, 19 - 1","R3, 22 - 2",null,null,"R6, 0.5 - 0.5"]
["Duke_Luthor_Von_Hawkfire ",null,null,"R6, 0.5 - 0.5",null,null,null,null,null,null,null,null,null,null,null,null,null,null,null,null,null,null,null,null,null,null,null,null,null,null,"R3, 0.5 - 0.5",null,null,null,null,null,null,null,null,null,null,null,null,null,null,null,null,null,null,"R2, 0.5 - 0.5",null,null,null,null,null,null,null,null,null,null,null,null,"R1, 0 - 1",null,null,null,null,null,null,null,null,null,null,null,null,null,null,null,null,null,null,null,null,null,null,null,null,"R5, 0.5 - 0.5",null,null,null,null,null,null,null,null,null,null,null,null,"R1, 0.5 - 0.5",null,null,"R2, 0.5 - 0.5",null,null,null,null,"R5, 0.5 - 0.5",null,null,null,"R6, 0.5 - 0.5",null,null,null,null,"R5, 0 - 1","R1, 0 - 1",null,null,null,"R5, 0 - 1","R4, 0.5 - 0.5","R6, 0.5 - 0.5","R4, 0 - 1"]
["Barry ",null,null,null,null,null,null,null,"R6, 0.5 - 0.5",null,null,null,null,null,null,null,null,null,null,null,null,null,null,null,null,"R3, 0 - 1",null,null,null,null,null,null,null,null,null,null,null,null,null,null,null,null,null,null,null,null,null,null,null,null,null,"R2, 0 - 1",null,null,null,null,null,null,null,null,null,null,null,"R1, 1 - 0",null,null,null,null,null,null,null,null,null,null,null,null,null,null,null,null,null,null,null,"R5, 0 - 1",null,null,null,null,null,null,null,null,null,null,null,null,null,null,null,null,null,"R2, 11 - 10",null,null,null,null,null,"R3, 0 - 1",null,null,null,null,"R5, 0 - 1",null,"R1, 1 - 0","R5, 0 - 1","R1, 0 - 1",null,null,null,"R6, 0.5 - 0.5","R4, 0.5 - 0.5",null,"R6, 0.5 - 0.5",null,"R2, 0 - 1"]
["Idroj ",null,null,null,null,null,"R6, 0.5 - 0.5",null,null,null,null,null,null,null,null,null,null,null,null,null,null,null,null,null,null,null,null,null,null,null,null,"R3, 1 - 0",null,null,null,null,null,null,null,null,null,null,null,null,null,null,null,null,null,null,null,null,null,null,"R2, 0.5 - 0.5",null,null,null,"R1, 0 - 1",null,null,null,null,null,null,null,null,null,null,null,null,null,null,null,null,null,null,null,null,null,null,"R5, 1 - 0",null,null,null,null,null,null,null,null,null,null,null,null,null,null,null,null,null,null,"R3, 1 - 0","R5, 5 - 21","R1, 1 - 0",null,"R3, 0 - 1",null,"R5, 1 - 0",null,null,null,null,null,null,"R1, 1 - 0",null,null,null,null,null,"R1, 0 - 1",null,null,null,"R3, 2 - 17",null,null,"R6, 1 - 0",null,"R4, 1 - 0"]
["Malasnoticias ","R6, 0.5 - 0.5",null,null,null,null,null,null,null,null,null,null,null,null,null,null,null,null,null,null,null,null,null,null,null,null,"R3, 1 - 0",null,null,null,null,null,null,null,null,null,null,null,null,null,null,null,null,null,null,null,null,null,null,null,null,null,null,"R2, 1 - 0",null,null,null,null,null,null,null,"R1, 0 - 1",null,null,null,null,null,null,null,null,null,null,null,null,null,null,null,null,null,null,null,null,null,null,null,null,"R5, 0.5 - 0.5",null,null,null,null,null,null,null,null,null,null,null,null,null,null,null,null,"R6, 0.5 - 0.5","R1, 1 - 0","R5, 6 - 20",null,null,null,null,"R5, 0.5 - 0.5",null,null,null,null,null,"R5, 0 - 1","R1, 1 - 0",null,null,"R1, 0.5 - 0.5",null,"R4, 0 - 1",null,"R4, 1 - 0",null,"R3, 19 - 5","R6, 0 - 1"]
["Tactel ",null,null,null,null,"R6, 0 - 1",null,null,null,null,null,null,null,null,null,null,null,null,null,null,null,null,null,null,null,null,null,null,null,null,null,null,"R3, 0 - 1",null,null,null,null,null,null,null,null,null,null,null,null,null,null,null,null,null,null,null,"R2, 0 - 1",null,null,null,null,null,null,"R1, 1 - 0",null,null,null,null,null,null,null,null,null,null,null,null,null,null,null,null,null,null,null,null,null,null,"R5, 1 - 0",null,null,null,null,null,null,null,null,null,null,null,null,null,null,null,null,null,"R2, 21 - 1","R1, 1 - 0","R2, 0.5 - 0.5",null,null,null,null,null,null,null,"R4, 0.5 - 0.5","R5, 0 - 1",null,null,null,null,null,"R1, 0 - 1",null,"R1, 0 - 1","R5, 0 - 1",null,"R3, 11 - 12",null,"R3, 0 - 1","R6, 0 - 1",null,"R4, 0 - 1"]
["Melisqus ",null,null,null,null,null,"R1, 0 - 1",null,null,null,"R4, 1 - 0",null,null,null,null,null,null,null,null,null,null,null,null,null,null,null,null,null,null,null,null,null,null,null,null,null,null,null,null,null,null,null,null,null,null,null,null,null,null,null,null,null,null,null,"R3, 1 - 0",null,null,null,null,null,null,null,null,null,null,null,null,null,"R6, 0.5 - 0.5",null,null,null,null,null,null,null,null,null,null,null,null,"R2, 0.5 - 0.5",null,null,null,null,null,null,null,null,null,null,null,null,null,null,null,null,null,null,"R4, 20 - 6",null,null,null,null,null,null,"R3, 0.5 - 0.5",null,"R5, 0 - 1","R6, 0 - 1",null,"R1, 12 - 12",null,"R3, 1 - 0",null,null,"R1, 0.5 - 0.5","R2, 21 - 4","R5, 20 - 4"]
["Inforthepain ",null,"R1, 1 - 0",null,null,null,null,null,null,null,null,null,"R4, 0.5 - 0.5",null,null,null,null,null,null,null,null,null,null,null,null,null,null,null,null,null,null,null,null,null,null,null,null,null,null,null,null,null,null,null,null,null,null,null,null,"R3, 0 - 1",null,null,null,null,null,null,null,null,null,null,null,null,null,null,null,null,null,null,null,null,"R6, 0.5 - 0.5",null,null,null,null,null,null,null,null,null,null,null,null,null,null,"R2, 0 - 1",null,null,null,null,null,null,null,null,null,null,null,null,null,null,null,null,null,null,null,null,"R5, 1 - 0",null,"R5, 0 - 1",null,null,"R6, 0 - 1","R6, 0.5 - 0.5",null,"R1, 0 - 1",null,null,null,null,null,null,null,null,null,null,null,null,"R2, 1 - 0"]
["Pidpad ",null,null,null,null,null,null,"R1, 1 - 0",null,null,null,null,null,null,null,null,"R4, 0.5 - 0.5",null,null,null,null,null,null,null,null,null,null,null,null,null,null,null,null,null,null,null,null,null,null,null,null,null,null,null,null,null,null,null,null,null,null,"R3, 1 - 0",null,null,null,null,null,null,null,null,null,null,null,null,null,null,null,null,null,"R6, 0 - 1",null,null,null,null,null,null,null,null,null,null,null,null,null,null,null,null,"R2, 1 - 0",null,null,null,null,null,null,null,null,null,null,null,null,null,null,null,null,null,null,"R5, 0 - 1",null,"R1, 19 - 3","R6, 0.5 - 0.5","R3, 1 - 0",null,null,null,null,"R5, 12 - 10","R3, 20 - 3",null,null,"R1, 0.5 - 0.5",null,null,"R4, 0.5 - 0.5"]
["Skuld ",null,null,"R1, 0.5 - 0.5",null,null,null,null,null,null,null,"R4, 0 - 1",null,null,null,null,null,null,null,null,null,null,null,null,null,null,null,null,null,null,null,null,null,null,null,null,null,null,null,null,null,null,null,null,null,null,null,null,null,null,null,null,"R3, 0 - 1",null,null,null,null,null,null,null,null,null,null,null,null,null,null,"R6, 0.5 - 0.5",null,null,null,null,null,null,null,null,null,null,null,null,null,null,null,null,"R2, 1 - 0",null,null,null,null,null,null,null,null,null,null,null,null,null,null,null,null,"R6, 1 - 0",null,null,null,"R5, 1 - 0","R1, 4 - 19",null,"R5, 2 - 18","R6, 1 - 0","R5, 0 - 1",null,null,null,null,"R1, 0.5 - 0.5",null,null,null,null,null,"R6, 0.5 - 0.5","R2, 0.5 - 0.5"]
["JohnnyD ",null,null,null,null,null,null,null,"R1, 0 - 1",null,null,null,null,null,"R4, 0 - 1",null,null,null,null,null,null,null,null,null,null,null,null,null,null,null,null,null,null,null,null,null,null,null,null,null,null,null,null,null,null,null,null,null,null,null,"R3, 0.5 - 0.5",null,null,null,null,null,null,null,null,null,null,null,null,null,null,null,null,null,null,null,null,null,"R6, 0.5 - 0.5",null,null,null,null,null,null,null,null,null,"R2, 1 - 0",null,null,null,null,null,null,null,null,null,null,null,null,null,null,null,null,null,"R6, 0 - 1",null,null,null,null,"R6, 0 - 1",null,"R6, 1 - 0","R5, 0.5 - 0.5",null,null,"R2, 1 - 0","R5, 0.5 - 0.5","R1, 0 - 1","R6, 20 - 3",null,null,null,null,null,null,null,null,null,null,null,"R4, 0.5 - 0.5"]
["Skoberget ","R1, 0 - 1",null,null,null,null,null,null,null,"R4, 0 - 1",null,null,null,null,null,null,null,null,null,null,null,null,null,null,null,null,null,null,null,null,null,null,null,null,null,null,null,null,null,null,null,null,null,null,null,null,null,null,null,null,null,null,null,null,null,"R3, 1 - 0",null,null,null,null,null,null,null,null,null,null,"R6, 0.5 - 0.5",null,null,null,null,null,null,null,null,null,null,null,null,null,null,null,null,"R2, 0.5 - 0.5",null,null,null,null,null,null,null,null,null,null,null,null,null,null,null,null,null,null,null,null,null,"R6, 1 - 0","R5, 0.5 - 0.5","R6, 1 - 0","R6, 0.5 - 0.5","R1, 19 - 5",null,null,null,null,null,null,"R1, 1 - 0",null,null,null,null,null,null,"R5, 1 - 0"]
["Dragons ",null,null,null,"R1, 0 - 1",null,null,null,null,null,null,null,null,"R4, 1 - 0",null,null,null,null,null,null,null,null,null,null,null,null,null,null,null,null,null,null,null,null,null,null,null,null,null,null,null,null,null,null,null,null,null,null,null,null,null,null,null,"R3, 1 - 0",null,null,null,null,null,null,null,null,null,null,null,"R6, 1 - 0",null,null,null,null,null,null,null,null,null,null,null,null,null,null,null,null,null,null,null,null,null,"R2, 0 - 1",null,null,null,null,null,null,null,null,null,null,null,null,null,null,null,null,null,"R6, 0 - 1","R6, 1 - 0","R5, 0.5 - 0.5",null,null,"R1, 11 - 12",null,null,"R2, 0 - 1",null,null,"R6, 1 - 0",null,"R6, 5 - 20",null,"R1, 0.5 - 0.5",null,null,null,null,"R4, 0 - 1"]
["Pellevin ",null,null,null,null,"R1, 0 - 1",null,null,null,null,null,null,null,null,null,"R4, 1 - 0",null,null,null,null,null,null,null,null,null,null,null,null,null,null,null,null,null,null,null,null,null,null,null,null,null,null,null,null,null,null,null,null,null,null,null,null,null,null,null,null,"R3, 0 - 1",null,null,null,null,null,null,null,null,null,null,null,null,null,null,"R6, 0.5 - 0.5",null,null,null,null,null,null,null,null,null,null,null,null,null,null,null,null,"R2, 1 - 0",null,null,null,null,null,null,null,null,null,null,null,null,null,null,null,null,"R5, 0 - 1",null,null,"R2, 0 - 1",null,null,"R5, 1 - 0","R6, 0.5 - 0.5","R5, 0.5 - 0.5","R3, 10 - 10",null,null,null,null,"R1, 0 - 1","R2, 13 - 15","R4, 1 - 0",null,null,"R5, 8 - 9"]
["Strider84 ",null,null,null,null,null,null,null,null,null,null,null,null,null,null,null,null,null,null,null,null,null,null,null,"R4, 1 - 0",null,null,null,null,null,null,null,null,null,null,null,null,null,null,null,null,null,null,null,null,null,null,null,null,null,null,null,null,null,null,"R1, 1 - 0",null,null,"R2, 0.5 - 0.5",null,null,null,null,null,null,null,null,null,null,null,null,null,null,null,"R3, 0.5 - 0.5",null,null,null,null,null,null,null,null,null,null,null,null,null,null,null,null,null,null,null,null,null,null,null,null,"R5, 1 - 0","R5, 0 - 1","R6, 1 - 0","R6, 0 - 1","R6, 1 - 0","R5, 1 - 0",null,null,null,null,null,null,null,null,"R6, 1 - 0","R6, 0 - 1","R1, 0 - 1","R3, 0.5 - 0.5",null,"R3, 19 - 1","R1, 0.5 - 0.5",null,null,"R2, 1 - 0","R6, 1 - 0",null,"R2, 0.5 - 0.5",null,"R4, 0.5 - 0.5","R1, 0.5 - 0.5"]
["Jokaero ",null,null,null,null,null,null,null,null,null,null,null,null,null,null,null,null,"R4, 0 - 1",null,null,null,null,null,null,null,null,null,null,null,null,null,null,null,null,null,null,null,null,null,null,null,null,null,null,null,null,null,null,null,null,null,null,null,null,null,null,"R1, 1 - 0",null,null,null,null,"R2, 0.5 - 0.5",null,null,null,null,null,null,null,null,null,null,null,"R3, 0 - 1",null,null,null,null,null,null,null,null,null,null,null,null,null,null,null,null,null,null,null,null,null,null,null,null,null,null,"R1, 19 - 4",null,"R5, 0.5 - 0.5","R6, 0 - 1",null,null,null,null,null,null,null,null,null,"R3, 17 - 2","R2, 0.5 - 0.5","R6, 1 - 0",null,"R3, 0.5 - 0.5",null,"R1, 0 - 1",null,"R4, 0.5 - 0.5",null,"R1, 1 - 0","R2, 1 - 0"]
["Phifoe ",null,null,null,null,null,null,null,null,null,null,null,null,null,null,null,null,null,null,null,"R4, 0.5 - 0.5",null,null,null,null,null,null,null,null,null,null,null,null,null,null,null,null,null,null,null,null,null,null,null,null,null,null,null,null,null,null,null,null,"R1, 1 - 0",null,null,null,null,null,null,"R2, 1 - 0",null,null,null,null,null,null,null,null,null,null,null,null,null,null,null,null,null,"R3, 0.5 - 0.5",null,null,null,null,null,null,null,null,null,null,null,null,null,null,null,null,null,null,null,null,null,null,"R6, 0 - 1","R6, 0 - 1","R5, 0.5 - 0.5",null,null,null,null,"R6, 10 - 11",null,"R5, 19 - 4",null,null,"R1, 1 - 0",null,"R3, 0 - 1","R1, 0 - 1","R6, 1 - 0",null,"R2, 1 - 0","R4, 1 - 0",null,"R1, 0 - 1",null,"R2, 0.5 - 0.5","R3, 0 - 1","R2, 0.5 - 0.5",null,"R4, 0 - 1"]
["Goss ",null,null,null,null,null,null,null,null,null,null,null,null,null,null,null,null,null,null,null,null,null,"R4, 0 - 1",null,null,null,null,null,null,null,null,null,null,null,null,null,null,null,null,null,null,null,null,null,null,null,null,null,null,null,null,"R1, 0 - 1",null,null,null,null,null,null,null,"R2, 0.5 - 0.5",null,null,null,null,null,null,null,null,null,null,null,null,null,null,null,null,null,null,null,null,"R3, 0.5 - 0.5",null,null,null,null,null,null,null,null,null,null,null,null,null,null,null,null,null,"R5, 1 - 0",null,"R5, 18 - 2","R5, 0.5 - 0.5","R6, 0.5 - 0.5",null,"R2, 1 - 0",null,null,"R6, 11 - 10",null,null,"R3, 8 - 8",null,null,null,"R3, 0 - 1",null,"R6, 0.5 - 0.5","R3, 19 - 6","R2, 0 - 1",null,"R1, 1 - 0","R2, 0.5 - 0.5","R2, 0 - 1",null,"R3, 0.5 - 0.5","R1, 0 - 1"]
["Madmatt13 ",null,null,null,null,null,null,null,null,null,null,null,null,null,null,null,null,null,"R4, 0.5 - 0.5",null,null,null,null,null,null,null,null,null,null,null,null,null,null,null,null,null,null,null,null,null,null,null,null,null,null,null,null,null,null,null,null,null,"R1, 0.5 - 0.5",null,null,null,null,null,null,null,null,null,null,"R2, 0 - 1",null,null,null,null,null,null,null,null,null,null,null,"R3, 1 - 0",null,null,null,null,null,null,null,null,null,null,null,null,null,null,null,null,null,null,null,null,null,"R5, 1 - 0",null,null,"R6, 0 - 1",null,"R1, 5 - 19",null,null,null,null,null,null,null,null,"R2, 0 - 1","R6, 0 - 1","R2, 0 - 1","R6, 1 - 0",null,"R1, 0 - 1","R1, 0 - 1",null,"R3, 5 - 21","R3, 0 - 1",null,"R6, 22 - 5","R2, 1 - 0",null,"R4, 0.5 - 0.5","R1, 1 - 0",null,"R2, 0 - 1"]
["Elrik ",null,null,null,null,null,null,null,null,null,null,null,null,null,null,null,null,null,null,"R4, 0.5 - 0.5",null,null,null,null,null,null,null,null,null,null,null,null,null,null,null,null,null,null,null,null,null,null,null,null,null,null,null,null,null,"R1, 0.5 - 0.5",null,null,null,null,null,null,null,null,null,null,null,null,null,null,"R2, 0 - 1",null,null,null,null,null,null,null,null,null,null,null,null,"R3, 1 - 0",null,null,null,null,null,null,null,null,null,null,null,null,null,null,null,null,null,null,null,null,null,null,"R5, 1 - 0",null,null,"R1, 12 - 11",null,null,null,"R5, 4 - 19","R3, 8 - 8",null,null,"R5, 1 - 0",null,"R3, 0.5 - 0.5","R1, 1 - 0",null,"R2, 1 - 0",null,null,"R6, 0.5 - 0.5",null,"R1, 1 - 0","R3, 0 - 1","R4, 1 - 0",null,null,null,"R2, 1 - 0"]
["sigu70 ",null,null,null,null,null,null,null,null,null,null,null,null,null,null,null,null,null,null,null,null,null,null,"R4, 0.5 - 0.5",null,null,null,null,null,null,null,null,null,null,null,null,null,null,null,null,null,null,null,null,null,null,null,null,null,null,"R1, 1 - 0",null,null,null,null,null,null,"R2, 1 - 0",null,null,null,null,null,null,null,null,null,null,null,null,null,null,null,null,null,null,"R3, 0.5 - 0.5",null,null,null,null,null,null,null,null,null,null,null,null,null,null,null,null,null,null,null,null,null,null,null,null,"R2, 0 - 1",null,null,"R5, 0 - 1",null,null,null,null,"R2, 1 - 0","R5, 0 - 1",null,null,"R5, 0.5 - 0.5",null,null,"R4, 1 - 0","R1, 1 - 0","R6, 0 - 1","R3, 20 - 4","R2, 0.5 - 0.5","R3, 22 - 4",null,null,"R4, 0.5 - 0.5",null,"R2, 0 - 1","R1, 0 - 1"]
["Macabeo ",null,null,null,null,null,null,null,null,null,null,null,null,null,null,null,null,null,null,null,null,"R4, 0.5 - 0.5",null,null,null,null,null,null,null,null,null,null,null,null,null,null,null,null,null,null,null,null,null,null,null,null,null,null,null,null,null,null,null,null,"R1, 1 - 0",null,null,null,null,null,null,null,"R2, 0 - 1",null,null,null,null,null,null,null,null,null,null,null,null,null,null,null,null,"R3, 0 - 1",null,null,null,null,null,null,null,null,null,null,null,null,null,null,null,null,null,null,null,null,null,"R5, 0.5 - 0.5",null,null,"R6, 0.5 - 0.5",null,null,null,null,"R6, 1 - 0",null,null,null,"R1, 0.5 - 0.5",null,null,"R3, 3 - 17","R2, 1 - 0","R1, 0.5 - 0.5","R3, 1 - 0","R6, 0.5 - 0.5",null,null,null,"R1, 1 - 0","R2, 1 - 0","R4, 1 - 0",null,"R2, 0 - 1"]
["Balder ",null,null,null,null,null,null,null,"R2, 0.5 - 0.5",null,null,null,null,null,null,null,null,null,null,null,null,null,null,null,null,null,null,null,null,null,null,null,null,null,"R5, 1 - 0",null,null,null,null,null,null,null,null,null,null,null,null,null,"R4, 1 - 0",null,null,null,null,null,null,null,null,null,null,null,"R3, 1 - 0",null,null,null,null,null,null,null,null,null,null,null,null,null,null,null,null,null,null,null,null,null,null,null,"R1, 0.5 - 0.5",null,null,null,null,null,null,null,null,null,null,null,null,null,null,null,null,"R1, 1 - 0",null,"R2, 1 - 0","R5, 0.5 - 0.5","R6, 0 - 1","R3, 2 - 17","R1, 0 - 1",null,"R2, 1 - 0","R3, 0.5 - 0.5","R5, 0.5 - 0.5","R1, 0.5 - 0.5",null,null,"R6, 2 - 19",null,"R3, 20 - 3",null,null,null,null,null,null,"R4, 1 - 0"]
["Corwin ",null,null,null,"R2, 0.5 - 0.5",null,null,null,null,null,null,null,null,null,null,null,null,null,null,null,null,null,null,null,null,null,null,null,null,null,null,null,null,null,null,null,null,null,null,null,"R5, 0 - 1",null,null,null,null,null,"R4, 1 - 0",null,null,null,null,null,null,null,null,null,null,null,"R3, 1 - 0",null,null,null,null,null,null,null,null,null,null,null,null,null,null,null,null,null,null,null,null,null,null,null,null,null,null,null,null,"R1, 1 - 0",null,null,null,null,null,null,null,null,null,null,null,null,null,"R6, 3 - 20",null,null,"R3, 10 - 10","R6, 1 - 0","R2, 0.5 - 0.5",null,"R3, 1 - 0","R6, 0 - 1","R1, 0 - 1",null,null,null,null,null,null,null,null,null,null,null,null,null,"R3, 0.5 - 0.5","R4, 0 - 1",null,"R2, 0 - 1"]
["Faccko ",null,null,null,null,null,"R2, 0 - 1",null,null,null,null,null,null,null,null,null,null,null,null,null,null,null,null,null,null,null,null,null,null,null,null,null,null,null,null,null,null,null,"R5, 1 - 0",null,null,null,null,null,"R4, 0.5 - 0.5",null,null,null,null,null,null,null,null,null,null,null,null,null,null,null,null,null,null,"R3, 0 - 1",null,null,null,null,null,null,null,null,null,null,null,null,null,null,null,null,null,null,null,"R1, 1 - 0",null,null,null,null,null,null,null,null,null,null,null,null,null,null,null,null,"R1, 0.5 - 0.5",null,null,null,null,"R1, 1 - 0","R6, 0 - 1","R3, 1 - 0",null,null,null,null,null,"R6, 19 - 2",null,null,null,null,null,null,"R5, 0 - 1","R4, 1 - 0",null,null,null,null,null,null,"R4, 0 - 1"]
["Mufflo ",null,null,"R2, 0.5 - 0.5",null,null,null,null,null,null,null,null,null,null,null,null,null,null,null,null,null,null,null,null,null,null,null,null,null,null,null,null,null,null,null,null,null,null,null,"R5, 0.5 - 0.5",null,null,null,null,null,null,null,"R4, 0 - 1",null,null,null,null,null,null,null,null,null,null,null,null,null,"R3, 0 - 1",null,null,null,null,null,null,null,null,null,null,null,null,null,null,null,null,null,null,null,null,null,null,null,null,null,null,"R1, 0.5 - 0.5",null,null,null,null,null,null,null,null,null,null,null,null,null,"R1, 0 - 1","R6, 0 - 1",null,"R3, 0.5 - 0.5",null,"R1, 1 - 0","R6, 0.5 - 0.5","R1, 1 - 0","R2, 0 - 1","R4, 0 - 1","R3, 17 - 3",null,null,null,null,null,null,"R2, 1 - 0",null,null,"R4, 0.5 - 0.5",null,null,"R5, 22 - 8","R4, 0 - 1",null,"R4, 0.5 - 0.5"]
["brocCooli ","R2, 1 - 0",null,null,null,null,null,null,null,null,null,null,null,null,null,null,null,null,null,null,null,null,null,null,null,null,null,null,null,null,null,null,null,"R5, 0.5 - 0.5",null,null,null,null,null,null,null,"R4, 0.5 - 0.5",null,null,null,null,null,null,null,null,null,null,null,null,null,null,null,null,null,null,null,null,"R3, 1 - 0",null,null,null,null,null,null,null,null,null,null,null,null,null,null,null,null,null,null,"R1, 1 - 0",null,null,null,null,null,null,null,null,null,null,null,null,null,null,null,null,null,null,null,null,null,null,null,null,"R3, 0.5 - 0.5","R6, 0 - 1","R3, 6 - 19","R1, 1 - 0",null,"R1, 0 - 1","R2, 0 - 1","R3, 3 - 20",null,null,null,null,null,null,null,"R2, 6 - 8","R3, 0 - 1",null,null,null,null,null,"R4, 1 - 0"]
["Duckwing ",null,null,null,null,null,null,"R2, 1 - 0",null,null,null,null,null,null,null,null,null,null,null,null,null,null,null,null,null,null,null,null,null,null,null,null,null,null,null,null,"R5, 1 - 0",null,null,null,null,null,"R4, 0 - 1",null,null,null,null,null,null,null,null,null,null,null,null,null,null,null,null,"R3, 0.5 - 0.5",null,null,null,null,null,null,null,null,null,null,null,null,null,null,null,null,null,null,null,null,null,null,null,null,null,null,"R1, 0 - 1",null,null,null,null,null,null,null,null,null,null,null,null,null,null,null,null,"R6, 20 - 5",null,"R3, 1 - 19",null,null,"R2, 1 - 0",null,null,"R6, 1 - 0","R1, 0.5 - 0.5",null,null,null,null,null,null,null,"R4, 19 - 2",null,"R4, 0 - 1","R2, 0 - 1",null,null,null,"R4, 0.5 - 0.5"]
["Bernuz ",null,null,null,null,"R2, 1 - 0",null,null,null,null,null,null,null,null,null,null,null,null,null,null,null,null,null,null,null,null,null,null,null,null,null,null,null,null,null,null,null,"R5, 0 - 1",null,null,null,null,null,"R4, 1 - 0",null,null,null,null,null,null,null,null,null,null,null,null,null,null,null,null,null,null,null,null,"R3, 0.5 - 0.5",null,null,null,null,null,null,null,null,null,null,null,null,null,null,null,null,null,null,null,null,"R1, 0.5 - 0.5",null,null,null,null,null,null,null,null,null,null,null,null,null,null,null,null,null,null,"R1, 1 - 0","R1, 0.5 - 0.5","R1, 1 - 0","R2, 0 - 1",null,"R3, 21 - 5","R6, 0.5 - 0.5","R3, 4 - 20","R3, 0 - 1",null,null,null,"R2, 0 - 1",null,null,null,null,null,null,null,null,null,null,"R4, 0.5 - 0.5"]
["Purrelito ",null,"R2, 0.5 - 0.5",null,null,null,null,null,null,null,null,null,null,null,null,null,null,null,null,null,null,null,null,null,null,null,null,null,null,null,null,null,null,null,null,"R5, 1 - 0",null,null,null,null,null,null,null,null,null,"R4, 0.5 - 0.5",null,null,null,null,null,null,null,null,null,null,null,"R3, 0 - 1",null,null,null,null,null,null,null,null,null,null,null,null,null,null,null,null,null,null,null,null,null,null,null,null,"R1, 0.5 - 0.5",null,null,null,null,null,null,null,null,null,null,null,null,null,null,null,null,null,null,null,null,"R1, 0.5 - 0.5","R2, 15 - 13",null,null,"R4, 0 - 1","R1, 0 - 1","R3, 1 - 0",null,"R2, 0.5 - 0.5","R6, 0.5 - 0.5",null,null,"R5, 1 - 0",null,null,"R4, 2 - 19",null,null,null,"R6, 1 - 0","R4, 0 - 1",null,"R3, 0 - 1"]
["nonumber ",null,null,null,null,null,null,null,null,null,null,null,null,null,null,"R5, 1 - 0",null,null,null,null,null,null,"R1, 0 - 1",null,null,null,null,null,null,null,null,null,null,"R6, 1 - 0",null,null,null,null,null,null,null,null,"R2, 0 - 1",null,null,null,null,null,null,null,null,null,null,null,null,null,null,null,null,null,null,null,null,null,null,null,null,null,null,null,null,null,null,null,null,null,null,null,null,null,null,null,null,"R3, 1 - 0",null,null,null,null,null,null,null,null,null,"R4, 0.5 - 0.5",null,null,null,null,null,null,"R6, 0.5 - 0.5",null,null,null,"R4, 0 - 1",null,"R4, 0.5 - 0.5",null,"R2, 0.5 - 0.5",null,"R1, 0 - 1","R3, 4 - 22",null,null,null,"R4, 0 - 1",null,"R2, 8 - 6",null,null,null,null,null,"R6, 10 - 10"]
["20Phoenix ",null,null,null,null,null,null,null,null,null,null,null,null,null,null,null,"R5, 0 - 1",null,null,null,null,null,null,null,"R1, 0 - 1",null,null,null,null,null,null,null,null,null,null,null,null,null,null,"R6, 1 - 0",null,null,null,null,"R2, 0.5 - 0.5",null,null,null,null,null,null,null,null,null,null,null,null,null,null,null,null,null,null,null,null,null,null,null,null,null,null,null,null,null,null,null,null,null,null,null,null,"R3, 0 - 1",null,null,null,null,null,null,null,null,null,"R4, 1 - 0",null,null,null,null,null,null,null,null,"R2, 0.5 - 0.5",null,null,null,null,"R2, 0 - 1",null,"R1, 1 - 0","R2, 1 - 0","R6, 5 - 22","R3, 1 - 0",null,null,null,null,null,"R4, 0.5 - 0.5","R3, 1 - 0","R4, 1 - 0",null,"R6, 0 - 1",null,null,"R5, 0 - 1",null,null,null,null,"R6, 0.5 - 0.5"]
["SFisher91 ",null,null,null,null,null,null,null,null,null,"R5, 1 - 0",null,null,null,null,null,null,null,"R1, 1 - 0",null,null,null,null,null,null,null,null,null,null,null,null,null,null,null,null,null,null,null,null,null,"R6, 0 - 1",null,null,null,null,null,"R2, 0 - 1",null,null,null,null,null,null,null,null,null,null,null,null,null,null,null,null,null,null,null,null,null,null,null,null,null,null,null,null,null,null,null,null,null,null,null,null,null,null,"R3, 1 - 0",null,null,null,"R4, 0 - 1",null,null,null,null,null,null,null,null,null,null,null,null,"R5, 0 - 1",null,null,"R6, 0 - 1","R1, 0 - 1",null,null,"R2, 0 - 1","R4, 0 - 1",null,null,null,null,null,null,null,"R2, 1 - 0",null,"R4, 1 - 0","R6, 10 - 10","R5, 1 - 0"]
["Dionysian ",null,null,null,null,null,null,null,null,null,null,"R5, 0 - 1",null,null,null,null,null,null,null,null,null,"R1, 1 - 0",null,null,null,null,null,null,null,null,null,null,null,null,"R6, 0 - 1",null,null,null,null,null,null,null,null,"R2, 0 - 1",null,null,null,null,null,null,null,null,null,null,null,null,null,null,null,null,null,null,null,null,null,null,null,null,null,null,null,null,null,null,null,null,null,null,null,null,null,null,null,null,"R3, 1 - 0",null,null,null,null,null,null,null,null,null,null,"R4, 0 - 1",null,null,null,null,null,null,null,null,"R5, 9 - 8",null,"R2, 0 - 1","R2, 0.5 - 0.5","R3, 0.5 - 0.5",null,null,"R4, 0.5 - 0.5","R1, 0 - 1","R4, 0 - 1","R3, 0.5 - 0.5"]
["Northernknight ",null,null,null,null,null,null,null,null,null,null,null,null,null,"R5, 0 - 1",null,null,null,null,"R1, 1 - 0",null,null,null,null,null,null,null,null,null,null,null,null,null,null,null,null,null,null,"R6, 0 - 1",null,null,"R2, 0 - 1",null,null,null,null,null,null,null,null,null,null,null,null,null,null,null,null,null,null,null,null,null,null,null,null,null,null,null,null,null,null,null,null,null,null,null,null,null,null,null,null,null,null,null,null,"R3, 0 - 1",null,null,null,null,null,"R4, 1 - 0",null,null,null,null,null,null,null,null,null,null,"R4, 1 - 0",null,"R2, 0.5 - 0.5",null,"R3, 1 - 0","R1, 1 - 0","R4, 0.5 - 0.5",null,null,"R2, 0 - 1",null,"R4, 1 - 0",null,"R5, 8 - 22",null,null,null,"R3, 1 - 0",null,null,null,null,null,"R6, 0.5 - 0.5"]
["MadeofWelsh ",null,null,null,null,null,null,null,null,null,null,null,null,"R5, 1 - 0",null,null,null,null,null,null,"R1, 0 - 1",null,null,null,null,null,null,null,null,null,null,null,null,null,null,"R6, 0.5 - 0.5",null,null,null,null,null,null,null,null,null,"R2, 0 - 1",null,null,null,null,null,null,null,null,null,null,null,null,null,null,null,null,null,null,null,null,null,null,null,null,null,null,null,null,null,null,null,null,null,null,null,null,"R3, 0 - 1",null,null,null,null,null,null,null,"R4, 1 - 0",null,null,null,null,null,null,null,null,null,null,"R4, 0.5 - 0.5",null,null,null,null,null,"R2, 0.5 - 0.5",null,"R1, 0 - 1",null,"R2, 1 - 0","R4, 0 - 1",null,null,null,"R4, 1 - 0",null,null,null,null,null,null,null,null,"R6, 0.5 - 0.5",null,"R3, 1 - 0"]
["Ploppy_McPloppy ",null,null,null,null,null,null,null,null,"R5, 0.5 - 0.5",null,null,null,null,null,null,null,"R1, 0.5 - 0.5",null,null,null,null,null,null,null,null,null,null,null,null,null,null,null,null,null,null,null,"R6, 0.5 - 0.5",null,null,null,null,null,null,null,null,null,null,"R2, 0.5 - 0.5",null,null,null,null,null,null,null,null,null,null,null,null,null,null,null,null,null,null,null,null,null,null,null,null,null,null,null,null,null,null,null,null,null,null,null,null,null,null,null,"R3, 0.5 - 0.5",null,null,null,null,null,null,null,"R4, 1 - 0",null,null,null,null,null,null,null,null,"R4, 0.5 - 0.5",null,null,null,null,"R2, 0 - 1","R1, 1 - 0",null,null,"R2, 1 - 0",null,null,null,"R4, 0.5 - 0.5","R4, 0.5 - 0.5",null,null,null,null,null,null,"R3, 0 - 1"]
["andydavo ",null,null,null,null,null,null,null,null,null,null,null,"R5, 0.5 - 0.5",null,null,null,null,null,null,null,null,null,null,"R1, 0.5 - 0.5",null,null,null,null,null,null,null,null,null,null,null,null,"R6, 1 - 0",null,null,null,null,null,null,null,null,null,null,"R2, 0.5 - 0.5",null,null,null,null,null,null,null,null,null,null,null,null,null,null,null,null,null,null,null,null,null,null,null,null,null,null,null,null,null,null,null,null,null,null,null,null,null,null,null,"R3, 1 - 0",null,null,null,null,null,null,"R4, 0 - 1",null,null,null,null,null,null,null,null,null,null,"R1, 0.5 - 0.5",null,"R4, 1 - 0",null,"R2, 1 - 0",null,null,"R2, 1 - 0",null,null,"R4, 1 - 0","R4, 0.5 - 0.5","R4, 0 - 1",null,null,null,null,"R6, 0.5 - 0.5"]

{"sheet":"Players","index":4,"n_rows":160,"n_cols":16,"rows_kept":160,"cut":false,"hidden":false,"merged":[]}
["Num","Display Name","NAF Name","NAF Number (Random)","Race","Group",null,null,null,null,null,null,"Groups",null,"Team Size",8]
[{"$f":"IF(C2=\"\",\"\",MAX(A$1:A1)+1)","v":1},"Driesfield ","Driesfield ",6183,"Slann","Belgium",null,null,null,null,null,null,"Belgium"]
[{"$f":"IF(C3=\"\",\"\",MAX(A$1:A2)+1)","v":2},"Malodoror ","Malodoror ",20793,"Chaos Pact","Belgium",null,null,null,null,null,null,"Denmark"]
[{"$f":"IF(C4=\"\",\"\",MAX(A$1:A3)+1)","v":3},"JJ ","JJ ",10488,"Underworld","Belgium",null,null,null,null,null,null,"England"]
[{"$f":"IF(C5=\"\",\"\",MAX(A$1:A4)+1)","v":4},"Araznaroth ","Araznaroth ",13199,"Goblins","Belgium",null,null,null,null,null,null,"Finland"]
[{"$f":"IF(C6=\"\",\"\",MAX(A$1:A5)+1)","v":5},"Woete ","Woete ",12500,"Chaos Dwarves","Belgium",null,null,null,null,null,null,"France"]
[{"$f":"IF(C7=\"\",\"\",MAX(A$1:A6)+1)","v":6},"gninocker ","gninocker ",17832,"Vampires","Belgium",null,null,null,null,null,null,"Germany"]
[{"$f":"IF(C8=\"\",\"\",MAX(A$1:A7)+1)","v":7},"Phoenix11 ","Phoenix11 ",8402,"Dark Elves","Belgium",null,null,null,null,null,null,"Hungary"]
[{"$f":"IF(C9=\"\",\"\",MAX(A$1:A8)+1)","v":8},"Dekra1979 ","Dekra1979 ",16259,"High Elves","Belgium",null,null,null,null,null,null,"Italy"]
[{"$f":"IF(C10=\"\",\"\",MAX(A$1:A9)+1)","v":9},"Tripleskull ","Tripleskull ",9524,"Chaos","Denmark",null,null,null,null,null,null,"Norway"]
[{"$f":"IF(C11=\"\",\"\",MAX(A$1:A10)+1)","v":10},"MissSweden ","MissSweden ",11498,"Chaos","Denmark",null,null,null,null,null,null,"Poland"]
[{"$f":"IF(C12=\"\",\"\",MAX(A$1:A11)+1)","v":11},"kfoged ","kfoged ",10691,"Slann","Denmark",null,null,null,null,null,null,"Scotland"]
[{"$f":"IF(C13=\"\",\"\",MAX(A$1:A12)+1)","v":12},"Tank ","Tank ",11501,"Necromantic","Denmark",null,null,null,null,null,null,"Spain"]
[{"$f":"IF(C14=\"\",\"\",MAX(A$1:A13)+1)","v":13},"Topper ","Topper ",6363,"Chaos","Denmark",null,null,null,null,null,null,"Sweden"]
[{"$f":"IF(C15=\"\",\"\",MAX(A$1:A14)+1)","v":14},"SpecialOne ","SpecialOne ",16742,"Lizardmen","Denmark",null,null,null,null,null,null,"Switzerland"]
[{"$f":"IF(C16=\"\",\"\",MAX(A$1:A15)+1)","v":15},"Jaqra ","Jaqra ",19750,"Skaven","Denmark",null,null,null,null,null,null,"Viking"]
[{"$f":"IF(C17=\"\",\"\",MAX(A$1:A16)+1)","v":16},"Niebling ","Niebling ",11499,"Amazons","Denmark",null,null,null,null,null,null,"Wales"]
[{"$f":"IF(C18=\"\",\"\",MAX(A$1:A17)+1)","v":17},"Lycos ","Lycos ",2870,"Ogres","England"]
[{"$f":"IF(C19=\"\",\"\",MAX(A$1:A18)+1)","v":18},"PurpleGoo ","PurpleGoo ",11777,"Amazons","England"]
[{"$f":"IF(C20=\"\",\"\",MAX(A$1:A19)+1)","v":19},"Geggster ","Geggster ",70,"Orc","England"]
[{"$f":"IF(C21=\"\",\"\",MAX(A$1:A20)+1)","v":20},"Podfrey ","Podfrey ",149,"Slann","England"]
[{"$f":"IF(C22=\"\",\"\",MAX(A$1:A21)+1)","v":21},"JimJimany ","JimJimany ",12403,"Goblins","England"]
[{"$f":"IF(C23=\"\",\"\",MAX(A$1:A22)+1)","v":22},"Joemanji ","Joemanji ",3312,"Chaos","England"]
[{"$f":"IF(C24=\"\",\"\",MAX(A$1:A23)+1)","v":23},"Mubo ","Mubo ",13409,"Amazons","England"]
[{"$f":"IF(C25=\"\",\"\",MAX(A$1:A24)+1)","v":24},"Wilzif ","Wilzif ",8901,"Underworld","England"]
[{"$f":"IF(B26=\"\",\"\",MAX(A$1:A25)+1)","v":25},"MacWitt ","MacWitt ",19932,"Elves","Finland"]
[{"$f":"IF(B27=\"\",\"\",MAX(A$1:A26)+1)","v":26},"Harza ","Harza ",20060,"Dwarves","Finland"]
[{"$f":"IF(B28=\"\",\"\",MAX(A$1:A27)+1)","v":27},"jopotzuki ","jopotzuki ",20783,"Nurgle's Rotters","Finland"]
[{"$f":"IF(B29=\"\",\"\",MAX(A$1:A28)+1)","v":28},"edheim ","edheim ",20760,"Chaos","Finland"]
[{"$f":"IF(B30=\"\",\"\",MAX(A$1:A29)+1)","v":29},"BeerBeer ","BeerBeer ",18245,"Necromantic","Finland"]
[{"$f":"IF(B31=\"\",\"\",MAX(A$1:A30)+1)","v":30},"J-Ho","J-Ho",19106,"Nurgle's Rotters","Finland"]
[{"$f":"IF(B32=\"\",\"\",MAX(A$1:A31)+1)","v":31},"ratogre ","ratogre ",22007,"Necromantic","Finland"]
[{"$f":"IF(B33=\"\",\"\",MAX(A$1:A32)+1)","v":32},"valkohukka ","valkohukka ",18772,"Slann","Finland"]
[{"$f":"IF(B34=\"\",\"\",MAX(A$1:A33)+1)","v":33},"BiBi ","BiBi ",11491,"Undead","France"]
[{"$f":"IF(B35=\"\",\"\",MAX(A$1:A34)+1)","v":34},"Bouzzy ","Bouzzy ",15733,"Chaos Pact","France"]
[{"$f":"IF(B36=\"\",\"\",MAX(A$1:A35)+1)","v":35},"BudWiser ","BudWiser ",12987,"Necromantic","France"]
[{"$f":"IF(B37=\"\",\"\",MAX(A$1:A36)+1)","v":36},"Gros Nain ","Gros Nain ",14524,"Norse","France"]
[{"$f":"IF(B38=\"\",\"\",MAX(A$1:A37)+1)","v":37},"Harti ","Harti ",13583,"Skaven","France"]
[{"$f":"IF(B39=\"\",\"\",MAX(A$1:A38)+1)","v":38},"Justicium ","Justicium ",12319,"Wood Elves","France"]
[{"$f":"IF(B40=\"\",\"\",MAX(A$1:A39)+1)","v":39},"Matt le fou ","Matt le fou ",13561,"Undead","France"]
[{"$f":"IF(B41=\"\",\"\",MAX(A$1:A40)+1)","v":40},"Simon_ACP ","Simon_ACP ",17603,"Humans","France"]
[{"$f":"IF(B42=\"\",\"\",MAX(A$1:A41)+1)","v":41},"Arioso ","Arioso ",18738,"Orc","Germany"]
[{"$f":"IF(B43=\"\",\"\",MAX(A$1:A42)+1)","v":42},"RoterSternHochdah ","RoterSternHochdah ",18704,"Chaos Dwarves","Germany"]
[{"$f":"IF(B44=\"\",\"\",MAX(A$1:A43)+1)","v":43},"Muadib ","Muadib ",2800,"Khemri","Germany"]
[{"$f":"IF(B45=\"\",\"\",MAX(A$1:A44)+1)","v":44},"Candlejack ","Candlejack ",5844,"Undead","Germany"]
[{"$f":"IF(B46=\"\",\"\",MAX(A$1:A45)+1)","v":45},"Gaunab ","Gaunab ",2150,"Orc","Germany"]
[{"$f":"IF(B47=\"\",\"\",MAX(A$1:A46)+1)","v":46},"Prince ","Prince ",341,"Lizardmen","Germany"]
[{"$f":"IF(B48=\"\",\"\",MAX(A$1:A47)+1)","v":47},"DocMaxx ","DocMaxx ",16347,"Chaos Pact","Germany"]
[{"$f":"IF(B49=\"\",\"\",MAX(A$1:A48)+1)","v":48},"Jonny_Kanone ","Jonny_Kanone ",9621,"Chaos Dwarves","Germany"]
[{"$f":"IF(B50=\"\",\"\",MAX(A$1:A49)+1)","v":49},"BlackOrc ","BlackOrc ",6233,"Chaos Pact","Hungary"]
[{"$f":"IF(B51=\"\",\"\",MAX(A$1:A50)+1)","v":50},"Itzla ","Itzla ",9758,"Chaos Dwarves","Hungary"]
[{"$f":"IF(B52=\"\",\"\",MAX(A$1:A51)+1)","v":51},"Wolio ","Wolio ",20061,"Dark Elves","Hungary"]
[{"$f":"IF(B53=\"\",\"\",MAX(A$1:A52)+1)","v":52},"noraal ","noraal ",21798,"Underworld","Hungary"]
[{"$f":"IF(B54=\"\",\"\",MAX(A$1:A53)+1)","v":53},"Favi ","Favi ",20062,"Skaven","Hungary"]
[{"$f":"IF(B55=\"\",\"\",MAX(A$1:A54)+1)","v":54},"cz ","cz ",21604,"Underworld","Hungary"]
[{"$f":"IF(B56=\"\",\"\",MAX(A$1:A55)+1)","v":55},"swifty ","swifty ",20309,"Khemri","Hungary"]
[{"$f":"IF(B57=\"\",\"\",MAX(A$1:A56)+1)","v":56},"Alex05 ","Alex05 ",22352,"Orc","Hungary"]
[{"$f":"IF(B58=\"\",\"\",MAX(A$1:A57)+1)","v":57},"Beppe ","Beppe ",3564,"Orc","Italy"]
[{"$f":"IF(B59=\"\",\"\",MAX(A$1:A58)+1)","v":58},"Dirold ","Dirold ",5900,"Amazons","Italy"]
[{"$f":"IF(B60=\"\",\"\",MAX(A$1:A59)+1)","v":59},"Farina ","Farina ",3533,"Chaos Dwarves","Italy"]
[{"$f":"IF(B61=\"\",\"\",MAX(A$1:A60)+1)","v":60},"Kaltenland ","Kaltenland ",11924,"Chaos Pact","Italy"]
[{"$f":"IF(B62=\"\",\"\",MAX(A$1:A61)+1)","v":61},"Liam ","Liam ",5906,"Wood Elves","Italy"]
[{"$f":"IF(B63=\"\",\"\",MAX(A$1:A62)+1)","v":62},"Matte8 ","Matte8 ",13785,"Khemri","Italy"]
[{"$f":"IF(B64=\"\",\"\",MAX(A$1:A63)+1)","v":63},"Spartako ","Spartako ",13417,"Skaven","Italy"]
[{"$f":"IF(B65=\"\",\"\",MAX(A$1:A64)+1)","v":64},"Verrinho ","Verrinho ",16930,"Nurgle's Rotters","Italy"]
[{"$f":"IF(B66=\"\",\"\",MAX(A$1:A65)+1)","v":65},"zulu ","zulu ",16829,"Goblins","Norway"]
[{"$f":"IF(B67=\"\",\"\",MAX(A$1:A66)+1)","v":66},"Endalos ","Endalos ",17242,"Wood Elves","Norway"]
[{"$f":"IF(B68=\"\",\"\",MAX(A$1:A67)+1)","v":67},"The_Ref ","The_Ref ",9441,"Amazons","Norway"]
[{"$f":"IF(B69=\"\",\"\",MAX(A$1:A68)+1)","v":68},"straume ","straume ",20685,"High Elves","Norway"]
[{"$f":"IF(B70=\"\",\"\",MAX(A$1:A69)+1)","v":69},"bothun ","bothun ",20953,"Wood Elves","Norway"]
[{"$f":"IF(B71=\"\",\"\",MAX(A$1:A70)+1)","v":70},"FrankPedersen ","FrankPedersen ",20899,"Chaos","Norway"]
[{"$f":"IF(B72=\"\",\"\",MAX(A$1:A71)+1)","v":71},"mynock ","mynock ",20775,"Goblins","Norway"]
[{"$f":"IF(B73=\"\",\"\",MAX(A$1:A72)+1)","v":72},"GreatWhiteHope ","GreatWhiteHope ",20881,"Lizardmen","Norway"]
[{"$f":"IF(B74=\"\",\"\",MAX(A$1:A73)+1)","v":73},"Mewash ","Mewash ",21627,"Vampires","Poland"]
[{"$f":"IF(B75=\"\",\"\",MAX(A$1:A74)+1)","v":74},"Reszka ","Reszka ",21573,"Dark Elves","Poland"]
[{"$f":"IF(B76=\"\",\"\",MAX(A$1:A75)+1)","v":75},"Leonek ","Leonek ",22375,"Vampires","Poland"]
[{"$f":"IF(B77=\"\",\"\",MAX(A$1:A76)+1)","v":76},"Domingo ","Domingo ",20280,"Ogres","Poland"]
[{"$f":"IF(B78=\"\",\"\",MAX(A$1:A77)+1)","v":77},"Slimaq ","Slimaq ",21957,"Dark Elves","Poland"]
[{"$f":"IF(B79=\"\",\"\",MAX(A$1:A78)+1)","v":78},"Warrior1980 ","Warrior1980 ",22376,"Norse","Poland"]
[{"$f":"IF(B80=\"\",\"\",MAX(A$1:A79)+1)","v":79},"Juniooor7 ","Juniooor7 ",22455,"Norse","Poland"]
[{"$f":"IF(B81=\"\",\"\",MAX(A$1:A80)+1)","v":80},"Shawass ","Shawass ",18416,"Chaos Pact","Poland"]
[{"$f":"IF(B82=\"\",\"\",MAX(A$1:A81)+1)","v":81},"DonShula ","DonShula ",14445,"Skaven","Scotland"]
[{"$f":"IF(B83=\"\",\"\",MAX(A$1:A82)+1)","v":82},"Garrick ","Garrick ",18506,"Chaos Dwarves","Scotland"]
[{"$f":"IF(B84=\"\",\"\",MAX(A$1:A83)+1)","v":83},"Purdindas ","Purdindas ",10831,"Undead","Scotland"]
[{"$f":"IF(B85=\"\",\"\",MAX(A$1:A84)+1)","v":84},"JamesEs ","JamesEs ",17875,"Vampires","Scotland"]
[{"$f":"IF(B86=\"\",\"\",MAX(A$1:A85)+1)","v":85},"sann0638 ","sann0638 ",8866,"Humans","Scotland"]
[{"$f":"IF(B87=\"\",\"\",MAX(A$1:A86)+1)","v":86},"Valen ","Valen ",1538,"Nurgle's Rotters","Scotland"]
[{"$f":"IF(B88=\"\",\"\",MAX(A$1:A87)+1)","v":87},"Loki ","Loki ",371,"Underworld","Scotland"]
[{"$f":"IF(B89=\"\",\"\",MAX(A$1:A88)+1)","v":88},"HumptyTrump ","HumptyTrump ",20360,"Skaven","Scotland"]
[{"$f":"IF(B90=\"\",\"\",MAX(A$1:A89)+1)","v":89},"Dark Duke ","Dark Duke ",2925,"Chaos Dwarves","Spain"]
[{"$f":"IF(B91=\"\",\"\",MAX(A$1:A90)+1)","v":90},"Obeliz ","Obeliz ",2519,"Chaos","Spain"]
[{"$f":"IF(B92=\"\",\"\",MAX(A$1:A91)+1)","v":91},"Joanet ","Joanet ",7690,"Khemri","Spain"]
[{"$f":"IF(B93=\"\",\"\",MAX(A$1:A92)+1)","v":92},"Duke_Luthor_Von_Hawkfire ","Duke_Luthor_Von_Hawkfire ",11793,"Vampires","Spain"]
[{"$f":"IF(B94=\"\",\"\",MAX(A$1:A93)+1)","v":93},"Barry ","Barry ",3290,"High Elves","Spain"]
[{"$f":"IF(B95=\"\",\"\",MAX(A$1:A94)+1)","v":94},"Idroj ","Idroj ",20930,"Dwarves","Spain"]
[{"$f":"IF(B96=\"\",\"\",MAX(A$1:A95)+1)","v":95},"Malasnoticias ","Malasnoticias ",17068,"Chaos Pact","Spain"]
[{"$f":"IF(B97=\"\",\"\",MAX(A$1:A96)+1)","v":96},"Tactel ","Tactel ",20218,"High Elves","Spain"]
[{"$f":"IF(B98=\"\",\"\",MAX(A$1:A97)+1)","v":97},"Melisqus ","Melisqus ",16238,"Orc","Sweden"]
[{"$f":"IF(B99=\"\",\"\",MAX(A$1:A98)+1)","v":98},"Inforthepain ","Inforthepain ",19483,"Wood Elves","Sweden"]
[{"$f":"IF(B100=\"\",\"\",MAX(A$1:A99)+1)","v":99},"Pidpad ","Pidpad ",20957,"High Elves","Sweden"]
[{"$f":"IF(B101=\"\",\"\",MAX(A$1:A100)+1)","v":100},"Skuld ","Skuld ",20481,"Dark Elves","Sweden"]
[{"$f":"IF(B102=\"\",\"\",MAX(A$1:A101)+1)","v":101},"JohnnyD ","JohnnyD ",18171,"Halflings","Sweden"]
[{"$f":"IF(B103=\"\",\"\",MAX(A$1:A102)+1)","v":102},"Skoberget ","Skoberget ",19448,"Slann","Sweden"]
[{"$f":"IF(B104=\"\",\"\",MAX(A$1:A103)+1)","v":103},"Dragons ","Dragons ",19003,"Orc","Sweden"]
[{"$f":"IF(B105=\"\",\"\",MAX(A$1:A104)+1)","v":104},"Pellevin ","Pellevin ",19271,"Elves","Sweden"]
[{"$f":"IF(B106=\"\",\"\",MAX(A$1:A105)+1)","v":105},"Strider84 ","Strider84 ",14113,"Goblins","Switzerland"]
[{"$f":"IF(B107=\"\",\"\",MAX(A$1:A106)+1)","v":106},"Jokaero ","Jokaero ",2785,"Vampires","Switzerland"]
[{"$f":"IF(B108=\"\",\"\",MAX(A$1:A107)+1)","v":107},"Phifoe ","Phifoe ",16959,"Goblins","Switzerland"]
[{"$f":"IF(B109=\"\",\"\",MAX(A$1:A108)+1)","v":108},"Goss ","Goss ",18266,"Humans","Switzerland"]
[{"$f":"IF(B110=\"\",\"\",MAX(A$1:A109)+1)","v":109},"Madmatt13 ","Madmatt13 ",19790,"Norse","Switzerland"]
[{"$f":"IF(B111=\"\",\"\",MAX(A$1:A110)+1)","v":110},"Elrik ","Elrik ",19344,"High Elves","Switzerland"]
[{"$f":"IF(B112=\"\",\"\",MAX(A$1:A111)+1)","v":111},"sigu70 ","sigu70 ",17003,"Wood Elves","Switzerland"]
[{"$f":"IF(B113=\"\",\"\",MAX(A$1:A112)+1)","v":112},"Macabeo ","Macabeo ",18608,"Chaos Pact","Switzerland"]
[{"$f":"IF(B114=\"\",\"\",MAX(A$1:A113)+1)","v":113},"Balder ","Balder ",17725,"Dark Elves","Viking"]
[{"$f":"IF(B115=\"\",\"\",MAX(A$1:A114)+1)","v":114},"Corwin ","Corwin ",17878,"Chaos Pact","Viking"]
[{"$f":"IF(B116=\"\",\"\",MAX(A$1:A115)+1)","v":115},"Faccko ","Faccko ",17893,"Dwarves","Viking"]
[{"$f":"IF(B117=\"\",\"\",MAX(A$1:A116)+1)","v":116},"Mufflo ","Mufflo ",15048,"Ogres","Viking"]
[{"$f":"IF(B118=\"\",\"\",MAX(A$1:A117)+1)","v":117},"brocCooli ","brocCooli ",12552,"Slann","Viking"]
[{"$f":"IF(B119=\"\",\"\",MAX(A$1:A118)+1)","v":118},"Duckwing ","Duckwing ",16278,"Vampires","Viking"]
[{"$f":"IF(B120=\"\",\"\",MAX(A$1:A119)+1)","v":119},"Bernuz ","Bernuz ",19542,"Lizardmen","Viking"]
[{"$f":"IF(B121=\"\",\"\",MAX(A$1:A120)+1)","v":120},"Purrelito ","Purrelito ",15323,"Skaven","Viking"]
[{"$f":"IF(B122=\"\",\"\",MAX(A$1:A121)+1)","v":121},"nonumber ","nonumber ",8923,"Skaven","Wales"]
[{"$f":"IF(B123=\"\",\"\",MAX(A$1:A122)+1)","v":122},"20Phoenix ","20Phoenix ",19395,"Chaos Dwarves","Wales"]
[{"$f":"IF(B124=\"\",\"\",MAX(A$1:A123)+1)","v":123},"SFisher91 ","SFisher91 ",16057,"Chaos Pact","Wales"]
[{"$f":"IF(B125=\"\",\"\",MAX(A$1:A124)+1)","v":124},"Dionysian ","Dionysian ",19480,"Dark Elves","Wales"]
[{"$f":"IF(B126=\"\",\"\",MAX(A$1:A125)+1)","v":125},"Northernknight ","Northernknight ",7569,"Chaos","Wales"]
[{"$f":"IF(B127=\"\",\"\",MAX(A$1:A126)+1)","v":126},"MadeofWelsh ","MadeofWelsh ",12184,"Lizardmen","Wales"]
[{"$f":"IF(B128=\"\",\"\",MAX(A$1:A127)+1)","v":127},"Ploppy_McPloppy ","Ploppy_McPloppy ",16417,"Slann","Wales"]
[{"$f":"IF(B129=\"\",\"\",MAX(A$1:A128)+1)","v":128},"andydavo ","andydavo ",19726,"Ogres","Wales"]
[{"$f":"IF(B130=\"\",\"\",MAX(A$1:A129)+1)","v":""}]
[{"$f":"IF(B131=\"\",\"\",MAX(A$1:A130)+1)","v":""}]
[{"$f":"IF(B132=\"\",\"\",MAX(A$1:A131)+1)","v":""}]
[{"$f":"IF(B133=\"\",\"\",MAX(A$1:A132)+1)","v":""}]
[{"$f":"IF(B134=\"\",\"\",MAX(A$1:A133)+1)","v":""}]
[{"$f":"IF(B135=\"\",\"\",MAX(A$1:A134)+1)","v":""}]
[{"$f":"IF(B136=\"\",\"\",MAX(A$1:A135)+1)","v":""}]
[{"$f":"IF(B137=\"\",\"\",MAX(A$1:A136)+1)","v":""}]
[{"$f":"IF(B138=\"\",\"\",MAX(A$1:A137)+1)","v":""}]
[{"$f":"IF(B139=\"\",\"\",MAX(A$1:A138)+1)","v":""}]
[{"$f":"IF(B140=\"\",\"\",MAX(A$1:A139)+1)","v":""}]
[{"$f":"IF(B141=\"\",\"\",MAX(A$1:A140)+1)","v":""}]
[{"$f":"IF(B142=\"\",\"\",MAX(A$1:A141)+1)","v":""}]
[{"$f":"IF(B143=\"\",\"\",MAX(A$1:A142)+1)","v":""}]
[{"$f":"IF(B144=\"\",\"\",MAX(A$1:A143)+1)","v":""}]
[{"$f":"IF(B145=\"\",\"\",MAX(A$1:A144)+1)","v":""}]
[{"$f":"IF(B146=\"\",\"\",MAX(A$1:A145)+1)","v":""}]
[{"$f":"IF(B147=\"\",\"\",MAX(A$1:A146)+1)","v":""}]
[{"$f":"IF(B148=\"\",\"\",MAX(A$1:A147)+1)","v":""}]
[{"$f":"IF(B149=\"\",\"\",MAX(A$1:A148)+1)","v":""}]
[{"$f":"IF(B150=\"\",\"\",MAX(A$1:A149)+1)","v":""}]
[{"$f":"IF(B151=\"\",\"\",MAX(A$1:A150)+1)","v":""}]
[{"$f":"IF(B152=\"\",\"\",MAX(A$1:A151)+1)","v":""}]
[{"$f":"IF(B153=\"\",\"\",MAX(A$1:A152)+1)","v":""}]
[{"$f":"IF(B154=\"\",\"\",MAX(A$1:A153)+1)","v":""}]
[{"$f":"IF(B155=\"\",\"\",MAX(A$1:A154)+1)","v":""}]
[{"$f":"IF(B156=\"\",\"\",MAX(A$1:A155)+1)","v":""}]
[{"$f":"IF(B157=\"\",\"\",MAX(A$1:A156)+1)","v":""}]
[{"$f":"IF(B158=\"\",\"\",MAX(A$1:A157)+1)","v":""}]
[{"$f":"IF(B159=\"\",\"\",MAX(A$1:A158)+1)","v":""}]
[{"$f":"IF(B160=\"\",\"\",MAX(A$1:A159)+1)","v":""}]

{"sheet":"GroupFixtures","index":5,"n_rows":17,"n_cols":14,"rows_kept":17,"cut":false,"hidden":false,"merged":[]}
["Round: 6",null,"Home","Away",null,null,null,null,null,null,null,null,"Points Before Games"]
["Swaps: 9",null,"Italy","Poland",null,null,null,null,null,null,null,null,"Italy",30]
[null,null,"Viking","Switzerland",null,null,null,null,null,null,null,null,"Viking",28]
[null,null,"Wales","France",null,null,null,null,null,null,null,null,"Poland",26]
[null,null,"Germany","Hungary",null,null,null,null,null,null,null,null,"Switzerland",25]
[null,null,"Spain","Belgium",null,null,null,null,null,null,null,null,"Belgium",24.5]
[null,null,"Finland","England",null,null,null,null,null,null,null,null,"France",23.5]
[null,null,"Scotland","Denmark",null,null,null,null,null,null,null,null,"Germany",23.5]
[null,null,"Norway","Sweden",null,null,null,null,null,null,null,null,"England",23.5]
[null,null,null,null,null,null,null,null,null,null,null,null,"Hungary",21.5]
[null,null,null,null,null,null,null,null,null,null,null,null,"Denmark",21.5]
[null,null,null,null,null,null,null,null,null,null,null,null,"Wales",21.5]
[null,null,null,null,null,null,null,null,null,null,null,null,"Sweden",21]
[null,null,null,null,null,null,null,null,null,null,null,null,"Spain",19]
[null,null,null,null,null,null,null,null,null,null,null,null,"Scotland",17.5]
[null,null,null,null,null,null,null,null,null,null,null,null,"Norway",17.5]
[null,null,null,null,null,null,null,null,null,null,null,null,"Finland",16.5]

{"sheet":"GroupMatrix","index":6,"n_rows":17,"n_cols":17,"rows_kept":17,"cut":false,"hidden":false,"merged":[]}
[null,"Belgium","Denmark","England","Finland","France","Germany","Hungary","Italy","Norway","Poland","Scotland","Spain","Sweden","Switzerland","Viking","Wales"]
["Belgium",null,null,"Rd 3 - 4.5",null,null,null,"Rd 5 - 7",null,null,"Rd 4 - 3.5",null,"Rd 6 - 5.5","Rd 1 - 6.5",null,"Rd 2 - 3"]
["Denmark",null,null,null,"Rd 2 - 6.5","Rd 1 - 1.5",null,null,null,"Rd 3 - 4.5",null,"Rd 6 - 3.5",null,"Rd 4 - 4.5",null,null,"Rd 5 - 4.5"]
["England","Rd 3 - 4.5",null,null,"Rd 6 - 1.5",null,null,null,null,"Rd 2 - 5.5","Rd 5 - 3.5",null,null,null,"Rd 4 - 5.5",null,"Rd 1 - 4.5"]
["Finland",null,"Rd 2 - 2.5","Rd 6 - 7.5",null,null,null,null,null,"Rd 5 - 4.5","Rd 1 - 1.5","Rd 4 - 4.5","Rd 3 - 3.5"]
["France",null,"Rd 1 - 7.5",null,null,null,"Rd 3 - 4.5",null,"Rd 4 - 2.5",null,"Rd 2 - 6",null,null,null,null,"Rd 5 - 3","Rd 6 - 4.5"]
["Germany",null,null,null,null,"Rd 3 - 4.5",null,"Rd 6 - 5.5","Rd 5 - 2.5","Rd 1 - 5.5",null,null,null,null,null,"Rd 4 - 3.5","Rd 2 - 7.5"]
["Hungary","Rd 5 - 2",null,null,null,null,"Rd 6 - 3.5",null,null,"Rd 4 - 7.5",null,null,"Rd 2 - 6.5","Rd 3 - 3.5","Rd 1 - 2"]
["Italy",null,null,null,null,"Rd 4 - 6.5","Rd 5 - 6.5",null,null,null,"Rd 6 - 5.5",null,"Rd 1 - 7",null,"Rd 2 - 5.5","Rd 3 - 4.5"]
["Norway",null,"Rd 3 - 4.5","Rd 2 - 3.5","Rd 5 - 4.5",null,"Rd 1 - 3.5","Rd 4 - 1.5",null,null,null,null,null,"Rd 6 - 4.5"]
["Poland","Rd 4 - 5.5",null,"Rd 5 - 5.5","Rd 1 - 7.5","Rd 2 - 3",null,null,"Rd 6 - 3.5",null,null,null,null,null,"Rd 3 - 4.5"]
["Scotland",null,"Rd 6 - 5.5",null,"Rd 4 - 4.5",null,null,null,null,null,null,null,"Rd 5 - 3.5","Rd 2 - 3",null,"Rd 1 - 3","Rd 3 - 3.5"]
["Spain","Rd 6 - 3.5",null,null,"Rd 3 - 5.5",null,null,"Rd 2 - 2.5","Rd 1 - 2",null,null,"Rd 5 - 5.5",null,null,null,null,"Rd 4 - 3.5"]
["Sweden","Rd 1 - 2.5","Rd 4 - 4.5",null,null,null,null,"Rd 3 - 5.5",null,"Rd 6 - 4.5",null,"Rd 2 - 6",null,null,"Rd 5 - 2.5"]
["Switzerland",null,null,"Rd 4 - 3.5",null,null,null,"Rd 1 - 7","Rd 2 - 3.5",null,"Rd 3 - 4.5",null,null,"Rd 5 - 6.5",null,"Rd 6 - 6.5"]
["Viking","Rd 2 - 6",null,null,null,"Rd 5 - 6","Rd 4 - 5.5",null,"Rd 3 - 4.5",null,null,"Rd 1 - 6",null,null,"Rd 6 - 2.5"]
["Wales",null,"Rd 5 - 4.5","Rd 1 - 4.5",null,"Rd 6 - 4.5","Rd 2 - 1.5",null,null,null,null,"Rd 3 - 5.5","Rd 4 - 5.5"]

{"sheet":"GroupTable","index":7,"n_rows":17,"n_cols":17,"rows_kept":17,"cut":false,"hidden":false,"merged":[]}
["Group","Points","TD For","TD Against","Net TDs","Cas For","Cas Against","Net Cas","Group Total Bonus 1","Group Total Bonus 2","Group Wins","Groups Draws","Group Losses","Individual Wins","Individual Draws","Individual Losses","Total Individual Points"]
["Italy",35.5,77,60,17,69,76,-7,80,82,5,1,null,24,12,12,30]
["Switzerland",31.5,81,71,10,71,71,0,63,69,3,1,2,18,20,10,28]
["Viking",30.5,69,60,9,71,72,-1,89,80,4,1,1,17,18,13,26]
["Belgium",30,69,61,8,69,71,-2,75,73,3,1,2,17,19,12,26.5]
["Poland",29.5,78,71,7,68,72,-4,69,74,3,1,2,18,16,14,26]
["Germany",29,71,69,2,68,79,-11,74,69,3,1,2,19,13,16,25.5]
["France",28,78,78,0,83,79,4,61,66,2,2,2,18,14,16,25]
["Wales",26,73,74,-1,81,71,10,69,69,2,3,1,17,11,20,22.5]
["Sweden",25.5,81,84,-3,73,71,2,73,65,2,2,2,15,15,18,22.5]
["Hungary",25,69,76,-7,74,66,8,81,72,2,null,4,18,10,20,23]
["Denmark",25,77,75,2,76,83,-7,67,69,1,3,2,16,13,19,22.5]
["England",25,64,72,-8,71,73,-2,75,77,2,2,2,12,20,16,22]
["Finland",24,76,78,-2,80,79,1,61,81,1,2,3,15,14,19,22]
["Scotland",23,72,83,-11,84,77,7,74,77,1,1,4,15,13,20,21.5]
["Spain",22.5,69,83,-14,63,67,-4,67,74,2,null,4,14,13,21,20.5]
["Norway",22,71,80,-9,78,72,6,70,76,null,3,3,11,19,18,20.5]

{"sheet":"Table","index":8,"n_rows":129,"n_cols":16,"rows_kept":129,"cut":false,"hidden":false,"merged":[]}
["Player","Points","TD For","TD Against","TD Net","Cas For","Cas Against","Cas Net","Bonus 1","Bonus 2","Wins","Draws","Losses","Opp Score",null,"Group"]
["Strider84 ",6.5,19,17,2,15,13,2,7,23,5,3,3,36.5,null,"Switzerland"]
["Phifoe ",6,19,15,4,17,13,4,7,17,4,4,3,35,null,"Switzerland"]
["Simon_ACP ",5.5,13,8,5,7,8,-1,4,11,5,1,null,23,null,"France"]
["Madmatt13 ",5.5,18,18,0,17,2,15,3,17,4,3,4,34.5,null,"Switzerland"]
["Balder ",5.5,17,10,7,19,11,8,11,16,3,5,3,31.5,null,"Viking"]
["brocCooli ",5,14,15,-1,22,10,12,4,17,4,2,5,35.5,null,"Viking"]
["Dragons ",5,15,15,0,20,10,10,8,18,3,4,4,31,null,"Sweden"]
["Pellevin ",5,21,16,5,20,9,11,3,16,4,2,5,37,null,"Sweden"]
["Mewash ",5,13,7,6,8,8,0,5,9,4,2,null,19.5,null,"Poland"]
["Elrik ",5,16,14,2,22,12,10,4,19,3,4,4,27.5,null,"Switzerland"]
["Prince ",5,14,6,8,6,12,-6,9,8,5,null,1,23,null,"Germany"]
["Corwin ",5,18,18,0,14,8,6,12,21,4,2,5,38.5,null,"Viking"]
["Liam ",4.5,9,6,3,8,9,-1,12,12,4,1,1,21.5,null,"Italy"]
["gninocker ",4.5,9,5,4,6,9,-3,9,10,3,3,null,23.5,null,"Belgium"]
["nonumber ",4.5,13,14,-1,21,5,16,-2,13,4,1,6,29,null,"Wales"]
["Warrior1980 ",4.5,13,7,6,10,9,1,8,10,3,3,null,21.5,null,"Poland"]
["sigu70 ",4.5,16,19,-3,19,3,16,0,11,2,5,4,33,null,"Switzerland"]
["Jokaero ",4.5,18,15,3,24,9,15,7,18,2,5,4,36.5,null,"Switzerland"]
["kfoged ",4.5,15,8,7,12,14,-2,7,8,4,1,1,16,null,"Denmark"]
["valkohukka ",4.5,9,5,4,9,14,-5,8,7,3,3,null,16.5,null,"Finland"]
["Wolio ",4.5,11,9,2,8,11,-3,7,9,4,1,1,18.5,null,"Hungary"]
["Duckwing ",4.5,18,18,0,18,10,8,6,20,3,3,5,34.5,null,"Viking"]
["Bernuz ",4.5,14,14,0,17,9,8,5,22,3,3,5,33,null,"Viking"]
["Tripleskull ",4.5,13,8,5,11,7,4,10,12,4,1,1,22,null,"Denmark"]
["Skoberget ",4,14,19,-5,14,13,1,10,16,1,6,4,35.5,null,"Sweden"]
["Reszka ",4,10,8,2,9,5,4,12,10,2,4,null,23,null,"Poland"]
["Malasnoticias ",4,8,5,3,8,12,-4,11,8,3,2,1,20,null,"Spain"]
["Lycos ",4,11,7,4,13,13,0,5,7,2,4,null,22.5,null,"England"]
["BiBi ",4,11,10,1,10,11,-1,9,7,3,2,1,22.5,null,"France"]
["JohnnyD ",4,15,18,-3,17,7,10,4,15,2,4,5,35,null,"Sweden"]
["Idroj ",4,10,9,1,9,8,1,8,9,3,2,1,18,null,"Spain"]
["Ploppy_McPloppy ",4,14,15,-1,21,9,12,7,15,1,6,4,29.5,null,"Wales"]
["Woete ",4,9,8,1,14,8,6,7,11,4,null,2,19.5,null,"Belgium"]
["Valen ",4,10,9,1,12,8,4,11,10,3,2,1,22,null,"Scotland"]
["noraal ",4,9,8,1,9,5,4,9,14,3,2,1,24.5,null,"Hungary"]
["mynock ",4,11,6,5,9,12,-3,6,10,3,2,1,19,null,"Norway"]
["Alex05 ",4,11,6,5,7,8,-1,6,8,4,null,2,20.5,null,"Hungary"]
["Faccko ",4,13,17,-4,20,7,13,10,15,2,4,5,33.5,null,"Viking"]
["Spartako ",4,12,8,4,8,10,-2,9,11,4,null,2,22.5,null,"Italy"]
["Driesfield ",4,8,4,4,11,9,2,15,8,3,2,1,23,null,"Belgium"]
["Macabeo ",4,18,20,-2,20,9,11,6,15,2,4,5,34,null,"Switzerland"]
["Purrelito ",4,17,18,-1,19,10,9,6,18,2,4,5,29,null,"Viking"]
["Skuld ",4,16,19,-3,21,20,1,6,27,3,2,10,36.5,null,"Sweden"]
["SFisher91 ",4,15,19,-4,18,10,8,1,15,3,2,6,38.5,null,"Wales"]
["Matte8 ",4,9,7,2,10,10,0,7,8,3,2,1,22.5,null,"Italy"]
["Harti ",4,11,7,4,13,8,5,9,11,3,2,1,20,null,"France"]
["Goss ",4,12,19,-7,21,11,10,0,16,2,4,5,31.5,null,"Switzerland"]
["Verrinho ",4,9,6,3,9,11,-2,11,11,3,2,1,25.5,null,"Italy"]
["Araznaroth ",3.5,11,10,1,5,10,-5,8,8,1,5,null,25,null,"Belgium"]
["Pidpad ",3.5,11,7,4,10,10,0,8,8,3,1,2,22,null,"Sweden"]
["Beppe ",3.5,9,7,2,9,10,-1,11,12,3,1,2,23.5,null,"Italy"]
["Itzla ",3.5,9,7,2,7,9,-2,12,7,3,1,2,18.5,null,"Hungary"]
["Farina ",3.5,11,8,3,9,9,0,12,8,2,3,1,17.5,null,"Italy"]
["RoterSternHochdah ",3.5,8,7,1,9,11,-2,9,8,3,1,2,21.5,null,"Germany"]
["zulu ",3.5,9,9,0,10,7,3,10,10,3,1,2,21.5,null,"Norway"]
["20Phoenix ",3.5,17,18,-1,22,2,20,10,11,3,1,7,26,null,"Wales"]
["Niebling ",3.5,12,9,3,10,14,-4,8,7,2,3,1,17.5,null,"Denmark"]
["Dirold ",3.5,11,8,3,9,9,0,8,9,2,3,1,22,null,"Italy"]
["DonShula ",3.5,10,9,1,10,9,1,5,11,3,1,2,20.5,null,"Scotland"]
["SpecialOne ",3.5,9,7,2,9,9,0,6,10,3,1,2,18.5,null,"Denmark"]
["andydavo ",3.5,11,14,-3,20,9,11,0,21,2,3,6,29.5,null,"Wales"]
["MacWitt ",3.5,12,7,5,13,8,5,6,9,3,1,2,18,null,"Finland"]
["Mufflo ",3.5,14,15,-1,21,12,9,12,21,null,7,4,31,null,"Viking"]
["Dekra1979 ",3.5,7,6,1,6,8,-2,10,8,2,3,1,20.5,null,"Belgium"]
["Arioso ",3.5,11,8,3,13,8,5,5,12,3,1,2,21.5,null,"Germany"]
["Bouzzy ",3.5,10,8,2,10,6,4,3,10,3,1,2,21.5,null,"France"]
["DocMaxx ",3.5,11,8,3,12,10,2,10,10,2,3,1,18,null,"Germany"]
["JJ ",3.5,8,5,3,6,9,-3,9,11,2,3,1,16.5,null,"Belgium"]
["Dark Duke ",3.5,9,10,-1,9,3,6,7,13,2,3,1,19,null,"Spain"]
["Podfrey ",3.5,6,5,1,13,9,4,11,5,2,3,1,23.5,null,"England"]
["PurpleGoo ",3,6,8,-2,5,8,-3,14,11,2,2,2,21,null,"England"]
["edheim ",3,10,8,2,7,10,-3,7,13,2,2,2,17,null,"Finland"]
["Leonek ",3,9,10,-1,6,12,-6,8,7,2,2,2,17,null,"Poland"]
["Northernknight ",3,12,23,-11,17,5,12,6,15,2,2,7,31.5,null,"Wales"]
["sann0638 ",3,11,12,-1,7,8,-1,10,10,2,2,2,21,null,"Scotland"]
["HumptyTrump ",3,9,10,-1,10,10,0,12,10,1,4,1,18.5,null,"Scotland"]
["Justicium ",3,12,11,1,7,12,-5,8,6,3,null,3,22,null,"France"]
["Slimaq ",3,10,10,0,10,13,-3,9,11,2,2,2,19.5,null,"Poland"]
["Kaltenland ",3,7,10,-3,7,8,-1,10,11,3,null,3,18,null,"Italy"]
["Juniooor7 ",3,7,8,-1,9,8,1,9,7,3,null,3,23.5,null,"Poland"]
["Melisqus ",3,14,14,0,11,7,4,10,8,2,2,2,18.5,null,"Sweden"]
["Wilzif ",3,10,10,0,11,8,3,11,9,2,2,2,22,null,"England"]
["GreatWhiteHope ",3,10,9,1,11,12,-1,11,14,2,2,2,18,null,"Norway"]
["MadeofWelsh ",3,13,18,-5,22,12,10,0,16,2,2,7,26,null,"Wales"]
["Dionysian ",3,16,19,-3,21,7,14,4,17,2,2,7,32,null,"Wales"]
["Malodoror ",2.5,11,12,-1,11,10,1,10,11,1,3,2,14,null,"Belgium"]
["Jonny_Kanone ",2.5,9,11,-2,9,12,-3,10,12,1,3,2,20,null,"Germany"]
["Tank ",2.5,9,9,0,9,8,1,7,5,1,3,2,16.5,null,"Denmark"]
["Garrick ",2.5,8,8,0,14,9,5,10,8,2,1,3,18.5,null,"Scotland"]
["Gaunab ",2.5,6,11,-5,8,13,-5,8,5,2,1,3,19,null,"Germany"]
["BeerBeer ",2.5,12,15,-3,12,10,2,8,10,2,1,3,13,null,"Finland"]
["Candlejack ",2.5,5,8,-3,5,8,-3,13,7,1,3,2,19,null,"Germany"]
["Purdindas ",2.5,11,12,-1,11,13,-2,7,9,2,1,3,21,null,"Scotland"]
["bothun ",2.5,8,9,-1,12,8,4,13,8,1,3,2,20.5,null,"Norway"]
["J-Ho",2.5,11,13,-2,9,8,1,7,11,1,3,2,16,null,"Finland"]
["Harza ",2.5,8,9,-1,10,9,1,7,8,1,3,2,20.5,null,"Finland"]
["Mubo ",2.5,10,12,-2,6,7,-1,9,11,1,3,2,21,null,"England"]
["Endalos ",2.5,7,11,-4,7,9,-2,7,9,1,3,2,18.5,null,"Norway"]
["Muadib ",2.5,7,10,-3,6,5,1,10,7,2,1,3,21,null,"Germany"]
["ratogre ",2,6,10,-4,10,11,-1,11,12,2,null,4,13.5,null,"Finland"]
["straume ",2,12,14,-2,9,9,0,8,12,null,4,2,17,null,"Norway"]
["JimJimany ",2,7,11,-4,4,9,-5,6,11,null,4,2,16,null,"England"]
["The_Ref ",2,9,11,-2,12,7,5,9,9,1,2,3,18,null,"Norway"]
["Joemanji ",2,7,10,-3,8,10,-2,12,13,2,null,4,21,null,"England"]
["Tactel ",2,8,11,-3,8,8,0,7,14,2,null,4,22.5,null,"Spain"]
["Obeliz ",2,9,13,-4,9,11,-2,7,9,2,null,4,16.5,null,"Spain"]
["Favi ",2,6,9,-3,10,6,4,16,13,2,null,4,20.5,null,"Hungary"]
["Barry ",2,7,11,-4,9,9,0,9,4,1,2,3,22.5,null,"Spain"]
["Inforthepain ",2,8,12,-4,8,11,-3,9,9,1,2,3,15,null,"Sweden"]
["Gros Nain ",2,8,11,-3,12,14,-2,12,10,1,2,3,19,null,"France"]
["BlackOrc ",2,6,12,-6,13,7,6,13,7,1,2,3,20,null,"Hungary"]
["MissSweden ",2,9,11,-2,13,12,1,10,12,1,2,3,19,null,"Denmark"]
["Duke_Luthor_Von_Hawkfire ",2,9,11,-2,7,5,2,7,9,null,4,2,16.5,null,"Spain"]
["swifty ",2,10,13,-3,8,9,-1,11,11,1,2,3,22,null,"Hungary"]
["Geggster ",2,7,9,-2,11,9,2,7,10,1,2,3,16.5,null,"England"]
["Domingo ",2,8,11,-3,7,8,-1,7,8,1,2,3,21,null,"Poland"]
["BudWiser ",1.5,5,11,-6,12,9,3,8,7,null,3,3,21.5,null,"France"]
["JamesEs ",1.5,7,13,-6,11,11,0,10,11,1,1,4,18,null,"Scotland"]
["Shawass ",1.5,8,10,-2,9,9,0,11,12,1,1,4,20.5,null,"Poland"]
["jopotzuki ",1.5,8,11,-3,10,9,1,7,11,1,1,4,18.5,null,"Finland"]
["Loki ",1.5,6,10,-4,9,9,0,9,8,1,1,4,20.5,null,"Scotland"]
["Matt le fou ",1.5,8,12,-4,12,11,1,8,4,null,3,3,19,null,"France"]
["Phoenix11 ",1,6,11,-5,10,8,2,7,6,1,null,5,16,null,"Belgium"]
["FrankPedersen ",1,5,11,-6,8,8,0,6,4,null,2,4,13,null,"Norway"]
["Jaqra ",1,4,12,-8,4,8,-4,11,8,1,null,5,20,null,"Denmark"]
["Joanet ",1,9,13,-4,4,11,-7,11,8,1,null,5,16.5,null,"Spain"]
["cz ",1,7,12,-5,12,11,1,7,3,null,2,4,19,null,"Hungary"]
["Topper ",1,6,11,-5,8,11,-3,8,7,null,2,4,18.5,null,"Denmark"]

{"sheet":"Round1","index":9,"n_rows":129,"n_cols":33,"rows_kept":129,"cut":false,"hidden":false,"merged":[]}
[null,"Home Player","Away Player","Home Points","Away Points","Home TD","Away TD","Home Cas","Away Cas","Home Bonus 1","Away Bonus 1","Home Bonus 2","Away Bonus 2","Home Group","Away Group",null,null,null,"Points Before Games",null,null,"Points After Games",null,null,"Group Results","Group","Points",null,"Group Points Before Games",null,null,"Group Points Before Games"]
[null,"Barry ","Spartako ",{"$f":"fctScore(F2,G2,H2,J2,L2)","v":1},{"$f":"fctScore(G2,F2,I2,K2,M2)","v":0},2,1,1,1,0,2,2,3,"Spain","Italy",null,null,null,"JamesEs ",0,null,"Podfrey ",1,null,null,"Belgium",6.5,null,"Spain",0,null,"Poland",7.5]
[null,"Joanet ","Kaltenland ",{"$f":"fctScore(F3,G3,H3,J3,L3)","v":0},{"$f":"fctScore(G3,F3,I3,K3,M3)","v":1},0,1,2,1,1,3,1,3,"Spain","Italy",null,null,null,"Geggster ",0,null,"Simon_ACP ",1,null,null,"Denmark",1.5,null,"Italy",0,null,"France",7.5]
[null,"Malasnoticias ","Liam ",0,1,1,2,2,2,1,2,2,2,"Spain","Italy",null,null,null,"Endalos ",0,null,"Kaltenland ",1,null,null,"England",4.5,null,"Wales",0,null,"Switzerland",7]
[null,"Dark Duke ","Beppe ",0,1,0,3,0,0,1,1,1,3,"Spain","Italy",null,null,null,"Garrick ",0,null,"Phifoe ",1,null,null,"Finland",1.5,null,"England",0,null,"Italy",7]
[null,"Idroj ","Dirold ",0,1,0,3,1,0,2,0,0,2,"Spain","Italy",null,null,null,"Matt le fou ",0,null,"Wilzif ",1,null,null,"France",7.5,null,"Poland",0,null,"Belgium",6.5]
[null,"Obeliz ","Verrinho ",0,1,1,3,1,1,2,2,2,0,"Spain","Italy",null,null,null,"mynock ",0,null,"GreatWhiteHope ",1,null,null,"Germany",5.5,null,"Finland",0,null,"Viking",6]
[null,"Tactel ","Farina ",1,0,3,1,1,0,3,1,1,3,"Spain","Italy",null,null,null,"Balder ",0,null,"Strider84 ",1,null,null,"Hungary",2,null,"Hungary",0,null,"Germany",5.5]
[null,"Duke_Luthor_Von_Hawkfire ","Matte8 ",0,1,1,2,0,2,1,2,1,0,"Spain","Italy",null,null,null,"Pellevin ",0,null,"SFisher91 ",1,null,null,"Italy",7,null,"Switzerland",0,null,"Wales",4.5]
[null,"Northernknight ","Geggster ",1,0,2,1,1,1,1,2,0,1,"Wales","England",null,null,null,"Northernknight ",0,null,"Dirold ",1,null,null,"Norway",3.5,null,"Germany",0,null,"England",4.5]
[null,"andydavo ","Mubo ",0.5,0.5,2,2,2,1,0,2,2,2,"Wales","England",null,null,null,"Jokaero ",0,null,"Valen ",1,null,null,"Poland",7.5,null,"Norway",0,null,"Norway",3.5]
[null,"MadeofWelsh ","Podfrey ",0,1,1,2,0,3,1,2,0,1,"Wales","England",null,null,null,"Harza ",0,null,"Juniooor7 ",1,null,null,"Scotland",3,null,"Belgium",0,null,"Scotland",3]
[null,"nonumber ","Joemanji ",0,1,0,2,3,1,1,2,0,2,"Wales","England",null,null,null,"Barry ",0,null,"sigu70 ",1,null,null,"Spain",2,null,"Sweden",0,null,"Sweden",2.5]
[null,"Dionysian ","JimJimany ",1,0,3,0,2,0,3,3,2,2,"Wales","England",null,null,null,"Purrelito ",0,null,"gninocker ",1,null,null,"Sweden",2.5,null,"Denmark",0,null,"Spain",2]
[null,"Ploppy_McPloppy ","Lycos ",0.5,0.5,1,1,3,2,3,0,0,1,"Wales","England",null,null,null,"jopotzuki ",0,null,"Faccko ",1,null,null,"Switzerland",7,null,"France",0,null,"Hungary",2]
[null,"20Phoenix ","Wilzif ",0,1,0,1,3,1,2,2,0,2,"Wales","England",null,null,null,"Prince ",0,null,"Prince ",1,null,null,"Viking",6,null,"Scotland",0,null,"Denmark",1.5]
[null,"SFisher91 ","PurpleGoo ",1,0,2,1,0,2,0,2,1,3,"Wales","England",null,null,null,"Niebling ",0,null,"Driesfield ",1,null,null,"Wales",4.5,null,"Viking",0,null,"Finland",1.5]
[null,"Mewash ","Harza ",0.5,0.5,1,1,2,1,1,0,0,3,"Poland","Finland",null,null,null,"Harti ",0,null,"brocCooli ",1]
[null,"Reszka ","jopotzuki ",1,0,2,1,1,1,3,1,2,1,"Poland","Finland",null,null,null,"andydavo ",0,null,"Bouzzy ",1]
[null,"Domingo ","valkohukka ",0.5,0.5,1,1,1,0,2,2,1,1,"Poland","Finland",null,null,null,"BudWiser ",0,null,"Araznaroth ",1]
[null,"Slimaq ","MacWitt ",1,0,3,2,1,3,1,0,3,2,"Poland","Finland",null,null,null,"BiBi ",0,null,"Northernknight ",1]
[null,"Leonek ","edheim ",0.5,0.5,2,2,1,3,1,1,1,2,"Poland","Finland",null,null,null,"MadeofWelsh ",0,null,"Dionysian ",1]
[null,"Shawass ","BeerBeer ",1,0,3,0,3,2,3,2,1,2,"Poland","Finland",null,null,null,"valkohukka ",0,null,"Woete ",1]
[null,"Juniooor7 ","ratogre ",1,0,2,0,2,1,2,0,0,3,"Poland","Finland",null,null,null,"Joanet ",0,null,"Warrior1980 ",1]
[null,"Warrior1980 ","J-Ho",1,0,3,0,2,3,0,1,1,3,"Poland","Finland",null,null,null,"zulu ",0,null,"Arioso ",1]
[null,"Alex05 ","Jokaero ",0,1,1,2,2,1,0,3,1,2,"Hungary","Switzerland",null,null,null,"Gros Nain ",0,null,"Beppe ",1]
[null,"BlackOrc ","Elrik ",0.5,0.5,0,0,3,1,3,1,1,1,"Hungary","Switzerland",null,null,null,"Spartako ",0,null,"Matte8 ",1]
[null,"Favi ","Phifoe ",0,1,2,3,1,1,3,3,1,2,"Hungary","Switzerland",null,null,null,"Jaqra ",0,null,"Liam ",1]
[null,"swifty ","Strider84 ",0,1,1,3,1,0,1,2,1,2,"Hungary","Switzerland",null,null,null,"Mewash ",0,null,"Justicium ",1]
[null,"noraal ","Madmatt13 ",0.5,0.5,2,2,1,0,1,1,3,1,"Hungary","Switzerland",null,null,null,"Gaunab ",0,null,"Muadib ",1]
[null,"cz ","Macabeo ",0,1,2,3,1,1,2,2,1,0,"Hungary","Switzerland",null,null,null,"DocMaxx ",0,null,"Slimaq ",1]
[null,"Wolio ","Goss ",1,0,2,0,1,3,2,1,2,1,"Hungary","Switzerland",null,null,null,"nonumber ",0,null,"Wolio ",1]
[null,"Itzla ","sigu70 ",0,1,0,1,3,0,3,0,2,1,"Hungary","Switzerland",null,null,null,"FrankPedersen ",0,null,"BiBi ",1]
[null,"Prince ","Endalos ",1,0,3,0,2,1,3,1,2,2,"Germany","Norway",null,null,null,"Mubo ",0,null,"mynock ",1]
[null,"Gaunab ","mynock ",0,1,0,2,2,2,1,3,0,2,"Germany","Norway",null,null,null,"Melisqus ",0,null,"Verrinho ",1]
[null,"DocMaxx ","zulu ",0.5,0.5,2,2,1,3,3,1,2,1,"Germany","Norway",null,null,null,"Mufflo ",0,null,"Macabeo ",1]
[null,"Muadib ","FrankPedersen ",1,0,3,2,1,0,2,0,2,1,"Germany","Norway",null,null,null,"MacWitt ",0,null,"Jokaero ",1]
[null,"Candlejack ","GreatWhiteHope ",0,1,0,2,2,2,3,3,1,0,"Germany","Norway",null,null,null,"GreatWhiteHope ",0,null,"Barry ",1]
[null,"Jonny_Kanone ","straume ",0.5,0.5,2,2,1,3,2,1,2,1,"Germany","Norway",null,null,null,"Muadib ",0,null,"Reszka ",1]
[null,"Arioso ","The_Ref ",1,0,2,1,2,2,1,1,3,1,"Germany","Norway",null,null,null,"JohnnyD ",0,null,"Shawass ",1]
[null,"RoterSternHochdah ","bothun ",0.5,0.5,0,0,1,1,2,3,1,1,"Germany","Norway",null,null,null,"Kaltenland ",0,null,"Pidpad ",1]
[null,"Woete ","Pellevin ",1,0,2,1,2,1,0,3,1,2,"Belgium","Sweden",null,null,null,"Liam ",0,null,"Harti ",1]
[null,"gninocker ","Melisqus ",1,0,3,1,1,1,2,1,3,2,"Belgium","Sweden",null,null,null,"Malasnoticias ",0,null,"Inforthepain ",1]
[null,"Dekra1979 ","JohnnyD ",1,0,1,0,1,1,3,0,1,2,"Belgium","Sweden",null,null,null,"SpecialOne ",0,null,"Joemanji ",1]
[null,"JJ ","Skuld ",0.5,0.5,1,1,0,1,1,3,0,2,"Belgium","Sweden",null,null,null,"Skuld ",0,null,"Dekra1979 ",1]
[null,"Phoenix11 ","Pidpad ",0,1,0,2,2,2,1,2,1,3,"Belgium","Sweden",null,null,null,"Beppe ",0,null,"Corwin ",1]
[null,"Araznaroth ","Dragons ",1,0,1,0,1,2,0,3,0,1,"Belgium","Sweden",null,null,null,"Elrik ",0,null,"Tactel ",1]
[null,"Driesfield ","Skoberget ",1,0,3,1,3,1,2,2,1,0,"Belgium","Sweden",null,null,null,"Reszka ",0,null,"BudWiser ",0.5]
[null,"Malodoror ","Inforthepain ",0,1,2,3,2,2,1,1,2,1,"Belgium","Sweden",null,null,null,"Woete ",0,null,"Bernuz ",0.5]
[null,"Niebling ","Matt le fou ",0.5,0.5,2,2,1,3,2,2,0,1,"Denmark","France",null,null,null,"Dionysian ",0,null,"Mewash ",0.5]
[null,"Jaqra ","Harti ",0,1,0,2,2,1,0,2,2,3,"Denmark","France",null,null,null,"gninocker ",0,null,"noraal ",0.5]
[null,"SpecialOne ","BudWiser ",0.5,0.5,1,1,2,1,2,2,2,0,"Denmark","France",null,null,null,"Faccko ",0,null,"Harza ",0.5]
[null,"Topper ","BiBi ",0,1,2,3,2,3,0,1,2,1,"Denmark","France",null,null,null,"edheim ",0,null,"valkohukka ",0.5]
[null,"MissSweden ","Gros Nain ",0.5,0.5,3,3,3,3,1,3,0,2,"Denmark","France",null,null,null,"Phifoe ",0,null,"sann0638 ",0.5]
[null,"kfoged ","Justicium ",0,1,2,3,1,3,1,1,1,2,"Denmark","France",null,null,null,"Dirold ",0,null,"Jonny_Kanone ",0.5]
[null,"Tripleskull ","Simon_ACP ",0,1,0,1,2,0,1,0,3,1,"Denmark","France",null,null,null,"Strider84 ",0,null,"Niebling ",0.5]
[null,"Tank ","Bouzzy ",0,1,2,3,2,1,2,1,0,1,"Denmark","France",null,null,null,"Candlejack ",0,null,"MissSweden ",0.5]
[null,"JamesEs ","Balder ",0.5,0.5,1,1,1,2,1,3,1,1,"Scotland","Viking",null,null,null,"Ploppy_McPloppy ",0,null,"Balder ",0.5]
[null,"Garrick ","Purrelito ",0.5,0.5,2,2,3,0,2,0,2,1,"Scotland","Viking",null,null,null,"straume ",0,null,"Leonek ",0.5]
[null,"HumptyTrump ","Mufflo ",0.5,0.5,1,1,3,2,2,1,3,3,"Scotland","Viking",null,null,null,"Podfrey ",0,null,"Ploppy_McPloppy ",0.5]
[null,"Purdindas ","Faccko ",0,1,1,3,2,1,3,1,3,0,"Scotland","Viking",null,null,null,"Domingo ",0,null,"Lycos ",0.5]
[null,"sann0638 ","Bernuz ",0.5,0.5,3,3,1,1,1,2,1,3,"Scotland","Viking",null,null,null,"Slimaq ",0,null,"Skuld ",0.5]
[null,"DonShula ","brocCooli ",0,1,1,2,0,3,0,1,1,0,"Scotland","Viking",null,null,null,"BeerBeer ",0,null,"zulu ",0.5]
[null,"Loki ","Corwin ",0,1,0,1,0,3,3,2,0,2,"Scotland","Viking",null,null,null,"Justicium ",0,null,"edheim ",0.5]
[null,"Valen ","Duckwing ",1,0,2,1,2,0,2,1,2,3,"Scotland","Viking",null,null,null,"ratogre ",0,null,"Domingo ",0.5]
[null,null,null,null,null,null,null,null,null,null,null,null,null,null,null,null,null,null,"Alex05 ",0,null,"JamesEs ",0.5]
[null,null,null,null,null,null,null,null,null,null,null,null,null,null,null,null,null,null,"HumptyTrump ",0,null,"andydavo ",0.5]
[null,null,null,null,null,null,null,null,null,null,null,null,null,null,null,null,null,null,"Verrinho ",0,null,"HumptyTrump ",0.5]
[null,null,null,null,null,null,null,null,null,null,null,null,null,null,null,null,null,null,"Dekra1979 ",0,null,"bothun ",0.5]
[null,null,null,null,null,null,null,null,null,null,null,null,null,null,null,null,null,null,"Purdindas ",0,null,"Elrik ",0.5]
[null,null,null,null,null,null,null,null,null,null,null,null,null,null,null,null,null,null,"Madmatt13 ",0,null,"Mufflo ",0.5]
[null,null,null,null,null,null,null,null,null,null,null,null,null,null,null,null,null,null,"JJ ",0,null,"DocMaxx ",0.5]
[null,null,null,null,null,null,null,null,null,null,null,null,null,null,null,null,null,null,"BlackOrc ",0,null,"Garrick ",0.5]
[null,null,null,null,null,null,null,null,null,null,null,null,null,null,null,null,null,null,"Joemanji ",0,null,"Purrelito ",0.5]
[null,null,null,null,null,null,null,null,null,null,null,null,null,null,null,null,null,null,"Dark Duke ",0,null,"straume ",0.5]
[null,null,null,null,null,null,null,null,null,null,null,null,null,null,null,null,null,null,"Idroj ",0,null,"BlackOrc ",0.5]
[null,null,null,null,null,null,null,null,null,null,null,null,null,null,null,null,null,null,"The_Ref ",0,null,"RoterSternHochdah ",0.5]
[null,null,null,null,null,null,null,null,null,null,null,null,null,null,null,null,null,null,"Phoenix11 ",0,null,"Gros Nain ",0.5]
[null,null,null,null,null,null,null,null,null,null,null,null,null,null,null,null,null,null,"Pidpad ",0,null,"Madmatt13 ",0.5]
[null,null,null,null,null,null,null,null,null,null,null,null,null,null,null,null,null,null,"Bernuz ",0,null,"Matt le fou ",0.5]
[null,null,null,null,null,null,null,null,null,null,null,null,null,null,null,null,null,null,"Obeliz ",0,null,"SpecialOne ",0.5]
[null,null,null,null,null,null,null,null,null,null,null,null,null,null,null,null,null,null,"brocCooli ",0,null,"JJ ",0.5]
[null,null,null,null,null,null,null,null,null,null,null,null,null,null,null,null,null,null,"Corwin ",0,null,"Mubo ",0.5]
[null,null,null,null,null,null,null,null,null,null,null,null,null,null,null,null,null,null,"Jonny_Kanone ",0,null,"Itzla ",0]
[null,null,null,null,null,null,null,null,null,null,null,null,null,null,null,null,null,null,"Duckwing ",0,null,"Duckwing ",0]
[null,null,null,null,null,null,null,null,null,null,null,null,null,null,null,null,null,null,"Favi ",0,null,"Goss ",0]
[null,null,null,null,null,null,null,null,null,null,null,null,null,null,null,null,null,null,"Leonek ",0,null,"Tripleskull ",0]
[null,null,null,null,null,null,null,null,null,null,null,null,null,null,null,null,null,null,"Macabeo ",0,null,"Tank ",0]
[null,null,null,null,null,null,null,null,null,null,null,null,null,null,null,null,null,null,"20Phoenix ",0,null,"Duke_Luthor_Von_Hawkfire ",0]
[null,null,null,null,null,null,null,null,null,null,null,null,null,null,null,null,null,null,"sann0638 ",0,null,"Gaunab ",0]
[null,null,null,null,null,null,null,null,null,null,null,null,null,null,null,null,null,null,"Araznaroth ",0,null,"Joanet ",0]
[null,null,null,null,null,null,null,null,null,null,null,null,null,null,null,null,null,null,"Goss ",0,null,"Jaqra ",0]
[null,null,null,null,null,null,null,null,null,null,null,null,null,null,null,null,null,null,"DonShula ",0,null,"Malodoror ",0]
[null,null,null,null,null,null,null,null,null,null,null,null,null,null,null,null,null,null,"Arioso ",0,null,"kfoged ",0]
[null,null,null,null,null,null,null,null,null,null,null,null,null,null,null,null,null,null,"Tactel ",0,null,"Alex05 ",0]
[null,null,null,null,null,null,null,null,null,null,null,null,null,null,null,null,null,null,"Dragons ",0,null,"Spartako ",0]
[null,null,null,null,null,null,null,null,null,null,null,null,null,null,null,null,null,null,"RoterSternHochdah ",0,null,"Topper ",0]
[null,null,null,null,null,null,null,null,null,null,null,null,null,null,null,null,null,null,"Topper ",0,null,"BeerBeer ",0]
[null,null,null,null,null,null,null,null,null,null,null,null,null,null,null,null,null,null,"MissSweden ",0,null,"Pellevin ",0]
[null,null,null,null,null,null,null,null,null,null,null,null,null,null,null,null,null,null,"JimJimany ",0,null,"nonumber ",0]
[null,null,null,null,null,null,null,null,null,null,null,null,null,null,null,null,null,null,"swifty ",0,null,"swifty ",0]
[null,null,null,null,null,null,null,null,null,null,null,null,null,null,null,null,null,null,"Shawass ",0,null,"JohnnyD ",0]
[null,null,null,null,null,null,null,null,null,null,null,null,null,null,null,null,null,null,"Farina ",0,null,"The_Ref ",0]
[null,null,null,null,null,null,null,null,null,null,null,null,null,null,null,null,null,null,"kfoged ",0,null,"Obeliz ",0]
[null,null,null,null,null,null,null,null,null,null,null,null,null,null,null,null,null,null,"Lycos ",0,null,"JimJimany ",0]
[null,null,null,null,null,null,null,null,null,null,null,null,null,null,null,null,null,null,"Driesfield ",0,null,"DonShula ",0]
[null,null,null,null,null,null,null,null,null,null,null,null,null,null,null,null,null,null,"Malodoror ",0,null,"Farina ",0]
[null,null,null,null,null,null,null,null,null,null,null,null,null,null,null,null,null,null,"noraal ",0,null,"Geggster ",0]
[null,null,null,null,null,null,null,null,null,null,null,null,null,null,null,null,null,null,"Tripleskull ",0,null,"Loki ",0]
[null,null,null,null,null,null,null,null,null,null,null,null,null,null,null,null,null,null,"sigu70 ",0,null,"MadeofWelsh ",0]
[null,null,null,null,null,null,null,null,null,null,null,null,null,null,null,null,null,null,"Simon_ACP ",0,null,"MacWitt ",0]
[null,null,null,null,null,null,null,null,null,null,null,null,null,null,null,null,null,null,"Matte8 ",0,null,"FrankPedersen ",0]
[null,null,null,null,null,null,null,null,null,null,null,null,null,null,null,null,null,null,"J-Ho",0,null,"Dark Duke ",0]
[null,null,null,null,null,null,null,null,null,null,null,null,null,null,null,null,null,null,"Wilzif ",0,null,"PurpleGoo ",0]
[null,null,null,null,null,null,null,null,null,null,null,null,null,null,null,null,null,null,"Loki ",0,null,"cz ",0]
[null,null,null,null,null,null,null,null,null,null,null,null,null,null,null,null,null,null,"Duke_Luthor_Von_Hawkfire ",0,null,"Melisqus ",0]
[null,null,null,null,null,null,null,null,null,null,null,null,null,null,null,null,null,null,"SFisher91 ",0,null,"Favi ",0]
[null,null,null,null,null,null,null,null,null,null,null,null,null,null,null,null,null,null,"cz ",0,null,"Candlejack ",0]
[null,null,null,null,null,null,null,null,null,null,null,null,null,null,null,null,null,null,"PurpleGoo ",0,null,"ratogre ",0]
[null,null,null,null,null,null,null,null,null,null,null,null,null,null,null,null,null,null,"Tank ",0,null,"Idroj ",0]
[null,null,null,null,null,null,null,null,null,null,null,null,null,null,null,null,null,null,"bothun ",0,null,"jopotzuki ",0]
[null,null,null,null,null,null,null,null,null,null,null,null,null,null,null,null,null,null,"Skoberget ",0,null,"Endalos ",0]
[null,null,null,null,null,null,null,null,null,null,null,null,null,null,null,null,null,null,"Wolio ",0,null,"Phoenix11 ",0]
[null,null,null,null,null,null,null,null,null,null,null,null,null,null,null,null,null,null,"Juniooor7 ",0,null,"J-Ho",0]
[null,null,null,null,null,null,null,null,null,null,null,null,null,null,null,null,null,null,"Warrior1980 ",0,null,"Purdindas ",0]
[null,null,null,null,null,null,null,null,null,null,null,null,null,null,null,null,null,null,"Itzla ",0,null,"Dragons ",0]
[null,null,null,null,null,null,null,null,null,null,null,null,null,null,null,null,null,null,"Inforthepain ",0,null,"20Phoenix ",0]
[null,null,null,null,null,null,null,null,null,null,null,null,null,null,null,null,null,null,"Bouzzy ",0,null,"Skoberget ",0]
[null,null,null,null,null,null,null,null,null,null,null,null,null,null,null,null,null,null,"Valen ",0,null,"Malasnoticias ",0]

{"sheet":"Round2","index":10,"n_rows":129,"n_cols":33,"rows_kept":129,"cut":false,"hidden":false,"merged":[]}
[null,"Home Player","Away Player","Home Points","Away Points","Home TD","Away TD","Home Cas","Away Cas","Home Bonus 1","Away Bonus 1","Home Bonus 2","Away Bonus 2","Home Group","Away Group",null,null,null,"Points Before Games",null,null,"Points After Games",null,null,"Group Results","Group","Points",null,"Group Points Before Games",null,null,"Group Points Before Games"]
[null,"Juniooor7 ","Simon_ACP ",{"$f":"fctScore(F2,G2,H2,J2,L2)","v":0},{"$f":"fctScore(G2,F2,I2,K2,M2)","v":1},2,3,1,2,0,2,2,3,"Poland","France",null,null,null,"Podfrey ",1,null,"gninocker ",2,null,null,"Belgium",3,null,"Poland",7.5,null,"France",13.5]
[null,"Warrior1980 ","Bouzzy ",{"$f":"fctScore(F3,G3,H3,J3,L3)","v":0.5},{"$f":"fctScore(G3,F3,I3,K3,M3)","v":0.5},2,2,1,1,2,0,0,3,"Poland","France",null,null,null,"Simon_ACP ",1,null,"Matte8 ",2,null,null,"Denmark",6.5,null,"France",7.5,null,"Germany",13]
[null,"Slimaq ","Justicium ",0,1,1,3,2,1,3,1,1,0,"Poland","France",null,null,null,"Kaltenland ",1,null,"Verrinho ",2,null,null,"England",5.5,null,"Switzerland",7,null,"Italy",12.5]
[null,"Reszka ","BiBi ",0.5,0.5,1,1,2,1,3,2,0,1,"Poland","France",null,null,null,"Phifoe ",1,null,"Muadib ",2,null,null,"Finland",2.5,null,"Italy",7,null,"Viking",12]
[null,"Shawass ","Harti ",0,1,1,2,1,3,1,1,3,2,"Poland","France",null,null,null,"Wilzif ",1,null,"brocCooli ",2,null,null,"France",6,null,"Belgium",6.5,null,"Switzerland",10.5]
[null,"Mewash ","BudWiser ",1,0,3,1,1,2,0,0,2,1,"Poland","France",null,null,null,"GreatWhiteHope ",1,null,"Podfrey ",2,null,null,"Germany",7.5,null,"Viking",6,null,"Poland",10.5]
[null,"Leonek ","Gros Nain ",0,1,1,2,1,1,1,1,3,2,"Poland","France",null,null,null,"Strider84 ",1,null,"Arioso ",2,null,null,"Hungary",6.5,null,"Germany",5.5,null,"England",10]
[null,"Domingo ","Matt le fou ",1,0,2,1,1,3,2,1,2,0,"Poland","France",null,null,null,"SFisher91 ",1,null,"Prince ",2,null,null,"Italy",5.5,null,"Wales",4.5,null,"Belgium",9.5]
[null,"Phifoe ","Kaltenland ",1,0,3,1,2,0,1,2,0,3,"Switzerland","Italy",null,null,null,"Dirold ",1,null,"Simon_ACP ",2,null,null,"Norway",3.5,null,"England",4.5,null,"Hungary",8.5]
[null,"Strider84 ","Dirold ",0.5,0.5,3,3,3,3,1,3,1,1,"Switzerland","Italy",null,null,null,"Valen ",1,null,"Justicium ",2,null,null,"Poland",3,null,"Norway",3.5,null,"Sweden",8.5]
[null,"sigu70 ","Beppe ",1,0,3,2,2,1,0,2,0,0,"Switzerland","Italy",null,null,null,"Juniooor7 ",1,null,"sigu70 ",2,null,null,"Scotland",3,null,"Scotland",3,null,"Denmark",8]
[null,"Macabeo ","Matte8 ",0,1,1,2,1,2,2,1,1,1,"Switzerland","Italy",null,null,null,"sigu70 ",1,null,"Pidpad ",2,null,null,"Spain",2.5,null,"Sweden",2.5,null,"Norway",7]
[null,"Jokaero ","Liam ",0.5,0.5,1,1,3,1,1,3,1,1,"Switzerland","Italy",null,null,null,"gninocker ",1,null,"Phifoe ",2,null,null,"Sweden",6,null,"Spain",2,null,"Scotland",6]
[null,"Elrik ","Verrinho ",0,1,1,2,2,3,1,2,1,1,"Switzerland","Italy",null,null,null,"Faccko ",1,null,"Harti ",2,null,null,"Switzerland",3.5,null,"Hungary",2,null,"Wales",6]
[null,"Madmatt13 ","Spartako ",0,1,0,2,1,1,1,0,3,2,"Switzerland","Italy",null,null,null,"Prince ",1,null,"Wolio ",2,null,null,"Viking",6,null,"Denmark",1.5,null,"Spain",4.5]
[null,"Goss ","Farina ",0.5,0.5,1,1,1,3,2,3,1,0,"Switzerland","Italy",null,null,null,"Driesfield ",1,null,"Domingo ",1.5,null,null,"Wales",1.5,null,"Finland",1.5,null,"Finland",4]
[null,"gninocker ","Faccko ",1,0,1,0,0,1,3,2,2,0,"Belgium","Viking",null,null,null,"brocCooli ",1,null,"Bernuz ",1.5]
[null,"Driesfield ","brocCooli ",0,1,1,2,3,2,1,2,2,3,"Belgium","Viking",null,null,null,"Bouzzy ",1,null,"Warrior1980 ",1.5]
[null,"Araznaroth ","Corwin ",0.5,0.5,2,2,1,1,2,3,2,3,"Belgium","Viking",null,null,null,"Araznaroth ",1,null,"Reszka ",1.5]
[null,"Woete ","Bernuz ",0,1,0,3,3,1,3,1,2,2,"Belgium","Viking",null,null,null,"Northernknight ",1,null,"RoterSternHochdah ",1.5]
[null,"Dekra1979 ","Balder ",0.5,0.5,1,1,2,2,2,0,2,3,"Belgium","Viking",null,null,null,"Dionysian ",1,null,"BiBi ",1.5]
[null,"JJ ","Mufflo ",0.5,0.5,1,1,3,2,1,1,2,1,"Belgium","Viking",null,null,null,"Woete ",1,null,"Skuld ",1.5]
[null,"Malodoror ","Purrelito ",0.5,0.5,2,2,0,2,1,2,1,2,"Belgium","Viking",null,null,null,"Warrior1980 ",1,null,"noraal ",1.5]
[null,"Phoenix11 ","Duckwing ",0,1,1,2,2,1,1,0,2,1,"Belgium","Viking",null,null,null,"Arioso ",1,null,"SpecialOne ",1.5]
[null,"Prince ","SFisher91 ",1,0,2,1,1,3,1,1,0,1,"Germany","Wales",null,null,null,"Beppe ",1,null,"Strider84 ",1.5]
[null,"Arioso ","Northernknight ",1,0,3,0,3,1,1,2,1,2,"Germany","Wales",null,null,null,"Matte8 ",1,null,"Mubo ",1.5]
[null,"Muadib ","Dionysian ",1,0,2,1,0,2,0,0,0,1,"Germany","Wales",null,null,null,"Liam ",1,null,"sann0638 ",1.5]
[null,"Jonny_Kanone ","Ploppy_McPloppy ",0.5,0.5,1,1,2,2,1,1,2,3,"Germany","Wales",null,null,null,"Justicium ",1,null,"Bouzzy ",1.5]
[null,"DocMaxx ","andydavo ",0.5,0.5,1,1,2,1,0,2,1,2,"Germany","Wales",null,null,null,"Muadib ",1,null,"Jokaero ",1.5]
[null,"RoterSternHochdah ","nonumber ",1,0,1,0,2,2,1,1,2,2,"Germany","Wales",null,null,null,"Slimaq ",1,null,"Araznaroth ",1.5]
[null,"Gaunab ","MadeofWelsh ",1,0,3,2,1,3,2,0,0,0,"Germany","Wales",null,null,null,"Wolio ",1,null,"zulu ",1.5]
[null,"Candlejack ","20Phoenix ",0.5,0.5,1,1,0,2,1,1,2,0,"Germany","Wales",null,null,null,"BiBi ",1,null,"mynock ",1.5]
[null,"Podfrey ","GreatWhiteHope ",1,0,1,0,2,2,3,1,1,3,"England","Norway",null,null,null,"mynock ",1,null,"Dirold ",1.5]
[null,"Wilzif ","mynock ",0.5,0.5,1,1,3,1,2,0,1,2,"England","Norway",null,null,null,"Verrinho ",1,null,"Liam ",1.5]
[null,"Joemanji ","zulu ",0,1,0,1,0,1,1,2,2,3,"England","Norway",null,null,null,"Macabeo ",1,null,"Corwin ",1.5]
[null,"Lycos ","bothun ",0.5,0.5,2,2,2,3,1,1,2,3,"England","Norway",null,null,null,"Jokaero ",1,null,"Wilzif ",1.5]
[null,"Mubo ","straume ",1,0,3,2,1,0,2,0,1,1,"England","Norway",null,null,null,"Barry ",1,null,"Mewash ",1.5]
[null,"JimJimany ","The_Ref ",0.5,0.5,3,3,1,0,1,2,3,2,"England","Norway",null,null,null,"Reszka ",1,null,"Dekra1979 ",1.5]
[null,"Geggster ","FrankPedersen ",0.5,0.5,1,1,1,2,2,0,2,0,"England","Norway",null,null,null,"Shawass ",1,null,"Gros Nain ",1.5]
[null,"PurpleGoo ","Endalos ",0.5,0.5,1,1,1,3,2,2,3,1,"England","Norway",null,null,null,"Pidpad ",1,null,"JJ ",1]
[null,"Valen ","Pidpad ",0,1,1,3,2,2,3,2,2,1,"Scotland","Sweden",null,null,null,"Harti ",1,null,"Mufflo ",1]
[null,"sann0638 ","Inforthepain ",1,0,2,0,1,2,0,1,0,2,"Scotland","Sweden",null,null,null,"Inforthepain ",1,null,"Faccko ",1]
[null,"JamesEs ","Skuld ",0,1,1,2,1,1,2,2,2,1,"Scotland","Sweden",null,null,null,"Joemanji ",1,null,"valkohukka ",1]
[null,"HumptyTrump ","Pellevin ",0,1,0,2,1,1,2,2,2,2,"Scotland","Sweden",null,null,null,"Dekra1979 ",1,null,"Joemanji ",1]
[null,"Garrick ","JohnnyD ",0,1,0,1,2,2,2,2,0,2,"Scotland","Sweden",null,null,null,"Corwin ",1,null,"JohnnyD ",1]
[null,"DonShula ","Melisqus ",0.5,0.5,3,3,2,2,2,1,2,1,"Scotland","Sweden",null,null,null,"Tactel ",1,null,"SFisher91 ",1]
[null,"Loki ","Dragons ",1,0,2,1,1,1,1,3,1,0,"Scotland","Sweden",null,null,null,"BudWiser ",0.5,null,"Gaunab ",1]
[null,"Purdindas ","Skoberget ",0.5,0.5,2,2,2,1,0,1,2,2,"Scotland","Sweden",null,null,null,"Bernuz ",0.5,null,"Tactel ",1]
[null,"Barry ","Wolio ",0,1,2,3,2,3,1,0,0,2,"Spain","Hungary",null,null,null,"Mewash ",0.5,null,"Juniooor7 ",1]
[null,"Tactel ","noraal ",0,1,0,1,0,1,1,2,3,2,"Spain","Hungary",null,null,null,"noraal ",0.5,null,"Balder ",1]
[null,"Duke_Luthor_Von_Hawkfire ","BlackOrc ",0.5,0.5,3,3,2,1,2,2,1,3,"Spain","Hungary",null,null,null,"Harza ",0.5,null,"Malasnoticias ",1]
[null,"Joanet ","Itzla ",0,1,1,2,0,0,2,1,2,1,"Spain","Hungary",null,null,null,"valkohukka ",0.5,null,"Itzla ",1]
[null,"Obeliz ","Alex05 ",0,1,0,1,0,1,1,2,2,0,"Spain","Hungary",null,null,null,"sann0638 ",0.5,null,"Spartako ",1]
[null,"Dark Duke ","swifty ",0.5,0.5,2,2,1,1,2,3,3,1,"Spain","Hungary",null,null,null,"Jonny_Kanone ",0.5,null,"Loki ",1]
[null,"Idroj ","cz ",0.5,0.5,1,1,2,3,1,1,1,1,"Spain","Hungary",null,null,null,"Niebling ",0.5,null,"MissSweden ",1]
[null,"Malasnoticias ","Favi ",1,0,2,0,2,2,3,3,2,3,"Spain","Hungary",null,null,null,"MissSweden ",0.5,null,"Kaltenland ",1]
[null,"Niebling ","Harza ",0.5,0.5,1,1,3,3,2,0,1,1,"Denmark","Finland",null,null,null,"Balder ",0.5,null,"andydavo ",1]
[null,"MissSweden ","valkohukka ",0.5,0.5,0,0,2,2,3,0,3,2,"Denmark","Finland",null,null,null,"Leonek ",0.5,null,"Macabeo ",1]
[null,"SpecialOne ","edheim ",1,0,2,1,2,2,0,1,2,2,"Denmark","Finland",null,null,null,"Ploppy_McPloppy ",0.5,null,"Beppe ",1]
[null,"Tripleskull ","BeerBeer ",1,0,3,2,2,2,0,0,2,2,"Denmark","Finland",null,null,null,"Lycos ",0.5,null,"Inforthepain ",1]
[null,"Tank ","MacWitt ",0,1,1,2,2,3,1,0,2,2,"Denmark","Finland",null,null,null,"Skuld ",0.5,null,"Northernknight ",1]
[null,"Jaqra ","ratogre ",1,0,2,1,1,0,2,2,0,2,"Denmark","Finland",null,null,null,"zulu ",0.5,null,"Niebling ",1]
[null,"kfoged ","jopotzuki ",1,0,3,1,2,2,1,0,2,2,"Denmark","Finland",null,null,null,"edheim ",0.5,null,"Shawass ",1]
[null,"Topper ","J-Ho",0.5,0.5,2,2,1,1,1,1,2,2,"Denmark","Finland",null,null,null,"Domingo ",0.5,null,"Tripleskull ",1]
[null,null,null,null,null,null,null,null,null,null,null,null,null,null,null,null,null,null,"JamesEs ",0.5,null,"Jonny_Kanone ",1]
[null,null,null,null,null,null,null,null,null,null,null,null,null,null,null,null,null,null,"andydavo ",0.5,null,"Driesfield ",1]
[null,null,null,null,null,null,null,null,null,null,null,null,null,null,null,null,null,null,"HumptyTrump ",0.5,null,"Harza ",1]
[null,null,null,null,null,null,null,null,null,null,null,null,null,null,null,null,null,null,"bothun ",0.5,null,"Dionysian ",1]
[null,null,null,null,null,null,null,null,null,null,null,null,null,null,null,null,null,null,"Elrik ",0.5,null,"Ploppy_McPloppy ",1]
[null,null,null,null,null,null,null,null,null,null,null,null,null,null,null,null,null,null,"Mufflo ",0.5,null,"bothun ",1]
[null,null,null,null,null,null,null,null,null,null,null,null,null,null,null,null,null,null,"DocMaxx ",0.5,null,"MacWitt ",1]
[null,null,null,null,null,null,null,null,null,null,null,null,null,null,null,null,null,null,"Garrick ",0.5,null,"Valen ",1]
[null,null,null,null,null,null,null,null,null,null,null,null,null,null,null,null,null,null,"Purrelito ",0.5,null,"Woete ",1]
[null,null,null,null,null,null,null,null,null,null,null,null,null,null,null,null,null,null,"straume ",0.5,null,"Lycos ",1]
[null,null,null,null,null,null,null,null,null,null,null,null,null,null,null,null,null,null,"BlackOrc ",0.5,null,"Slimaq ",1]
[null,null,null,null,null,null,null,null,null,null,null,null,null,null,null,null,null,null,"RoterSternHochdah ",0.5,null,"Purrelito ",1]
[null,null,null,null,null,null,null,null,null,null,null,null,null,null,null,null,null,null,"Gros Nain ",0.5,null,"DocMaxx ",1]
[null,null,null,null,null,null,null,null,null,null,null,null,null,null,null,null,null,null,"Madmatt13 ",0.5,null,"GreatWhiteHope ",1]
[null,null,null,null,null,null,null,null,null,null,null,null,null,null,null,null,null,null,"Matt le fou ",0.5,null,"Jaqra ",1]
[null,null,null,null,null,null,null,null,null,null,null,null,null,null,null,null,null,null,"SpecialOne ",0.5,null,"Barry ",1]
[null,null,null,null,null,null,null,null,null,null,null,null,null,null,null,null,null,null,"JJ ",0.5,null,"BlackOrc ",1]
[null,null,null,null,null,null,null,null,null,null,null,null,null,null,null,null,null,null,"Mubo ",0.5,null,"Duckwing ",1]
[null,null,null,null,null,null,null,null,null,null,null,null,null,null,null,null,null,null,"Itzla ",0,null,"kfoged ",1]
[null,null,null,null,null,null,null,null,null,null,null,null,null,null,null,null,null,null,"Duckwing ",0,null,"Alex05 ",1]
[null,null,null,null,null,null,null,null,null,null,null,null,null,null,null,null,null,null,"Goss ",0,null,"Pellevin ",1]
[null,null,null,null,null,null,null,null,null,null,null,null,null,null,null,null,null,null,"Tripleskull ",0,null,"JamesEs ",0.5]
[null,null,null,null,null,null,null,null,null,null,null,null,null,null,null,null,null,null,"Tank ",0,null,"Candlejack ",0.5]
[null,null,null,null,null,null,null,null,null,null,null,null,null,null,null,null,null,null,"Duke_Luthor_Von_Hawkfire ",0,null,"Matt le fou ",0.5]
[null,null,null,null,null,null,null,null,null,null,null,null,null,null,null,null,null,null,"Gaunab ",0,null,"The_Ref ",0.5]
[null,null,null,null,null,null,null,null,null,null,null,null,null,null,null,null,null,null,"Joanet ",0,null,"Skoberget ",0.5]
[null,null,null,null,null,null,null,null,null,null,null,null,null,null,null,null,null,null,"Jaqra ",0,null,"20Phoenix ",0.5]
[null,null,null,null,null,null,null,null,null,null,null,null,null,null,null,null,null,null,"Malodoror ",0,null,"straume ",0.5]
[null,null,null,null,null,null,null,null,null,null,null,null,null,null,null,null,null,null,"kfoged ",0,null,"HumptyTrump ",0.5]
[null,null,null,null,null,null,null,null,null,null,null,null,null,null,null,null,null,null,"Alex05 ",0,null,"Duke_Luthor_Von_Hawkfire ",0.5]
[null,null,null,null,null,null,null,null,null,null,null,null,null,null,null,null,null,null,"Spartako ",0,null,"PurpleGoo ",0.5]
[null,null,null,null,null,null,null,null,null,null,null,null,null,null,null,null,null,null,"Topper ",0,null,"JimJimany ",0.5]
[null,null,null,null,null,null,null,null,null,null,null,null,null,null,null,null,null,null,"BeerBeer ",0,null,"Dark Duke ",0.5]
[null,null,null,null,null,null,null,null,null,null,null,null,null,null,null,null,null,null,"Pellevin ",0,null,"DonShula ",0.5]
[null,null,null,null,null,null,null,null,null,null,null,null,null,null,null,null,null,null,"nonumber ",0,null,"Endalos ",0.5]
[null,null,null,null,null,null,null,null,null,null,null,null,null,null,null,null,null,null,"swifty ",0,null,"swifty ",0.5]
[null,null,null,null,null,null,null,null,null,null,null,null,null,null,null,null,null,null,"JohnnyD ",0,null,"cz ",0.5]
[null,null,null,null,null,null,null,null,null,null,null,null,null,null,null,null,null,null,"The_Ref ",0,null,"Goss ",0.5]
[null,null,null,null,null,null,null,null,null,null,null,null,null,null,null,null,null,null,"Obeliz ",0,null,"Geggster ",0.5]
[null,null,null,null,null,null,null,null,null,null,null,null,null,null,null,null,null,null,"JimJimany ",0,null,"Garrick ",0.5]
[null,null,null,null,null,null,null,null,null,null,null,null,null,null,null,null,null,null,"DonShula ",0,null,"Topper ",0.5]
[null,null,null,null,null,null,null,null,null,null,null,null,null,null,null,null,null,null,"Farina ",0,null,"Idroj ",0.5]
[null,null,null,null,null,null,null,null,null,null,null,null,null,null,null,null,null,null,"Geggster ",0,null,"Malodoror ",0.5]
[null,null,null,null,null,null,null,null,null,null,null,null,null,null,null,null,null,null,"Loki ",0,null,"Elrik ",0.5]
[null,null,null,null,null,null,null,null,null,null,null,null,null,null,null,null,null,null,"MadeofWelsh ",0,null,"Purdindas ",0.5]
[null,null,null,null,null,null,null,null,null,null,null,null,null,null,null,null,null,null,"MacWitt ",0,null,"FrankPedersen ",0.5]
[null,null,null,null,null,null,null,null,null,null,null,null,null,null,null,null,null,null,"FrankPedersen ",0,null,"Leonek ",0.5]
[null,null,null,null,null,null,null,null,null,null,null,null,null,null,null,null,null,null,"Dark Duke ",0,null,"Melisqus ",0.5]
[null,null,null,null,null,null,null,null,null,null,null,null,null,null,null,null,null,null,"PurpleGoo ",0,null,"J-Ho",0.5]
[null,null,null,null,null,null,null,null,null,null,null,null,null,null,null,null,null,null,"cz ",0,null,"BudWiser ",0.5]
[null,null,null,null,null,null,null,null,null,null,null,null,null,null,null,null,null,null,"Melisqus ",0,null,"Farina ",0.5]
[null,null,null,null,null,null,null,null,null,null,null,null,null,null,null,null,null,null,"Favi ",0,null,"edheim ",0.5]
[null,null,null,null,null,null,null,null,null,null,null,null,null,null,null,null,null,null,"Candlejack ",0,null,"Madmatt13 ",0.5]
[null,null,null,null,null,null,null,null,null,null,null,null,null,null,null,null,null,null,"ratogre ",0,null,"Favi ",0]
[null,null,null,null,null,null,null,null,null,null,null,null,null,null,null,null,null,null,"Idroj ",0,null,"ratogre ",0]
[null,null,null,null,null,null,null,null,null,null,null,null,null,null,null,null,null,null,"jopotzuki ",0,null,"BeerBeer ",0]
[null,null,null,null,null,null,null,null,null,null,null,null,null,null,null,null,null,null,"Endalos ",0,null,"Tank ",0]
[null,null,null,null,null,null,null,null,null,null,null,null,null,null,null,null,null,null,"Phoenix11 ",0,null,"Joanet ",0]
[null,null,null,null,null,null,null,null,null,null,null,null,null,null,null,null,null,null,"J-Ho",0,null,"jopotzuki ",0]
[null,null,null,null,null,null,null,null,null,null,null,null,null,null,null,null,null,null,"Purdindas ",0,null,"MadeofWelsh ",0]
[null,null,null,null,null,null,null,null,null,null,null,null,null,null,null,null,null,null,"Dragons ",0,null,"Obeliz ",0]
[null,null,null,null,null,null,null,null,null,null,null,null,null,null,null,null,null,null,"20Phoenix ",0,null,"Phoenix11 ",0]
[null,null,null,null,null,null,null,null,null,null,null,null,null,null,null,null,null,null,"Skoberget ",0,null,"Dragons ",0]
[null,null,null,null,null,null,null,null,null,null,null,null,null,null,null,null,null,null,"Malasnoticias ",0,null,"nonumber ",0]

{"sheet":"Round3","index":11,"n_rows":129,"n_cols":33,"rows_kept":129,"cut":false,"hidden":false,"merged":[]}
[null,"Home Player","Away Player","Home Points","Away Points","Home TD","Away TD","Home Cas","Away Cas","Home Bonus 1","Away Bonus 1","Home Bonus 2","Away Bonus 2","Home Group","Away Group",null,null,null,"Points Before Games",null,null,"Points After Games",null,null,"Group Results","Group","Points",null,"Group Points Before Games",null,null,"Group Points Before Games"]
[null,"Simon_ACP ","Muadib ",{"$f":"fctScore(F2,G2,H2,J2,L2)","v":1},{"$f":"fctScore(G2,F2,I2,K2,M2)","v":0},2,1,0,1,1,2,1,1,"France","Germany",null,null,null,"gninocker ",2,null,"brocCooli ",3.5,null,null,"Belgium",4.5,null,"France",13.5,null,"France",18]
[null,"Justicium ","Arioso ",{"$f":"fctScore(F3,G3,H3,J3,L3)","v":0},{"$f":"fctScore(G3,F3,I3,K3,M3)","v":1},2,3,1,2,3,0,1,1,"France","Germany",null,null,null,"Matte8 ",2,null,"Corwin ",3,null,null,"Denmark",4.5,null,"Germany",13,null,"Germany",17.5]
[null,"Harti ","Prince ",0,1,1,2,3,0,1,2,2,2,"France","Germany",null,null,null,"Verrinho ",2,null,"Arioso ",3,null,null,"England",4.5,null,"Italy",12.5,null,"Italy",17]
[null,"BiBi ","RoterSternHochdah ",1,0,3,2,2,3,2,3,1,0,"France","Germany",null,null,null,"Muadib ",2,null,"Prince ",3,null,null,"Finland",3.5,null,"Viking",12,null,"Viking",16.5]
[null,"Bouzzy ","Gaunab ",1,0,2,0,2,0,0,1,1,0,"France","Germany",null,null,null,"brocCooli ",2,null,"Phifoe ",3,null,null,"France",4.5,null,"Switzerland",10.5,null,"Switzerland",15]
[null,"Gros Nain ","Jonny_Kanone ",0,1,2,3,3,2,2,1,1,2,"France","Germany",null,null,null,"Podfrey ",2,null,"Pidpad ",3,null,null,"Germany",4.5,null,"Poland",10.5,null,"Poland",15]
[null,"Matt le fou ","DocMaxx ",0.5,0.5,3,3,2,3,2,1,0,2,"France","Germany",null,null,null,"Arioso ",2,null,"gninocker ",3,null,null,"Hungary",3.5,null,"England",10,null,"England",14.5]
[null,"BudWiser ","Candlejack ",0.5,0.5,1,1,1,1,2,3,1,1,"France","Germany",null,null,null,"Prince ",2,null,"Simon_ACP ",3,null,null,"Italy",4.5,null,"Belgium",9.5,null,"Belgium",14]
[null,"Matte8 ","brocCooli ",0,1,0,1,1,1,0,1,2,3,"Italy","Viking",null,null,null,"Simon_ACP ",2,null,"sigu70 ",3,null,null,"Norway",4.5,null,"Hungary",8.5,null,"Sweden",14]
[null,"Verrinho ","Bernuz ",0.5,0.5,0,0,1,3,2,3,2,2,"Italy","Viking",null,null,null,"Justicium ",2,null,"noraal ",2.5,null,null,"Poland",4.5,null,"Sweden",8.5,null,"Denmark",12.5]
[null,"Dirold ","Corwin ",0,1,1,2,2,1,3,1,2,2,"Italy","Viking",null,null,null,"sigu70 ",2,null,"Strider84 ",2.5,null,null,"Scotland",3.5,null,"Denmark",8,null,"Hungary",12]
[null,"Liam ","Mufflo ",1,0,2,1,1,1,2,3,3,2,"Italy","Viking",null,null,null,"Pidpad ",2,null,"Verrinho ",2.5,null,null,"Spain",5.5,null,"Norway",7,null,"Norway",11.5]
[null,"Spartako ","Faccko ",1,0,3,1,2,3,2,2,1,0,"Italy","Viking",null,null,null,"Phifoe ",2,null,"BiBi ",2.5,null,null,"Sweden",5.5,null,"Scotland",6,null,"Wales",11.5]
[null,"Kaltenland ","Balder ",0,1,1,3,2,1,0,3,0,1,"Italy","Viking",null,null,null,"Harti ",2,null,"Balder ",2.5,null,null,"Switzerland",4.5,null,"Wales",6,null,"Spain",10]
[null,"Beppe ","Purrelito ",1,0,1,0,2,3,0,0,1,2,"Italy","Viking",null,null,null,"Wolio ",2,null,"zulu ",2.5,null,null,"Viking",4.5,null,"Spain",4.5,null,"Scotland",9.5]
[null,"Farina ","Duckwing ",0.5,0.5,2,2,0,1,1,3,2,2,"Italy","Viking",null,null,null,"Domingo ",1.5,null,"Bouzzy ",2.5,null,null,"Wales",5.5,null,"Finland",4,null,"Finland",7.5]
[null,"sigu70 ","Domingo ",0.5,0.5,2,2,1,0,1,0,0,1,"Switzerland","Poland",null,null,null,"Bernuz ",1.5,null,"mynock ",2.5]
[null,"Phifoe ","Warrior1980 ",0.5,0.5,2,2,0,1,2,2,1,2,"Switzerland","Poland",null,null,null,"Warrior1980 ",1.5,null,"Liam ",2.5]
[null,"Strider84 ","Reszka ",0.5,0.5,2,2,0,1,3,2,1,2,"Switzerland","Poland",null,null,null,"Reszka ",1.5,null,"Mewash ",2.5]
[null,"Jokaero ","Mewash ",0,1,1,3,3,1,2,1,0,3,"Switzerland","Poland",null,null,null,"RoterSternHochdah ",1.5,null,"Reszka ",2]
[null,"Macabeo ","Juniooor7 ",0,1,0,1,2,2,2,2,2,1,"Switzerland","Poland",null,null,null,"BiBi ",1.5,null,"Skoberget ",2]
[null,"Goss ","Shawass ",0.5,0.5,2,2,1,2,0,1,1,1,"Switzerland","Poland",null,null,null,"Skuld ",1.5,null,"BlackOrc ",2]
[null,"Elrik ","Slimaq ",1,0,1,0,3,3,1,2,0,2,"Switzerland","Poland",null,null,null,"noraal ",1.5,null,"Jonny_Kanone ",2]
[null,"Madmatt13 ","Leonek ",1,0,2,0,2,0,1,2,2,0,"Switzerland","Poland",null,null,null,"SpecialOne ",1.5,null,"Beppe ",2]
[null,"Podfrey ","gninocker ",0,1,0,1,2,3,2,1,1,1,"England","Belgium",null,null,null,"Strider84 ",1.5,null,"Malasnoticias ",2]
[null,"Mubo ","Araznaroth ",0.5,0.5,3,3,1,1,2,2,2,1,"England","Belgium",null,null,null,"Mubo ",1.5,null,"Muadib ",2]
[null,"Wilzif ","Dekra1979 ",0.5,0.5,1,1,2,1,1,1,1,0,"England","Belgium",null,null,null,"sann0638 ",1.5,null,"Spartako ",2]
[null,"Joemanji ","JJ ",0,1,1,3,2,2,2,3,2,2,"England","Belgium",null,null,null,"Bouzzy ",1.5,null,"Dekra1979 ",2]
[null,"Lycos ","Driesfield ",0.5,0.5,1,1,3,2,0,3,0,2,"England","Belgium",null,null,null,"Jokaero ",1.5,null,"Skuld ",2]
[null,"PurpleGoo ","Woete ",1,0,1,0,2,2,3,1,2,1,"England","Belgium",null,null,null,"Araznaroth ",1.5,null,"Warrior1980 ",2]
[null,"JimJimany ","Malodoror ",0.5,0.5,1,1,2,1,0,2,0,1,"England","Belgium",null,null,null,"zulu ",1.5,null,"Valen ",2]
[null,"Geggster ","Phoenix11 ",1,0,2,0,2,1,1,1,0,0,"England","Belgium",null,null,null,"mynock ",1.5,null,"Wolio ",2]
[null,"Wolio ","Pidpad ",0,1,0,3,0,3,0,1,1,1,"Hungary","Sweden",null,null,null,"Dirold ",1.5,null,"Matte8 ",2]
[null,"noraal ","Skuld ",1,0,2,0,3,1,0,0,3,1,"Hungary","Sweden",null,null,null,"Liam ",1.5,null,"Araznaroth ",2]
[null,"Itzla ","JohnnyD ",0.5,0.5,2,2,0,2,3,0,0,2,"Hungary","Sweden",null,null,null,"Corwin ",1.5,null,"Justicium ",2]
[null,"BlackOrc ","Inforthepain ",1,0,2,1,2,0,3,1,0,3,"Hungary","Sweden",null,null,null,"Wilzif ",1.5,null,"Niebling ",2]
[null,"Alex05 ","Pellevin ",1,0,3,2,2,3,1,0,3,3,"Hungary","Sweden",null,null,null,"Mewash ",1.5,null,"Podfrey ",2]
[null,"swifty ","Skoberget ",0,1,1,2,2,2,0,3,3,1,"Hungary","Sweden",null,null,null,"Dekra1979 ",1.5,null,"Elrik ",2]
[null,"cz ","Melisqus ",0,1,1,3,1,3,1,3,0,1,"Hungary","Sweden",null,null,null,"Gros Nain ",1.5,null,"Madmatt13 ",2]
[null,"Favi ","Dragons ",0,1,1,2,3,3,3,0,3,2,"Hungary","Sweden",null,null,null,"JJ ",1,null,"JohnnyD ",2]
[null,"SpecialOne ","zulu ",0,1,0,1,2,2,2,1,1,1,"Denmark","Norway",null,null,null,"Mufflo ",1,null,"Dionysian ",2]
[null,"MissSweden ","mynock ",0,1,1,2,2,1,1,1,2,3,"Denmark","Norway",null,null,null,"Faccko ",1,null,"Bernuz ",2]
[null,"Niebling ","bothun ",1,0,2,0,1,3,2,1,1,1,"Denmark","Norway",null,null,null,"valkohukka ",1,null,"Mubo ",2]
[null,"Tripleskull ","GreatWhiteHope ",1,0,3,2,1,2,3,0,2,3,"Denmark","Norway",null,null,null,"Joemanji ",1,null,"Harti ",2]
[null,"Jaqra ","The_Ref ",0,1,0,2,1,3,1,1,2,2,"Denmark","Norway",null,null,null,"JohnnyD ",1,null,"Juniooor7 ",2]
[null,"kfoged ","straume ",0.5,0.5,2,2,2,2,1,1,2,3,"Denmark","Norway",null,null,null,"SFisher91 ",1,null,"JJ ",2]
[null,"Topper ","Endalos ",0.5,0.5,0,0,1,1,1,2,0,1,"Denmark","Norway",null,null,null,"Gaunab ",1,null,"MacWitt ",2]
[null,"Tank ","FrankPedersen ",1,0,2,0,1,2,2,1,1,1,"Denmark","Norway",null,null,null,"Tactel ",1,null,"andydavo ",2]
[null,"sann0638 ","SFisher91 ",0,1,1,3,1,0,3,1,2,1,"Scotland","Wales",null,null,null,"Juniooor7 ",1,null,"Alex05 ",2]
[null,"Loki ","andydavo ",0,1,1,2,3,2,2,2,2,2,"Scotland","Wales",null,null,null,"Balder ",1,null,"Tripleskull ",2]
[null,"Valen ","Northernknight ",1,0,2,1,0,2,2,1,1,3,"Scotland","Wales",null,null,null,"Malasnoticias ",1,null,"Wilzif ",2]
[null,"JamesEs ","Dionysian ",0,1,0,3,2,2,2,1,1,0,"Scotland","Wales",null,null,null,"Itzla ",1,null,"Jokaero ",2]
[null,"HumptyTrump ","Ploppy_McPloppy ",0.5,0.5,1,1,2,3,2,3,0,2,"Scotland","Wales",null,null,null,"Spartako ",1,null,"SFisher91 ",2]
[null,"DonShula ","20Phoenix ",1,0,2,1,2,1,1,3,3,2,"Scotland","Wales",null,null,null,"Loki ",1,null,"Domingo ",2]
[null,"Garrick ","MadeofWelsh ",1,0,2,0,1,3,1,2,1,1,"Scotland","Wales",null,null,null,"MissSweden ",1,null,"valkohukka ",2]
[null,"Purdindas ","nonumber ",0,1,2,3,1,3,0,1,3,3,"Scotland","Wales",null,null,null,"Kaltenland ",1,null,"Geggster ",1.5]
[null,"Tactel ","valkohukka ",0,1,1,3,3,2,0,0,2,1,"Spain","Finland",null,null,null,"andydavo ",1,null,"PurpleGoo ",1.5]
[null,"Malasnoticias ","Harza ",1,0,2,1,0,2,1,0,2,1,"Spain","Finland",null,null,null,"Macabeo ",1,null,"Gros Nain ",1.5]
[null,"Barry ","MacWitt ",0,1,0,3,2,3,1,2,1,2,"Spain","Finland",null,null,null,"Beppe ",1,null,"The_Ref ",1.5]
[null,"Duke_Luthor_Von_Hawkfire ","J-Ho",0.5,0.5,2,2,1,1,1,2,2,1,"Spain","Finland",null,null,null,"Inforthepain ",1,null,"Lycos ",1.5]
[null,"Dark Duke ","edheim ",1,0,2,1,2,0,1,0,3,3,"Spain","Finland",null,null,null,"Northernknight ",1,null,"Garrick ",1.5]
[null,"Idroj ","ratogre ",1,0,3,2,0,2,1,3,1,2,"Spain","Finland",null,null,null,"Niebling ",1,null,"Dirold ",1.5]
[null,"Joanet ","BeerBeer ",1,0,3,1,0,2,1,2,1,3,"Spain","Finland",null,null,null,"Shawass ",1,null,"Goss ",1.5]
[null,"Obeliz ","jopotzuki ",0,1,1,3,3,3,0,1,1,3,"Spain","Finland",null,null,null,"Tripleskull ",1,null,"Itzla ",1.5]
[null,null,null,null,null,null,null,null,null,null,null,null,null,null,null,null,null,null,"Jonny_Kanone ",1,null,"Pellevin ",1.5]
[null,null,null,null,null,null,null,null,null,null,null,null,null,null,null,null,null,null,"Driesfield ",1,null,"RoterSternHochdah ",1.5]
[null,null,null,null,null,null,null,null,null,null,null,null,null,null,null,null,null,null,"Harza ",1,null,"sann0638 ",1.5]
[null,null,null,null,null,null,null,null,null,null,null,null,null,null,null,null,null,null,"Dionysian ",1,null,"DonShula ",1.5]
[null,null,null,null,null,null,null,null,null,null,null,null,null,null,null,null,null,null,"Ploppy_McPloppy ",1,null,"DocMaxx ",1.5]
[null,null,null,null,null,null,null,null,null,null,null,null,null,null,null,null,null,null,"bothun ",1,null,"Ploppy_McPloppy ",1.5]
[null,null,null,null,null,null,null,null,null,null,null,null,null,null,null,null,null,null,"MacWitt ",1,null,"Driesfield ",1.5]
[null,null,null,null,null,null,null,null,null,null,null,null,null,null,null,null,null,null,"Valen ",1,null,"Duckwing ",1.5]
[null,null,null,null,null,null,null,null,null,null,null,null,null,null,null,null,null,null,"Woete ",1,null,"kfoged ",1.5]
[null,null,null,null,null,null,null,null,null,null,null,null,null,null,null,null,null,null,"Lycos ",1,null,"SpecialOne ",1.5]
[null,null,null,null,null,null,null,null,null,null,null,null,null,null,null,null,null,null,"Slimaq ",1,null,"Dragons ",1.5]
[null,null,null,null,null,null,null,null,null,null,null,null,null,null,null,null,null,null,"Purrelito ",1,null,"Idroj ",1.5]
[null,null,null,null,null,null,null,null,null,null,null,null,null,null,null,null,null,null,"DocMaxx ",1,null,"Mufflo ",1.5]
[null,null,null,null,null,null,null,null,null,null,null,null,null,null,null,null,null,null,"GreatWhiteHope ",1,null,"Dark Duke ",1.5]
[null,null,null,null,null,null,null,null,null,null,null,null,null,null,null,null,null,null,"Jaqra ",1,null,"Melisqus ",1.5]
[null,null,null,null,null,null,null,null,null,null,null,null,null,null,null,null,null,null,"Barry ",1,null,"Faccko ",1.5]
[null,null,null,null,null,null,null,null,null,null,null,null,null,null,null,null,null,null,"BlackOrc ",1,null,"Shawass ",1.5]
[null,null,null,null,null,null,null,null,null,null,null,null,null,null,null,null,null,null,"Duckwing ",1,null,"Macabeo ",1.5]
[null,null,null,null,null,null,null,null,null,null,null,null,null,null,null,null,null,null,"kfoged ",1,null,"Endalos ",1]
[null,null,null,null,null,null,null,null,null,null,null,null,null,null,null,null,null,null,"Alex05 ",1,null,"Slimaq ",1]
[null,null,null,null,null,null,null,null,null,null,null,null,null,null,null,null,null,null,"Pellevin ",1,null,"Tactel ",1]
[null,null,null,null,null,null,null,null,null,null,null,null,null,null,null,null,null,null,"JamesEs ",0.5,null,"BudWiser ",1]
[null,null,null,null,null,null,null,null,null,null,null,null,null,null,null,null,null,null,"Candlejack ",0.5,null,"Duke_Luthor_Von_Hawkfire ",1]
[null,null,null,null,null,null,null,null,null,null,null,null,null,null,null,null,null,null,"Matt le fou ",0.5,null,"HumptyTrump ",1]
[null,null,null,null,null,null,null,null,null,null,null,null,null,null,null,null,null,null,"The_Ref ",0.5,null,"Northernknight ",1]
[null,null,null,null,null,null,null,null,null,null,null,null,null,null,null,null,null,null,"Skoberget ",0.5,null,"Jaqra ",1]
[null,null,null,null,null,null,null,null,null,null,null,null,null,null,null,null,null,null,"20Phoenix ",0.5,null,"Barry ",1]
[null,null,null,null,null,null,null,null,null,null,null,null,null,null,null,null,null,null,"straume ",0.5,null,"Candlejack ",1]
[null,null,null,null,null,null,null,null,null,null,null,null,null,null,null,null,null,null,"HumptyTrump ",0.5,null,"Topper ",1]
[null,null,null,null,null,null,null,null,null,null,null,null,null,null,null,null,null,null,"Duke_Luthor_Von_Hawkfire ",0.5,null,"Matt le fou ",1]
[null,null,null,null,null,null,null,null,null,null,null,null,null,null,null,null,null,null,"PurpleGoo ",0.5,null,"Purrelito ",1]
[null,null,null,null,null,null,null,null,null,null,null,null,null,null,null,null,null,null,"JimJimany ",0.5,null,"Joanet ",1]
[null,null,null,null,null,null,null,null,null,null,null,null,null,null,null,null,null,null,"Dark Duke ",0.5,null,"Gaunab ",1]
[null,null,null,null,null,null,null,null,null,null,null,null,null,null,null,null,null,null,"DonShula ",0.5,null,"Harza ",1]
[null,null,null,null,null,null,null,null,null,null,null,null,null,null,null,null,null,null,"Endalos ",0.5,null,"bothun ",1]
[null,null,null,null,null,null,null,null,null,null,null,null,null,null,null,null,null,null,"swifty ",0.5,null,"jopotzuki ",1]
[null,null,null,null,null,null,null,null,null,null,null,null,null,null,null,null,null,null,"cz ",0.5,null,"Woete ",1]
[null,null,null,null,null,null,null,null,null,null,null,null,null,null,null,null,null,null,"Goss ",0.5,null,"MissSweden ",1]
[null,null,null,null,null,null,null,null,null,null,null,null,null,null,null,null,null,null,"Geggster ",0.5,null,"Farina ",1]
[null,null,null,null,null,null,null,null,null,null,null,null,null,null,null,null,null,null,"Garrick ",0.5,null,"GreatWhiteHope ",1]
[null,null,null,null,null,null,null,null,null,null,null,null,null,null,null,null,null,null,"Topper ",0.5,null,"straume ",1]
[null,null,null,null,null,null,null,null,null,null,null,null,null,null,null,null,null,null,"Idroj ",0.5,null,"Joemanji ",1]
[null,null,null,null,null,null,null,null,null,null,null,null,null,null,null,null,null,null,"Malodoror ",0.5,null,"Malodoror ",1]
[null,null,null,null,null,null,null,null,null,null,null,null,null,null,null,null,null,null,"Elrik ",0.5,null,"nonumber ",1]
[null,null,null,null,null,null,null,null,null,null,null,null,null,null,null,null,null,null,"Purdindas ",0.5,null,"Kaltenland ",1]
[null,null,null,null,null,null,null,null,null,null,null,null,null,null,null,null,null,null,"FrankPedersen ",0.5,null,"J-Ho",1]
[null,null,null,null,null,null,null,null,null,null,null,null,null,null,null,null,null,null,"Leonek ",0.5,null,"Tank ",1]
[null,null,null,null,null,null,null,null,null,null,null,null,null,null,null,null,null,null,"Melisqus ",0.5,null,"Loki ",1]
[null,null,null,null,null,null,null,null,null,null,null,null,null,null,null,null,null,null,"J-Ho",0.5,null,"JimJimany ",1]
[null,null,null,null,null,null,null,null,null,null,null,null,null,null,null,null,null,null,"BudWiser ",0.5,null,"Inforthepain ",1]
[null,null,null,null,null,null,null,null,null,null,null,null,null,null,null,null,null,null,"Farina ",0.5,null,"Leonek ",0.5]
[null,null,null,null,null,null,null,null,null,null,null,null,null,null,null,null,null,null,"edheim ",0.5,null,"edheim ",0.5]
[null,null,null,null,null,null,null,null,null,null,null,null,null,null,null,null,null,null,"Madmatt13 ",0.5,null,"cz ",0.5]
[null,null,null,null,null,null,null,null,null,null,null,null,null,null,null,null,null,null,"Favi ",0,null,"FrankPedersen ",0.5]
[null,null,null,null,null,null,null,null,null,null,null,null,null,null,null,null,null,null,"ratogre ",0,null,"swifty ",0.5]
[null,null,null,null,null,null,null,null,null,null,null,null,null,null,null,null,null,null,"BeerBeer ",0,null,"20Phoenix ",0.5]
[null,null,null,null,null,null,null,null,null,null,null,null,null,null,null,null,null,null,"Tank ",0,null,"Purdindas ",0.5]
[null,null,null,null,null,null,null,null,null,null,null,null,null,null,null,null,null,null,"Joanet ",0,null,"JamesEs ",0.5]
[null,null,null,null,null,null,null,null,null,null,null,null,null,null,null,null,null,null,"jopotzuki ",0,null,"Favi ",0]
[null,null,null,null,null,null,null,null,null,null,null,null,null,null,null,null,null,null,"MadeofWelsh ",0,null,"ratogre ",0]
[null,null,null,null,null,null,null,null,null,null,null,null,null,null,null,null,null,null,"Obeliz ",0,null,"MadeofWelsh ",0]
[null,null,null,null,null,null,null,null,null,null,null,null,null,null,null,null,null,null,"Phoenix11 ",0,null,"Phoenix11 ",0]
[null,null,null,null,null,null,null,null,null,null,null,null,null,null,null,null,null,null,"Dragons ",0,null,"Obeliz ",0]
[null,null,null,null,null,null,null,null,null,null,null,null,null,null,null,null,null,null,"nonumber ",0,null,"BeerBeer ",0]

{"sheet":"Round4","index":12,"n_rows":129,"n_cols":33,"rows_kept":129,"cut":false,"hidden":false,"merged":[]}
[null,"Home Player","Away Player","Home Points","Away Points","Home TD","Away TD","Home Cas","Away Cas","Home Bonus 1","Away Bonus 1","Home Bonus 2","Away Bonus 2","Home Group","Away Group",null,null,null,"Points Before Games",null,null,"Points After Games",null,null,"Group Results","Group","Points",null,"Group Points Before Games",null,null,"Group Points Before Games"]
[null,"Simon_ACP ","Verrinho ",{"$f":"fctScore(F2,G2,H2,J2,L2)","v":0.5},{"$f":"fctScore(G2,F2,I2,K2,M2)","v":0.5},2,2,1,1,1,1,2,3,"France","Italy",null,null,null,"brocCooli ",3.5,null,"Corwin ",4.5,null,null,"Belgium",3.5,null,"France",18,null,"Italy",23.5]
[null,"BiBi ","Liam ",{"$f":"fctScore(F3,G3,H3,J3,L3)","v":1},{"$f":"fctScore(G3,F3,I3,K3,M3)","v":0},1,0,1,1,1,3,1,3,"France","Italy",null,null,null,"Corwin ",3,null,"brocCooli ",4,null,null,"Denmark",4.5,null,"Germany",17.5,null,"Viking",22]
[null,"Bouzzy ","Beppe ",0,1,0,1,2,1,0,3,1,3,"France","Italy",null,null,null,"Arioso ",3,null,"Strider84 ",4,null,null,"England",5.5,null,"Italy",17,null,"Germany",21]
[null,"Justicium ","Spartako ",0,1,1,2,1,2,1,2,0,1,"France","Italy",null,null,null,"Prince ",3,null,"Balder ",4,null,null,"Finland",4.5,null,"Viking",16.5,null,"France",20.5]
[null,"Harti ","Matte8 ",0.5,0.5,1,1,3,2,3,1,1,2,"France","Italy",null,null,null,"Phifoe ",3,null,"sigu70 ",4,null,null,"France",2.5,null,"Switzerland",15,null,"Poland",20.5]
[null,"Gros Nain ","Dirold ",0.5,0.5,1,1,1,3,1,1,2,1,"France","Italy",null,null,null,"Pidpad ",3,null,"Phifoe ",4,null,null,"Germany",3.5,null,"Poland",15,null,"England",20]
[null,"BudWiser ","Farina ",0,1,1,3,2,3,1,3,2,0,"France","Italy",null,null,null,"gninocker ",3,null,"mynock ",3.5,null,null,"Hungary",7.5,null,"England",14.5,null,"Hungary",19.5]
[null,"Matt le fou ","Kaltenland ",0,1,1,2,2,3,0,1,2,2,"France","Italy",null,null,null,"Simon_ACP ",3,null,"Pidpad ",3.5,null,null,"Italy",6.5,null,"Belgium",14,null,"Switzerland",18.5]
[null,"Arioso ","brocCooli ",0.5,0.5,1,1,3,2,3,2,2,0,"Germany","Viking",null,null,null,"sigu70 ",3,null,"Simon_ACP ",3.5,null,null,"Norway",1.5,null,"Sweden",14,null,"Sweden",18.5]
[null,"Prince ","Corwin ",0,1,1,3,2,1,1,2,2,3,"Germany","Viking",null,null,null,"noraal ",2.5,null,"BiBi ",3.5,null,null,"Poland",5.5,null,"Denmark",12.5,null,"Belgium",17.5]
[null,"Jonny_Kanone ","Balder ",0,1,0,2,1,1,3,2,2,3,"Germany","Viking",null,null,null,"Strider84 ",2.5,null,"noraal ",3.5,null,null,"Scotland",4.5,null,"Hungary",12,null,"Denmark",17]
[null,"Muadib ","Bernuz ",0,1,0,2,0,1,3,1,1,3,"Germany","Viking",null,null,null,"Verrinho ",2.5,null,"Arioso ",3.5,null,null,"Spain",3.5,null,"Norway",11.5,null,"Wales",17]
[null,"RoterSternHochdah ","Duckwing ",1,0,2,1,0,3,1,1,1,1,"Germany","Viking",null,null,null,"BiBi ",2.5,null,"gninocker ",3.5,null,null,"Sweden",4.5,null,"Wales",11.5,null,"Scotland",14]
[null,"DocMaxx ","Mufflo ",1,0,2,0,1,1,2,3,1,3,"Germany","Viking",null,null,null,"Balder ",2.5,null,"Bernuz ",3.5,null,null,"Switzerland",3.5,null,"Spain",10,null,"Spain",13.5]
[null,"Candlejack ","Faccko ",0.5,0.5,1,1,1,2,2,3,1,0,"Germany","Viking",null,null,null,"zulu ",2.5,null,"Malasnoticias ",3,null,null,"Viking",5.5,null,"Scotland",9.5,null,"Norway",13]
[null,"Gaunab ","Purrelito ",0.5,0.5,1,1,1,1,0,3,1,1,"Germany","Viking",null,null,null,"Bouzzy ",2.5,null,"Spartako ",3,null,null,"Wales",5.5,null,"Finland",7.5,null,"Finland",12]
[null,"Phifoe ","Podfrey ",0.5,0.5,1,1,3,3,0,1,0,1,"Switzerland","England",null,null,null,"mynock ",2.5,null,"Pellevin ",3]
[null,"sigu70 ","Mubo ",0.5,0.5,1,1,2,1,0,1,1,3,"Switzerland","England",null,null,null,"Liam ",2.5,null,"Mewash ",3]
[null,"Strider84 ","Wilzif ",1,0,3,2,1,1,0,2,3,3,"Switzerland","England",null,null,null,"Mewash ",2.5,null,"Wolio ",3]
[null,"Elrik ","Geggster ",0.5,0.5,2,2,2,1,1,1,3,2,"Switzerland","England",null,null,null,"Reszka ",2,null,"Elrik ",3]
[null,"Madmatt13 ","PurpleGoo ",0.5,0.5,2,2,1,0,0,3,1,0,"Switzerland","England",null,null,null,"Skoberget ",2,null,"Juniooor7 ",3]
[null,"Jokaero ","Lycos ",0,1,1,2,2,1,2,1,2,2,"Switzerland","England",null,null,null,"BlackOrc ",2,null,"Beppe ",3]
[null,"Goss ","Joemanji ",0,1,0,1,1,2,1,3,1,1,"Switzerland","England",null,null,null,"Jonny_Kanone ",2,null,"Alex05 ",3]
[null,"Macabeo ","JimJimany ",0.5,0.5,1,1,3,0,2,0,0,1,"Switzerland","England",null,null,null,"Beppe ",2,null,"Dragons ",3]
[null,"Mewash ","gninocker ",0.5,0.5,2,2,2,0,0,1,3,2,"Poland","Belgium",null,null,null,"Malasnoticias ",2,null,"Prince ",3]
[null,"Reszka ","Dekra1979 ",1,0,3,2,2,0,0,1,3,1,"Poland","Belgium",null,null,null,"Muadib ",2,null,"Verrinho ",3]
[null,"Warrior1980 ","Araznaroth ",0.5,0.5,1,1,2,1,3,1,3,1,"Poland","Belgium",null,null,null,"Spartako ",2,null,"valkohukka ",3]
[null,"Juniooor7 ","JJ ",1,0,1,0,0,0,3,1,0,2,"Poland","Belgium",null,null,null,"Dekra1979 ",2,null,"Reszka ",3]
[null,"Domingo ","Driesfield ",0,1,0,2,2,1,0,3,1,0,"Poland","Belgium",null,null,null,"Skuld ",2,null,"Tripleskull ",3]
[null,"Shawass ","Woete ",0,1,1,3,1,3,2,1,3,2,"Poland","Belgium",null,null,null,"Warrior1980 ",2,null,"Madmatt13 ",3]
[null,"Slimaq ","Malodoror ",0.5,0.5,2,2,2,3,1,3,2,2,"Poland","Belgium",null,null,null,"Valen ",2,null,"Warrior1980 ",2.5]
[null,"Leonek ","Phoenix11 ",1,0,3,2,0,2,3,0,0,1,"Poland","Belgium",null,null,null,"Wolio ",2,null,"Skuld ",2.5]
[null,"Pidpad ","Niebling ",0.5,0.5,2,2,0,2,1,0,2,1,"Sweden","Denmark",null,null,null,"Matte8 ",2,null,"Valen ",2.5]
[null,"Skoberget ","Tripleskull ",0,1,0,2,1,2,2,3,0,0,"Sweden","Denmark",null,null,null,"Araznaroth ",2,null,"DocMaxx ",2.5]
[null,"Skuld ","kfoged ",0,1,0,2,3,2,2,1,0,0,"Sweden","Denmark",null,null,null,"Justicium ",2,null,"SpecialOne ",2.5]
[null,"JohnnyD ","SpecialOne ",0,1,2,3,0,2,2,0,0,1,"Sweden","Denmark",null,null,null,"Niebling ",2,null,"Mubo ",2.5]
[null,"Pellevin ","Jaqra ",1,0,3,1,2,0,0,2,0,2,"Sweden","Denmark",null,null,null,"Podfrey ",2,null,"Dark Duke ",2.5]
[null,"Dragons ","Topper ",1,0,2,1,2,1,2,3,1,0,"Sweden","Denmark",null,null,null,"Elrik ",2,null,"Macabeo ",2.5]
[null,"Melisqus ","MissSweden ",1,0,2,1,1,2,2,1,0,3,"Sweden","Denmark",null,null,null,"Madmatt13 ",2,null,"Ploppy_McPloppy ",2.5]
[null,"Inforthepain ","Tank ",0.5,0.5,2,2,0,1,1,1,1,1,"Sweden","Denmark",null,null,null,"JohnnyD ",2,null,"RoterSternHochdah ",2.5]
[null,"noraal ","zulu ",1,0,3,2,2,2,2,2,2,2,"Hungary","Norway",null,null,null,"Dionysian ",2,null,"Jokaero ",2.5]
[null,"BlackOrc ","mynock ",0,1,0,3,2,1,3,0,0,1,"Hungary","Norway",null,null,null,"Bernuz ",2,null,"Lycos ",2.5]
[null,"Wolio ","The_Ref ",1,0,2,1,2,2,2,2,2,2,"Hungary","Norway",null,null,null,"Mubo ",2,null,"Melisqus ",2.5]
[null,"Alex05 ","Endalos ",1,0,3,1,2,1,0,1,1,1,"Hungary","Norway",null,null,null,"Harti ",2,null,"Bouzzy ",2.5]
[null,"Itzla ","bothun ",1,0,1,0,1,2,3,3,2,0,"Hungary","Norway",null,null,null,"Juniooor7 ",2,null,"Matte8 ",2.5]
[null,"cz ","GreatWhiteHope ",0.5,0.5,1,1,3,1,0,1,1,2,"Hungary","Norway",null,null,null,"JJ ",2,null,"zulu ",2.5]
[null,"swifty ","straume ",1,0,3,2,2,3,3,2,1,3,"Hungary","Norway",null,null,null,"MacWitt ",2,null,"Niebling ",2.5]
[null,"Favi ","FrankPedersen ",1,0,2,1,1,0,2,1,2,0,"Hungary","Norway",null,null,null,"andydavo ",2,null,"MacWitt ",2.5]
[null,"Dionysian ","Malasnoticias ",0,1,1,2,3,2,2,2,3,0,"Wales","Spain",null,null,null,"Alex05 ",2,null,"Araznaroth ",2.5]
[null,"andydavo ","Idroj ",0,1,1,2,1,1,1,1,3,3,"Wales","Spain",null,null,null,"Tripleskull ",2,null,"Itzla ",2.5]
[null,"SFisher91 ","Dark Duke ",0,1,1,2,0,2,3,0,0,1,"Wales","Spain",null,null,null,"Wilzif ",2,null,"kfoged ",2.5]
[null,"Ploppy_McPloppy ","Tactel ",1,0,3,1,0,1,1,1,2,3,"Wales","Spain",null,null,null,"Jokaero ",2,null,"sann0638 ",2.5]
[null,"Northernknight ","Duke_Luthor_Von_Hawkfire ",1,0,2,1,0,3,3,1,3,2,"Wales","Spain",null,null,null,"SFisher91 ",2,null,"DonShula ",2.5]
[null,"nonumber ","Barry ",0.5,0.5,2,2,1,2,1,3,2,0,"Wales","Spain",null,null,null,"Domingo ",2,null,"Harti ",2.5]
[null,"20Phoenix ","Joanet ",1,0,3,2,2,1,1,2,3,0,"Wales","Spain",null,null,null,"valkohukka ",2,null,"Driesfield ",2.5]
[null,"MadeofWelsh ","Obeliz ",1,0,2,1,1,2,1,2,2,0,"Wales","Spain",null,null,null,"Geggster ",1.5,null,"JohnnyD ",2.5]
[null,"Valen ","MacWitt ",0.5,0.5,1,1,2,2,2,3,2,2,"Scotland","Finland",null,null,null,"PurpleGoo ",1.5,null,"Skoberget ",2.5]
[null,"Garrick ","valkohukka ",0,1,0,1,3,3,2,2,1,2,"Scotland","Finland",null,null,null,"Gros Nain ",1.5,null,"Idroj ",2.5]
[null,"sann0638 ","Harza ",1,0,2,1,2,2,3,1,1,3,"Scotland","Finland",null,null,null,"The_Ref ",1.5,null,"Podfrey ",2.5]
[null,"DonShula ","jopotzuki ",1,0,1,0,2,1,2,2,2,1,"Scotland","Finland",null,null,null,"Lycos ",1.5,null,"Liam ",2.5]
[null,"HumptyTrump ","J-Ho",0.5,0.5,3,3,0,1,1,0,2,1,"Scotland","Finland",null,null,null,"Garrick ",1.5,null,"Dirold ",2]
[null,"Loki ","edheim ",0,1,1,3,1,1,0,3,3,3,"Scotland","Finland",null,null,null,"Dirold ",1.5,null,"Domingo ",2]
[null,"Purdindas ","ratogre ",1,0,3,0,3,3,2,2,0,2,"Scotland","Finland",null,null,null,"Goss ",1.5,null,"Faccko ",2]
[null,"JamesEs ","BeerBeer ",0,1,1,3,3,2,3,0,2,1,"Scotland","Finland",null,null,null,"Itzla ",1.5,null,"Goss ",2]
[null,null,null,null,null,null,null,null,null,null,null,null,null,null,null,null,null,null,"Pellevin ",1.5,null,"Woete ",2]
[null,null,null,null,null,null,null,null,null,null,null,null,null,null,null,null,null,null,"RoterSternHochdah ",1.5,null,"Geggster ",2]
[null,null,null,null,null,null,null,null,null,null,null,null,null,null,null,null,null,null,"sann0638 ",1.5,null,"Northernknight ",2]
[null,null,null,null,null,null,null,null,null,null,null,null,null,null,null,null,null,null,"DonShula ",1.5,null,"20Phoenix ",2]
[null,null,null,null,null,null,null,null,null,null,null,null,null,null,null,null,null,null,"DocMaxx ",1.5,null,"Wilzif ",2]
[null,null,null,null,null,null,null,null,null,null,null,null,null,null,null,null,null,null,"Ploppy_McPloppy ",1.5,null,"Kaltenland ",2]
[null,null,null,null,null,null,null,null,null,null,null,null,null,null,null,null,null,null,"Driesfield ",1.5,null,"JJ ",2]
[null,null,null,null,null,null,null,null,null,null,null,null,null,null,null,null,null,null,"Duckwing ",1.5,null,"BlackOrc ",2]
[null,null,null,null,null,null,null,null,null,null,null,null,null,null,null,null,null,null,"kfoged ",1.5,null,"PurpleGoo ",2]
[null,null,null,null,null,null,null,null,null,null,null,null,null,null,null,null,null,null,"SpecialOne ",1.5,null,"Justicium ",2]
[null,null,null,null,null,null,null,null,null,null,null,null,null,null,null,null,null,null,"Dragons ",1.5,null,"Jonny_Kanone ",2]
[null,null,null,null,null,null,null,null,null,null,null,null,null,null,null,null,null,null,"Idroj ",1.5,null,"Duckwing ",2]
[null,null,null,null,null,null,null,null,null,null,null,null,null,null,null,null,null,null,"Mufflo ",1.5,null,"Dionysian ",2]
[null,null,null,null,null,null,null,null,null,null,null,null,null,null,null,null,null,null,"Dark Duke ",1.5,null,"Purrelito ",2]
[null,null,null,null,null,null,null,null,null,null,null,null,null,null,null,null,null,null,"Melisqus ",1.5,null,"Gros Nain ",2]
[null,null,null,null,null,null,null,null,null,null,null,null,null,null,null,null,null,null,"Faccko ",1.5,null,"andydavo ",2]
[null,null,null,null,null,null,null,null,null,null,null,null,null,null,null,null,null,null,"Shawass ",1.5,null,"nonumber ",2]
[null,null,null,null,null,null,null,null,null,null,null,null,null,null,null,null,null,null,"Macabeo ",1.5,null,"Joemanji ",2]
[null,null,null,null,null,null,null,null,null,null,null,null,null,null,null,null,null,null,"Endalos ",1,null,"Dekra1979 ",2]
[null,null,null,null,null,null,null,null,null,null,null,null,null,null,null,null,null,null,"Slimaq ",1,null,"Farina ",2]
[null,null,null,null,null,null,null,null,null,null,null,null,null,null,null,null,null,null,"Tactel ",1,null,"SFisher91 ",2]
[null,null,null,null,null,null,null,null,null,null,null,null,null,null,null,null,null,null,"BudWiser ",1,null,"Muadib ",2]
[null,null,null,null,null,null,null,null,null,null,null,null,null,null,null,null,null,null,"Duke_Luthor_Von_Hawkfire ",1,null,"Purdindas ",1.5]
[null,null,null,null,null,null,null,null,null,null,null,null,null,null,null,null,null,null,"HumptyTrump ",1,null,"swifty ",1.5]
[null,null,null,null,null,null,null,null,null,null,null,null,null,null,null,null,null,null,"Northernknight ",1,null,"Malodoror ",1.5]
[null,null,null,null,null,null,null,null,null,null,null,null,null,null,null,null,null,null,"Jaqra ",1,null,"Garrick ",1.5]
[null,null,null,null,null,null,null,null,null,null,null,null,null,null,null,null,null,null,"Barry ",1,null,"Candlejack ",1.5]
[null,null,null,null,null,null,null,null,null,null,null,null,null,null,null,null,null,null,"Candlejack ",1,null,"Gaunab ",1.5]
[null,null,null,null,null,null,null,null,null,null,null,null,null,null,null,null,null,null,"Topper ",1,null,"HumptyTrump ",1.5]
[null,null,null,null,null,null,null,null,null,null,null,null,null,null,null,null,null,null,"Matt le fou ",1,null,"The_Ref ",1.5]
[null,null,null,null,null,null,null,null,null,null,null,null,null,null,null,null,null,null,"Purrelito ",1,null,"edheim ",1.5]
[null,null,null,null,null,null,null,null,null,null,null,null,null,null,null,null,null,null,"Joanet ",1,null,"Tank ",1.5]
[null,null,null,null,null,null,null,null,null,null,null,null,null,null,null,null,null,null,"Gaunab ",1,null,"Inforthepain ",1.5]
[null,null,null,null,null,null,null,null,null,null,null,null,null,null,null,null,null,null,"Harza ",1,null,"J-Ho",1.5]
[null,null,null,null,null,null,null,null,null,null,null,null,null,null,null,null,null,null,"bothun ",1,null,"Barry ",1.5]
[null,null,null,null,null,null,null,null,null,null,null,null,null,null,null,null,null,null,"jopotzuki ",1,null,"Shawass ",1.5]
[null,null,null,null,null,null,null,null,null,null,null,null,null,null,null,null,null,null,"Woete ",1,null,"Slimaq ",1.5]
[null,null,null,null,null,null,null,null,null,null,null,null,null,null,null,null,null,null,"MissSweden ",1,null,"GreatWhiteHope ",1.5]
[null,null,null,null,null,null,null,null,null,null,null,null,null,null,null,null,null,null,"Farina ",1,null,"Leonek ",1.5]
[null,null,null,null,null,null,null,null,null,null,null,null,null,null,null,null,null,null,"GreatWhiteHope ",1,null,"JimJimany ",1.5]
[null,null,null,null,null,null,null,null,null,null,null,null,null,null,null,null,null,null,"straume ",1,null,"Mufflo ",1.5]
[null,null,null,null,null,null,null,null,null,null,null,null,null,null,null,null,null,null,"Joemanji ",1,null,"Jaqra ",1]
[null,null,null,null,null,null,null,null,null,null,null,null,null,null,null,null,null,null,"Malodoror ",1,null,"straume ",1]
[null,null,null,null,null,null,null,null,null,null,null,null,null,null,null,null,null,null,"nonumber ",1,null,"Harza ",1]
[null,null,null,null,null,null,null,null,null,null,null,null,null,null,null,null,null,null,"Kaltenland ",1,null,"BeerBeer ",1]
[null,null,null,null,null,null,null,null,null,null,null,null,null,null,null,null,null,null,"J-Ho",1,null,"cz ",1]
[null,null,null,null,null,null,null,null,null,null,null,null,null,null,null,null,null,null,"Tank ",1,null,"Tactel ",1]
[null,null,null,null,null,null,null,null,null,null,null,null,null,null,null,null,null,null,"Loki ",1,null,"MadeofWelsh ",1]
[null,null,null,null,null,null,null,null,null,null,null,null,null,null,null,null,null,null,"JimJimany ",1,null,"Favi ",1]
[null,null,null,null,null,null,null,null,null,null,null,null,null,null,null,null,null,null,"Inforthepain ",1,null,"BudWiser ",1]
[null,null,null,null,null,null,null,null,null,null,null,null,null,null,null,null,null,null,"Leonek ",0.5,null,"MissSweden ",1]
[null,null,null,null,null,null,null,null,null,null,null,null,null,null,null,null,null,null,"edheim ",0.5,null,"Joanet ",1]
[null,null,null,null,null,null,null,null,null,null,null,null,null,null,null,null,null,null,"cz ",0.5,null,"Matt le fou ",1]
[null,null,null,null,null,null,null,null,null,null,null,null,null,null,null,null,null,null,"FrankPedersen ",0.5,null,"bothun ",1]
[null,null,null,null,null,null,null,null,null,null,null,null,null,null,null,null,null,null,"swifty ",0.5,null,"jopotzuki ",1]
[null,null,null,null,null,null,null,null,null,null,null,null,null,null,null,null,null,null,"20Phoenix ",0.5,null,"Topper ",1]
[null,null,null,null,null,null,null,null,null,null,null,null,null,null,null,null,null,null,"Purdindas ",0.5,null,"Endalos ",1]
[null,null,null,null,null,null,null,null,null,null,null,null,null,null,null,null,null,null,"JamesEs ",0.5,null,"Duke_Luthor_Von_Hawkfire ",1]
[null,null,null,null,null,null,null,null,null,null,null,null,null,null,null,null,null,null,"Favi ",0,null,"Loki ",1]
[null,null,null,null,null,null,null,null,null,null,null,null,null,null,null,null,null,null,"ratogre ",0,null,"JamesEs ",0.5]
[null,null,null,null,null,null,null,null,null,null,null,null,null,null,null,null,null,null,"MadeofWelsh ",0,null,"FrankPedersen ",0.5]
[null,null,null,null,null,null,null,null,null,null,null,null,null,null,null,null,null,null,"Phoenix11 ",0,null,"ratogre ",0]
[null,null,null,null,null,null,null,null,null,null,null,null,null,null,null,null,null,null,"Obeliz ",0,null,"Phoenix11 ",0]
[null,null,null,null,null,null,null,null,null,null,null,null,null,null,null,null,null,null,"BeerBeer ",0,null,"Obeliz ",0]

{"sheet":"Round5","index":13,"n_rows":129,"n_cols":33,"rows_kept":129,"cut":false,"hidden":false,"merged":[]}
[null,"Home Player","Away Player","Home Points","Away Points","Home TD","Away TD","Home Cas","Away Cas","Home Bonus 1","Away Bonus 1","Home Bonus 2","Away Bonus 2","Home Group","Away Group",null,null,null,"Points Before Games",null,null,"Points After Games",null,null,"Group Results","Group","Points",null,"Group Points Before Games",null,null,"Group Points Before Games"]
[null,"Spartako ","Arioso ",{"$f":"fctScore(F2,G2,H2,J2,L2)","v":1},{"$f":"fctScore(G2,F2,I2,K2,M2)","v":0},3,2,1,2,2,0,1,2,"Italy","Germany",null,null,null,"Corwin ",4.5,null,"Strider84 ",5.5,null,null,"Belgium",7,null,"Italy",23.5,null,"Italy",30]
[null,"Beppe ","Prince ",{"$f":"fctScore(F3,G3,H3,J3,L3)","v":0},{"$f":"fctScore(G3,F3,I3,K3,M3)","v":1},1,3,2,1,3,2,3,2,"Italy","Germany",null,null,null,"brocCooli ",4,null,"Balder ",5,null,null,"Denmark",4.5,null,"Viking",22,null,"Viking",28]
[null,"Verrinho ","DocMaxx ",1,0,1,0,1,3,2,3,2,1,"Italy","Germany",null,null,null,"Strider84 ",4,null,"brocCooli ",5,null,null,"England",3.5,null,"Germany",21,null,"Poland",26]
[null,"Matte8 ","RoterSternHochdah ",1,0,3,2,2,3,1,1,1,2,"Italy","Germany",null,null,null,"Balder ",4,null,"Corwin ",4.5,null,null,"Finland",4.5,null,"France",20.5,null,"Switzerland",25]
[null,"Liam ","Jonny_Kanone ",1,0,2,1,2,1,2,3,2,2,"Italy","Germany",null,null,null,"sigu70 ",4,null,"Pellevin ",4.5,null,null,"France",3,null,"Poland",20.5,null,"Belgium",24.5]
[null,"Dirold ","Muadib ",0.5,0.5,1,1,0,1,0,1,1,1,"Italy","Germany",null,null,null,"Phifoe ",4,null,"Simon_ACP ",4.5,null,null,"Germany",2.5,null,"England",20,null,"France",23.5]
[null,"Kaltenland ","Candlejack ",0,1,0,2,1,0,2,1,0,2,"Italy","Germany",null,null,null,"mynock ",3.5,null,"Phifoe ",4.5,null,null,"Hungary",2,null,"Hungary",19.5,null,"Germany",23.5]
[null,"Farina ","Gaunab ",1,0,3,0,2,3,1,2,1,2,"Italy","Germany",null,null,null,"Pidpad ",3.5,null,"Verrinho ",4,null,null,"Italy",6.5,null,"Switzerland",18.5,null,"England",23.5]
[null,"Corwin ","Simon_ACP ",0,1,2,3,0,2,3,0,1,2,"Viking","France",null,null,null,"Simon_ACP ",3.5,null,"Mewash ",4,null,null,"Norway",4.5,null,"Sweden",18.5,null,"Hungary",21.5]
[null,"brocCooli ","BiBi ",0.5,0.5,2,2,1,2,2,1,1,2,"Viking","France",null,null,null,"BiBi ",3.5,null,"valkohukka ",4,null,null,"Poland",5.5,null,"Belgium",17.5,null,"Denmark",21.5]
[null,"Balder ","Bouzzy ",1,0,2,1,1,2,2,0,1,1,"Viking","France",null,null,null,"noraal ",3.5,null,"Madmatt13 ",4,null,null,"Scotland",3.5,null,"Denmark",17,null,"Wales",21.5]
[null,"Bernuz ","Harti ",0,1,1,3,1,2,1,1,1,2,"Viking","France",null,null,null,"Arioso ",3.5,null,"Spartako ",4,null,null,"Spain",5.5,null,"Wales",17,null,"Sweden",21]
[null,"Faccko ","Justicium ",1,0,1,0,3,0,3,2,2,3,"Viking","France",null,null,null,"gninocker ",3.5,null,"gninocker ",4,null,null,"Sweden",2.5,null,"Scotland",14,null,"Spain",19]
[null,"Duckwing ","Gros Nain ",1,0,2,0,2,2,2,2,1,2,"Viking","France",null,null,null,"Bernuz ",3.5,null,"noraal ",4,null,null,"Switzerland",6.5,null,"Spain",13.5,null,"Scotland",17.5]
[null,"Purrelito ","BudWiser ",1,0,2,0,2,3,2,2,3,2,"Viking","France",null,null,null,"Malasnoticias ",3,null,"Bernuz ",4,null,null,"Viking",6,null,"Norway",13,null,"Norway",17.5]
[null,"Mufflo ","Matt le fou ",0.5,0.5,0,0,1,1,3,2,2,1,"Viking","France",null,null,null,"Spartako ",3,null,"Prince ",4,null,null,"Wales",4.5,null,"Finland",12,null,"Finland",16.5]
[null,"Mewash ","Mubo ",1,0,2,1,1,0,2,1,1,1,"Poland","England",null,null,null,"Pellevin ",3,null,"Dragons ",4]
[null,"Juniooor7 ","Lycos ",0,1,0,3,3,2,2,0,3,1,"Poland","England",null,null,null,"Mewash ",3,null,"Elrik ",4]
[null,"Reszka ","Podfrey ",0.5,0.5,1,1,1,2,1,0,3,1,"Poland","England",null,null,null,"Wolio ",3,null,"SFisher91 ",4]
[null,"Warrior1980 ","Geggster ",1,0,3,1,2,3,1,0,1,2,"Poland","England",null,null,null,"Elrik ",3,null,"BiBi ",4]
[null,"Domingo ","Wilzif ",0,1,2,3,1,2,1,3,1,0,"Poland","England",null,null,null,"Juniooor7 ",3,null,"sigu70 ",4]
[null,"Shawass ","PurpleGoo ",0,1,0,1,1,0,2,1,2,1,"Poland","England",null,null,null,"Beppe ",3,null,"Tripleskull ",3.5]
[null,"Slimaq ","Joemanji ",1,0,3,1,1,2,2,2,1,3,"Poland","England",null,null,null,"Alex05 ",3,null,"Matte8 ",3.5]
[null,"Leonek ","JimJimany ",1,0,2,1,2,1,0,1,0,2,"Poland","England",null,null,null,"Dragons ",3,null,"Duckwing ",3.5]
[null,"noraal ","gninocker ",0.5,0.5,1,1,0,2,2,0,1,0,"Hungary","Belgium",null,null,null,"Prince ",3,null,"Arioso ",3.5]
[null,"Wolio ","Araznaroth ",0.5,0.5,3,3,1,0,2,0,2,2,"Hungary","Belgium",null,null,null,"Verrinho ",3,null,"JohnnyD ",3.5]
[null,"Alex05 ","Driesfield ",0,1,0,1,0,2,1,3,1,2,"Hungary","Belgium",null,null,null,"valkohukka ",3,null,"Driesfield ",3.5]
[null,"Itzla ","Woete ",0,1,2,3,1,2,1,1,0,3,"Hungary","Belgium",null,null,null,"Reszka ",3,null,"Niebling ",3.5]
[null,"BlackOrc ","JJ ",0,1,0,2,3,1,1,2,1,2,"Hungary","Belgium",null,null,null,"Tripleskull ",3,null,"mynock ",3.5]
[null,"swifty ","Dekra1979 ",0,1,1,2,1,1,1,1,3,3,"Hungary","Belgium",null,null,null,"Madmatt13 ",3,null,"Harti ",3.5]
[null,"cz ","Malodoror ",0,1,1,2,1,3,2,0,0,2,"Hungary","Belgium",null,null,null,"Warrior1980 ",2.5,null,"Warrior1980 ",3.5]
[null,"Favi ","Phoenix11 ",1,0,1,0,2,0,2,2,2,0,"Hungary","Belgium",null,null,null,"Skuld ",2.5,null,"nonumber ",3.5]
[null,"Strider84 ","Pidpad ",1,0,1,0,2,2,1,1,3,1,"Switzerland","Sweden",null,null,null,"Valen ",2.5,null,"Lycos ",3.5]
[null,"sigu70 ","Pellevin ",0,1,1,3,2,1,0,1,3,0,"Switzerland","Sweden",null,null,null,"DocMaxx ",2.5,null,"Liam ",3.5]
[null,"Phifoe ","Dragons ",0.5,0.5,2,2,0,3,1,1,2,2,"Switzerland","Sweden",null,null,null,"SpecialOne ",2.5,null,"Skoberget ",3.5]
[null,"Elrik ","Skuld ",1,0,3,1,0,1,2,2,2,2,"Switzerland","Sweden",null,null,null,"Mubo ",2.5,null,"Idroj ",3.5]
[null,"Madmatt13 ","Melisqus ",1,0,3,2,0,2,3,1,3,2,"Switzerland","Sweden",null,null,null,"Dark Duke ",2.5,null,"Faccko ",3.5]
[null,"Macabeo ","JohnnyD ",0.5,0.5,3,3,1,2,2,2,1,1,"Switzerland","Sweden",null,null,null,"Macabeo ",2.5,null,"Purrelito ",3.5]
[null,"Jokaero ","Skoberget ",0.5,0.5,2,2,2,1,1,2,2,2,"Switzerland","Sweden",null,null,null,"Ploppy_McPloppy ",2.5,null,"kfoged ",3.5]
[null,"Goss ","Inforthepain ",1,0,3,1,3,3,2,2,2,1,"Switzerland","Sweden",null,null,null,"RoterSternHochdah ",2.5,null,"Malasnoticias ",3.5]
[null,"Tripleskull ","Ploppy_McPloppy ",0.5,0.5,2,2,2,1,2,3,2,1,"Denmark","Wales",null,null,null,"Jokaero ",2.5,null,"Reszka ",3.5]
[null,"SpecialOne ","Northernknight ",1,0,3,0,1,2,1,2,3,1,"Denmark","Wales",null,null,null,"Lycos ",2.5,null,"Pidpad ",3.5]
[null,"Niebling ","20Phoenix ",1,0,3,1,2,2,2,3,2,1,"Denmark","Wales",null,null,null,"Melisqus ",2.5,null,"zulu ",3.5]
[null,"kfoged ","Dionysian ",1,0,3,1,2,1,1,2,1,1,"Denmark","Wales",null,null,null,"Bouzzy ",2.5,null,"SpecialOne ",3.5]
[null,"Tank ","andydavo ",0.5,0.5,1,1,0,1,1,0,0,2,"Denmark","Wales",null,null,null,"Matte8 ",2.5,null,"Wolio ",3.5]
[null,"Jaqra ","nonumber ",0,1,0,2,0,0,3,1,1,2,"Denmark","Wales",null,null,null,"zulu ",2.5,null,"Beppe ",3]
[null,"MissSweden ","SFisher91 ",0,1,2,3,2,2,3,0,1,2,"Denmark","Wales",null,null,null,"Niebling ",2.5,null,"Araznaroth ",3]
[null,"Topper ","MadeofWelsh ",0,1,0,2,1,3,1,2,1,1,"Denmark","Wales",null,null,null,"MacWitt ",2.5,null,"PurpleGoo ",3]
[null,"Valen ","Malasnoticias ",0.5,0.5,1,1,3,1,1,2,2,1,"Scotland","Spain",null,null,null,"Araznaroth ",2.5,null,"Woete ",3]
[null,"sann0638 ","Dark Duke ",0.5,0.5,2,2,1,1,2,2,3,2,"Scotland","Spain",null,null,null,"Itzla ",2.5,null,"Farina ",3]
[null,"DonShula ","Idroj ",0,1,1,3,2,2,0,1,1,2,"Scotland","Spain",null,null,null,"kfoged ",2.5,null,"Alex05 ",3]
[null,"Purdindas ","Barry ",1,0,2,1,0,2,1,2,1,0,"Scotland","Spain",null,null,null,"sann0638 ",2.5,null,"Podfrey ",3]
[null,"Garrick ","Tactel ",0,1,2,3,3,1,1,1,1,2,"Scotland","Spain",null,null,null,"DonShula ",2.5,null,"Ploppy_McPloppy ",3]
[null,"HumptyTrump ","Joanet ",1,0,3,2,3,0,3,2,2,3,"Scotland","Spain",null,null,null,"Harti ",2.5,null,"Dark Duke ",3]
[null,"Loki ","Duke_Luthor_Von_Hawkfire ",0.5,0.5,1,1,1,0,1,1,0,3,"Scotland","Spain",null,null,null,"Driesfield ",2.5,null,"Skuld ",3]
[null,"JamesEs ","Obeliz ",0,1,2,3,3,2,2,2,3,2,"Scotland","Spain",null,null,null,"JohnnyD ",2.5,null,"Dekra1979 ",3]
[null,"mynock ","valkohukka ",0,1,1,2,2,2,0,2,1,1,"Norway","Finland",null,null,null,"Skoberget ",2.5,null,"Wilzif ",3]
[null,"zulu ","MacWitt ",1,0,2,1,1,1,1,1,1,0,"Norway","Finland",null,null,null,"Idroj ",2.5,null,"sann0638 ",3]
[null,"The_Ref ","edheim ",0,1,0,2,3,1,1,0,2,2,"Norway","Finland",null,null,null,"Podfrey ",2.5,null,"Valen ",3]
[null,"GreatWhiteHope ","J-Ho",1,0,3,2,2,2,3,3,3,3,"Norway","Finland",null,null,null,"Liam ",2.5,null,"Jokaero ",3]
[null,"straume ","Harza ",0.5,0.5,1,1,0,1,2,3,2,0,"Norway","Finland",null,null,null,"Dirold ",2,null,"Juniooor7 ",3]
[null,"bothun ","BeerBeer ",0.5,0.5,3,3,1,2,3,2,1,2,"Norway","Finland",null,null,null,"Domingo ",2,null,"Macabeo ",3]
[null,"Endalos ","jopotzuki ",1,0,3,2,1,2,0,2,2,2,"Norway","Finland",null,null,null,"Faccko ",2,null,"JJ ",3]
[null,"FrankPedersen ","ratogre ",0,1,0,2,2,3,2,2,2,1,"Norway","Finland",null,null,null,"Goss ",2,null,"Goss ",3]
[null,null,null,null,null,null,null,null,null,null,null,null,null,null,null,null,null,null,"Woete ",2,null,"Candlejack ",2.5]
[null,null,null,null,null,null,null,null,null,null,null,null,null,null,null,null,null,null,"Geggster ",2,null,"Dionysian ",2.5]
[null,null,null,null,null,null,null,null,null,null,null,null,null,null,null,null,null,null,"Northernknight ",2,null,"MacWitt ",2.5]
[null,null,null,null,null,null,null,null,null,null,null,null,null,null,null,null,null,null,"20Phoenix ",2,null,"Itzla ",2.5]
[null,null,null,null,null,null,null,null,null,null,null,null,null,null,null,null,null,null,"Wilzif ",2,null,"Leonek ",2.5]
[null,null,null,null,null,null,null,null,null,null,null,null,null,null,null,null,null,null,"Kaltenland ",2,null,"Muadib ",2.5]
[null,null,null,null,null,null,null,null,null,null,null,null,null,null,null,null,null,null,"JJ ",2,null,"GreatWhiteHope ",2.5]
[null,null,null,null,null,null,null,null,null,null,null,null,null,null,null,null,null,null,"BlackOrc ",2,null,"DocMaxx ",2.5]
[null,null,null,null,null,null,null,null,null,null,null,null,null,null,null,null,null,null,"PurpleGoo ",2,null,"Malodoror ",2.5]
[null,null,null,null,null,null,null,null,null,null,null,null,null,null,null,null,null,null,"Justicium ",2,null,"Purdindas ",2.5]
[null,null,null,null,null,null,null,null,null,null,null,null,null,null,null,null,null,null,"Jonny_Kanone ",2,null,"andydavo ",2.5]
[null,null,null,null,null,null,null,null,null,null,null,null,null,null,null,null,null,null,"Duckwing ",2,null,"RoterSternHochdah ",2.5]
[null,null,null,null,null,null,null,null,null,null,null,null,null,null,null,null,null,null,"Dionysian ",2,null,"Northernknight ",2.5]
[null,null,null,null,null,null,null,null,null,null,null,null,null,null,null,null,null,null,"Purrelito ",2,null,"Mubo ",2.5]
[null,null,null,null,null,null,null,null,null,null,null,null,null,null,null,null,null,null,"Gros Nain ",2,null,"DonShula ",2.5]
[null,null,null,null,null,null,null,null,null,null,null,null,null,null,null,null,null,null,"andydavo ",2,null,"Bouzzy ",2.5]
[null,null,null,null,null,null,null,null,null,null,null,null,null,null,null,null,null,null,"nonumber ",2,null,"Mufflo ",2.5]
[null,null,null,null,null,null,null,null,null,null,null,null,null,null,null,null,null,null,"Joemanji ",2,null,"Dirold ",2.5]
[null,null,null,null,null,null,null,null,null,null,null,null,null,null,null,null,null,null,"Dekra1979 ",2,null,"Melisqus ",2.5]
[null,null,null,null,null,null,null,null,null,null,null,null,null,null,null,null,null,null,"Farina ",2,null,"edheim ",2.5]
[null,null,null,null,null,null,null,null,null,null,null,null,null,null,null,null,null,null,"SFisher91 ",2,null,"Slimaq ",2.5]
[null,null,null,null,null,null,null,null,null,null,null,null,null,null,null,null,null,null,"Muadib ",2,null,"20Phoenix ",2.5]
[null,null,null,null,null,null,null,null,null,null,null,null,null,null,null,null,null,null,"Purdindas ",1.5,null,"HumptyTrump ",2.5]
[null,null,null,null,null,null,null,null,null,null,null,null,null,null,null,null,null,null,"swifty ",1.5,null,"Joemanji ",2]
[null,null,null,null,null,null,null,null,null,null,null,null,null,null,null,null,null,null,"Malodoror ",1.5,null,"Domingo ",2]
[null,null,null,null,null,null,null,null,null,null,null,null,null,null,null,null,null,null,"Garrick ",1.5,null,"Endalos ",2]
[null,null,null,null,null,null,null,null,null,null,null,null,null,null,null,null,null,null,"Candlejack ",1.5,null,"Tank ",2]
[null,null,null,null,null,null,null,null,null,null,null,null,null,null,null,null,null,null,"Gaunab ",1.5,null,"Gros Nain ",2]
[null,null,null,null,null,null,null,null,null,null,null,null,null,null,null,null,null,null,"HumptyTrump ",1.5,null,"BlackOrc ",2]
[null,null,null,null,null,null,null,null,null,null,null,null,null,null,null,null,null,null,"The_Ref ",1.5,null,"Tactel ",2]
[null,null,null,null,null,null,null,null,null,null,null,null,null,null,null,null,null,null,"edheim ",1.5,null,"Favi ",2]
[null,null,null,null,null,null,null,null,null,null,null,null,null,null,null,null,null,null,"Tank ",1.5,null,"Justicium ",2]
[null,null,null,null,null,null,null,null,null,null,null,null,null,null,null,null,null,null,"Inforthepain ",1.5,null,"Jonny_Kanone ",2]
[null,null,null,null,null,null,null,null,null,null,null,null,null,null,null,null,null,null,"J-Ho",1.5,null,"Geggster ",2]
[null,null,null,null,null,null,null,null,null,null,null,null,null,null,null,null,null,null,"Barry ",1.5,null,"Kaltenland ",2]
[null,null,null,null,null,null,null,null,null,null,null,null,null,null,null,null,null,null,"Shawass ",1.5,null,"MadeofWelsh ",2]
[null,null,null,null,null,null,null,null,null,null,null,null,null,null,null,null,null,null,"Slimaq ",1.5,null,"Loki ",1.5]
[null,null,null,null,null,null,null,null,null,null,null,null,null,null,null,null,null,null,"GreatWhiteHope ",1.5,null,"Harza ",1.5]
[null,null,null,null,null,null,null,null,null,null,null,null,null,null,null,null,null,null,"Leonek ",1.5,null,"bothun ",1.5]
[null,null,null,null,null,null,null,null,null,null,null,null,null,null,null,null,null,null,"JimJimany ",1.5,null,"swifty ",1.5]
[null,null,null,null,null,null,null,null,null,null,null,null,null,null,null,null,null,null,"Mufflo ",1.5,null,"Garrick ",1.5]
[null,null,null,null,null,null,null,null,null,null,null,null,null,null,null,null,null,null,"Jaqra ",1,null,"J-Ho",1.5]
[null,null,null,null,null,null,null,null,null,null,null,null,null,null,null,null,null,null,"straume ",1,null,"The_Ref ",1.5]
[null,null,null,null,null,null,null,null,null,null,null,null,null,null,null,null,null,null,"Harza ",1,null,"Gaunab ",1.5]
[null,null,null,null,null,null,null,null,null,null,null,null,null,null,null,null,null,null,"BeerBeer ",1,null,"Inforthepain ",1.5]
[null,null,null,null,null,null,null,null,null,null,null,null,null,null,null,null,null,null,"cz ",1,null,"BeerBeer ",1.5]
[null,null,null,null,null,null,null,null,null,null,null,null,null,null,null,null,null,null,"Tactel ",1,null,"JimJimany ",1.5]
[null,null,null,null,null,null,null,null,null,null,null,null,null,null,null,null,null,null,"MadeofWelsh ",1,null,"Barry ",1.5]
[null,null,null,null,null,null,null,null,null,null,null,null,null,null,null,null,null,null,"Favi ",1,null,"Duke_Luthor_Von_Hawkfire ",1.5]
[null,null,null,null,null,null,null,null,null,null,null,null,null,null,null,null,null,null,"BudWiser ",1,null,"Shawass ",1.5]
[null,null,null,null,null,null,null,null,null,null,null,null,null,null,null,null,null,null,"MissSweden ",1,null,"Matt le fou ",1.5]
[null,null,null,null,null,null,null,null,null,null,null,null,null,null,null,null,null,null,"Joanet ",1,null,"straume ",1.5]
[null,null,null,null,null,null,null,null,null,null,null,null,null,null,null,null,null,null,"Matt le fou ",1,null,"Obeliz ",1]
[null,null,null,null,null,null,null,null,null,null,null,null,null,null,null,null,null,null,"bothun ",1,null,"MissSweden ",1]
[null,null,null,null,null,null,null,null,null,null,null,null,null,null,null,null,null,null,"jopotzuki ",1,null,"ratogre ",1]
[null,null,null,null,null,null,null,null,null,null,null,null,null,null,null,null,null,null,"Topper ",1,null,"jopotzuki ",1]
[null,null,null,null,null,null,null,null,null,null,null,null,null,null,null,null,null,null,"Endalos ",1,null,"Jaqra ",1]
[null,null,null,null,null,null,null,null,null,null,null,null,null,null,null,null,null,null,"Duke_Luthor_Von_Hawkfire ",1,null,"Joanet ",1]
[null,null,null,null,null,null,null,null,null,null,null,null,null,null,null,null,null,null,"Loki ",1,null,"BudWiser ",1]
[null,null,null,null,null,null,null,null,null,null,null,null,null,null,null,null,null,null,"JamesEs ",0.5,null,"cz ",1]
[null,null,null,null,null,null,null,null,null,null,null,null,null,null,null,null,null,null,"FrankPedersen ",0.5,null,"Topper ",1]
[null,null,null,null,null,null,null,null,null,null,null,null,null,null,null,null,null,null,"ratogre ",0,null,"JamesEs ",0.5]
[null,null,null,null,null,null,null,null,null,null,null,null,null,null,null,null,null,null,"Phoenix11 ",0,null,"FrankPedersen ",0.5]
[null,null,null,null,null,null,null,null,null,null,null,null,null,null,null,null,null,null,"Obeliz ",0,null,"Phoenix11 ",0]

{"sheet":"Round6","index":14,"n_rows":129,"n_cols":33,"rows_kept":129,"cut":false,"hidden":false,"merged":[]}
[null,"Home Player","Away Player","Home Points","Away Points","Home TD","Away TD","Home Cas","Away Cas","Home Bonus 1","Away Bonus 1","Home Bonus 2","Away Bonus 2","Home Group","Away Group",null,null,null,"Points Before Games",null,null,"Points After Games",null,null,"Group Results","Group","Points",null,"Group Points Before Games",null,null,"Group Points Before Games"]
[null,"Verrinho ","Mewash ",{"$f":"fctScore(F2,G2,H2,J2,L2)","v":0},{"$f":"fctScore(G2,F2,I2,K2,M2)","v":1},1,2,2,1,2,1,3,0,"Italy","Poland",null,null,null,"Strider84 ",5.5,null,"Strider84 ",6.5,null,null,"Belgium",5.5,null,"Italy",30,null,"Italy",35.5]
[null,"Spartako ","Warrior1980 ",{"$f":"fctScore(F3,G3,H3,J3,L3)","v":0},{"$f":"fctScore(G3,F3,I3,K3,M3)","v":1},1,2,1,2,1,0,3,3,"Italy","Poland",null,null,null,"Balder ",5,null,"Phifoe ",6,null,null,"Denmark",3.5,null,"Viking",28,null,"Switzerland",31.5]
[null,"Matte8 ","Reszka ",0.5,0.5,1,1,1,2,2,3,2,0,"Italy","Poland",null,null,null,"brocCooli ",5,null,"Simon_ACP ",5.5,null,null,"England",1.5,null,"Poland",26,null,"Viking",30.5]
[null,"Liam ","Juniooor7 ",1,0,2,1,1,1,0,0,1,1,"Italy","Poland",null,null,null,"Corwin ",4.5,null,"Madmatt13 ",5.5,null,null,"Finland",7.5,null,"Switzerland",25,null,"Belgium",30]
[null,"Beppe ","Leonek ",0.5,0.5,1,1,3,2,2,1,2,3,"Italy","Poland",null,null,null,"Pellevin ",4.5,null,"Balder ",5.5,null,null,"France",4.5,null,"Belgium",24.5,null,"Poland",29.5]
[null,"Farina ","Slimaq ",0.5,0.5,1,1,1,1,3,0,2,2,"Italy","Poland",null,null,null,"Simon_ACP ",4.5,null,"brocCooli ",5,null,null,"Germany",5.5,null,"France",23.5,null,"Germany",29]
[null,"Dirold ","Domingo ",1,0,2,1,1,2,1,2,2,2,"Italy","Poland",null,null,null,"Phifoe ",4.5,null,"Dragons ",5,null,null,"Hungary",3.5,null,"Germany",23.5,null,"France",28]
[null,"Kaltenland ","Shawass ",1,0,2,1,0,1,2,2,3,2,"Italy","Poland",null,null,null,"Verrinho ",4,null,"Pellevin ",5,null,null,"Italy",5.5,null,"England",23.5,null,"Wales",26]
[null,"Balder ","Strider84 ",0,1,0,1,2,2,3,1,1,1,"Viking","Switzerland",null,null,null,"Mewash ",4,null,"Mewash ",5,null,null,"Norway",4.5,null,"Hungary",21.5,null,"Sweden",25.5]
[null,"brocCooli ","Phifoe ",0,1,0,1,2,2,1,2,2,2,"Viking","Switzerland",null,null,null,"valkohukka ",4,null,"Elrik ",5,null,null,"Poland",3.5,null,"Denmark",21.5,null,"Hungary",25]
[null,"Corwin ","Madmatt13 ",0,1,1,2,0,2,2,1,2,0,"Viking","Switzerland",null,null,null,"Madmatt13 ",4,null,"Prince ",5,null,null,"Scotland",5.5,null,"Wales",21.5,null,"Denmark",25]
[null,"Bernuz ","Elrik ",0.5,0.5,0,0,0,1,2,2,2,2,"Viking","Switzerland",null,null,null,"Spartako ",4,null,"Corwin ",5,null,null,"Spain",3.5,null,"Sweden",21,null,"England",25]
[null,"Duckwing ","sigu70 ",1,0,3,2,1,2,2,3,1,2,"Viking","Switzerland",null,null,null,"gninocker ",4,null,"Liam ",4.5,null,null,"Sweden",4.5,null,"Spain",19,null,"Finland",24]
[null,"Faccko ","Jokaero ",0,1,0,2,1,0,1,2,2,3,"Viking","Switzerland",null,null,null,"noraal ",4,null,"gninocker ",4.5,null,null,"Switzerland",6.5,null,"Scotland",17.5,null,"Scotland",23]
[null,"Purrelito ","Macabeo ",0.5,0.5,3,3,1,1,2,0,0,2,"Viking","Switzerland",null,null,null,"Bernuz ",4,null,"nonumber ",4.5,null,null,"Viking",2.5,null,"Norway",17.5,null,"Spain",22.5]
[null,"Mufflo ","Goss ",0.5,0.5,2,2,3,2,3,0,2,3,"Viking","Switzerland",null,null,null,"Prince ",4,null,"Warrior1980 ",4.5,null,null,"Wales",4.5,null,"Finland",16.5,null,"Norway",22]
[null,"SFisher91 ","Simon_ACP ",0,1,1,2,3,2,2,0,1,2,"Wales","France",null,null,null,"Dragons ",4,null,"sigu70 ",4.5]
[null,"nonumber ","BiBi ",1,0,3,1,2,1,0,2,0,1,"Wales","France",null,null,null,"Elrik ",4,null,"Jokaero ",4.5]
[null,"Ploppy_McPloppy ","Harti ",0.5,0.5,2,2,2,1,2,1,1,1,"Wales","France",null,null,null,"SFisher91 ",4,null,"kfoged ",4.5]
[null,"Dionysian ","Bouzzy ",0,1,1,2,1,2,0,2,1,3,"Wales","France",null,null,null,"BiBi ",4,null,"valkohukka ",4.5]
[null,"andydavo ","Gros Nain ",1,0,1,0,3,2,2,3,3,1,"Wales","France",null,null,null,"sigu70 ",4,null,"Wolio ",4.5]
[null,"Northernknight ","Justicium ",0,1,2,3,2,1,1,0,0,0,"Wales","France",null,null,null,"Tripleskull ",3.5,null,"Duckwing ",4.5]
[null,"20Phoenix ","Matt le fou ",1,0,3,1,2,1,2,1,2,0,"Wales","France",null,null,null,"Matte8 ",3.5,null,"Bernuz ",4.5]
[null,"MadeofWelsh ","BudWiser ",0.5,0.5,1,1,0,3,1,1,2,1,"Wales","France",null,null,null,"Duckwing ",3.5,null,"Tripleskull ",4.5]
[null,"Prince ","noraal ",1,0,3,0,0,2,0,2,0,3,"Germany","Hungary",null,null,null,"Arioso ",3.5,null,"Skoberget ",4]
[null,"Arioso ","Wolio ",0,1,0,1,1,1,0,1,3,0,"Germany","Hungary",null,null,null,"JohnnyD ",3.5,null,"Reszka ",4]
[null,"Candlejack ","Alex05 ",0,1,0,3,1,0,3,2,0,2,"Germany","Hungary",null,null,null,"Driesfield ",3.5,null,"Malasnoticias ",4]
[null,"Muadib ","Itzla ",0,1,0,2,3,2,2,1,2,2,"Germany","Hungary",null,null,null,"Niebling ",3.5,null,"Lycos ",4]
[null,"DocMaxx ","BlackOrc ",1,0,3,1,2,2,1,1,3,2,"Germany","Hungary",null,null,null,"mynock ",3.5,null,"BiBi ",4]
[null,"RoterSternHochdah ","Favi ",1,0,1,0,0,1,1,3,2,2,"Germany","Hungary",null,null,null,"Harti ",3.5,null,"JohnnyD ",4]
[null,"Jonny_Kanone ","swifty ",0.5,0.5,2,2,2,1,0,3,2,2,"Germany","Hungary",null,null,null,"Warrior1980 ",3.5,null,"Idroj ",4]
[null,"Gaunab ","cz ",1,0,2,1,1,3,2,1,2,0,"Germany","Hungary",null,null,null,"nonumber ",3.5,null,"Ploppy_McPloppy ",4]
[null,"Idroj ","gninocker ",0.5,0.5,1,1,3,0,2,2,2,2,"Spain","Belgium",null,null,null,"Lycos ",3.5,null,"Woete ",4]
[null,"Malasnoticias ","Driesfield ",0.5,0.5,0,0,1,0,2,3,1,1,"Spain","Belgium",null,null,null,"Liam ",3.5,null,"Valen ",4]
[null,"Dark Duke ","Araznaroth ",0.5,0.5,1,1,3,1,1,3,3,2,"Spain","Belgium",null,null,null,"Skoberget ",3.5,null,"noraal ",4]
[null,"Tactel ","Woete ",0,1,0,1,2,2,1,1,3,2,"Spain","Belgium",null,null,null,"Idroj ",3.5,null,"mynock ",4]
[null,"Barry ","Dekra1979 ",0.5,0.5,0,0,0,1,2,2,1,1,"Spain","Belgium",null,null,null,"Faccko ",3.5,null,"Alex05 ",4]
[null,"Duke_Luthor_Von_Hawkfire ","JJ ",0.5,0.5,1,1,1,0,1,1,0,3,"Spain","Belgium",null,null,null,"Purrelito ",3.5,null,"Faccko ",4]
[null,"Obeliz ","Malodoror ",1,0,3,2,1,2,0,3,2,3,"Spain","Belgium",null,null,null,"kfoged ",3.5,null,"Spartako ",4]
[null,"Joanet ","Phoenix11 ",0,1,1,3,1,3,3,2,1,2,"Spain","Belgium",null,null,null,"Malasnoticias ",3.5,null,"Driesfield ",4]
[null,"valkohukka ","Lycos ",0.5,0.5,2,2,0,3,2,3,0,1,"Finland","England",null,null,null,"Reszka ",3.5,null,"Macabeo ",4]
[null,"MacWitt ","PurpleGoo ",1,0,3,0,1,0,0,3,1,2,"Finland","England",null,null,null,"Pidpad ",3.5,null,"Purrelito ",4]
[null,"edheim ","Podfrey ",0.5,0.5,1,1,0,1,2,3,1,0,"Finland","England",null,null,null,"zulu ",3.5,null,"Skuld ",4]
[null,"Harza ","Wilzif ",1,0,3,2,1,2,3,1,0,2,"Finland","England",null,null,null,"SpecialOne ",3.5,null,"SFisher91 ",4]
[null,"J-Ho","Mubo ",1,0,2,0,1,2,0,1,1,2,"Finland","England",null,null,null,"Wolio ",3.5,null,"Matte8 ",4]
[null,"BeerBeer ","Joemanji ",1,0,3,2,2,1,2,2,0,3,"Finland","England",null,null,null,"Beppe ",3,null,"Harti ",4]
[null,"ratogre ","Geggster ",1,0,1,0,1,3,2,1,2,3,"Finland","England",null,null,null,"Araznaroth ",3,null,"Goss ",4]
[null,"jopotzuki ","JimJimany ",0.5,0.5,1,1,1,0,1,1,2,3,"Finland","England",null,null,null,"PurpleGoo ",3,null,"Verrinho ",4]
[null,"sann0638 ","Tripleskull ",0,1,1,3,1,2,1,1,3,3,"Scotland","Denmark",null,null,null,"Woete ",3,null,"Araznaroth ",3.5]
[null,"Valen ","Niebling ",1,0,3,2,3,1,1,0,1,2,"Scotland","Denmark",null,null,null,"Farina ",3,null,"Pidpad ",3.5]
[null,"Purdindas ","kfoged ",0,1,1,3,3,3,1,2,0,2,"Scotland","Denmark",null,null,null,"Alex05 ",3,null,"Beppe ",3.5]
[null,"DonShula ","SpecialOne ",1,0,2,0,2,0,0,1,2,1,"Scotland","Denmark",null,null,null,"Podfrey ",3,null,"Itzla ",3.5]
[null,"HumptyTrump ","Tank ",0.5,0.5,1,1,1,3,2,0,1,1,"Scotland","Denmark",null,null,null,"Ploppy_McPloppy ",3,null,"Farina ",3.5]
[null,"Loki ","MissSweden ",0,1,1,2,3,2,2,1,2,3,"Scotland","Denmark",null,null,null,"Dark Duke ",3,null,"RoterSternHochdah ",3.5]
[null,"Garrick ","Jaqra ",1,0,2,1,2,0,2,3,3,1,"Scotland","Denmark",null,null,null,"Skuld ",3,null,"zulu ",3.5]
[null,"JamesEs ","Topper ",1,0,2,1,1,2,0,2,2,2,"Scotland","Denmark",null,null,null,"Dekra1979 ",3,null,"20Phoenix ",3.5]
[null,"mynock ","Pellevin ",0.5,0.5,2,2,2,1,2,0,1,2,"Norway","Sweden",null,null,null,"Wilzif ",3,null,"Niebling ",3.5]
[null,"zulu ","Dragons ",0,1,1,3,1,1,3,2,2,2,"Norway","Sweden",null,null,null,"sann0638 ",3,null,"Dirold ",3.5]
[null,"GreatWhiteHope ","JohnnyD ",0.5,0.5,2,2,2,2,3,1,3,2,"Norway","Sweden",null,null,null,"Valen ",3,null,"DonShula ",3.5]
[null,"Endalos ","Skoberget ",0.5,0.5,2,2,0,1,1,2,2,2,"Norway","Sweden",null,null,null,"Jokaero ",3,null,"SpecialOne ",3.5]
[null,"bothun ","Pidpad ",1,0,3,1,2,1,2,1,2,0,"Norway","Sweden",null,null,null,"Juniooor7 ",3,null,"andydavo ",3.5]
[null,"The_Ref ","Skuld ",0.5,0.5,2,2,2,0,2,1,0,1,"Norway","Sweden",null,null,null,"Macabeo ",3,null,"MacWitt ",3.5]
[null,"straume ","Melisqus ",0.5,0.5,3,3,1,2,2,2,2,2,"Norway","Sweden",null,null,null,"JJ ",3,null,"Mufflo ",3.5]
[null,"FrankPedersen ","Inforthepain ",0.5,0.5,1,1,2,1,2,3,0,1,"Norway","Sweden",null,null,null,"Goss ",3,null,"Dekra1979 ",3.5]
[null,null,null,null,null,null,null,null,null,null,null,null,null,null,null,null,null,null,"Candlejack ",2.5,null,"Arioso ",3.5]
[null,null,null,null,null,null,null,null,null,null,null,null,null,null,null,null,null,null,"Dionysian ",2.5,null,"Bouzzy ",3.5]
[null,null,null,null,null,null,null,null,null,null,null,null,null,null,null,null,null,null,"MacWitt ",2.5,null,"DocMaxx ",3.5]
[null,null,null,null,null,null,null,null,null,null,null,null,null,null,null,null,null,null,"Itzla ",2.5,null,"JJ ",3.5]
[null,null,null,null,null,null,null,null,null,null,null,null,null,null,null,null,null,null,"Leonek ",2.5,null,"Dark Duke ",3.5]
[null,null,null,null,null,null,null,null,null,null,null,null,null,null,null,null,null,null,"Muadib ",2.5,null,"Podfrey ",3.5]
[null,null,null,null,null,null,null,null,null,null,null,null,null,null,null,null,null,null,"GreatWhiteHope ",2.5,null,"PurpleGoo ",3]
[null,null,null,null,null,null,null,null,null,null,null,null,null,null,null,null,null,null,"DocMaxx ",2.5,null,"edheim ",3]
[null,null,null,null,null,null,null,null,null,null,null,null,null,null,null,null,null,null,"Malodoror ",2.5,null,"Leonek ",3]
[null,null,null,null,null,null,null,null,null,null,null,null,null,null,null,null,null,null,"Purdindas ",2.5,null,"Northernknight ",3]
[null,null,null,null,null,null,null,null,null,null,null,null,null,null,null,null,null,null,"andydavo ",2.5,null,"sann0638 ",3]
[null,null,null,null,null,null,null,null,null,null,null,null,null,null,null,null,null,null,"RoterSternHochdah ",2.5,null,"HumptyTrump ",3]
[null,null,null,null,null,null,null,null,null,null,null,null,null,null,null,null,null,null,"Northernknight ",2.5,null,"Justicium ",3]
[null,null,null,null,null,null,null,null,null,null,null,null,null,null,null,null,null,null,"Mubo ",2.5,null,"Slimaq ",3]
[null,null,null,null,null,null,null,null,null,null,null,null,null,null,null,null,null,null,"DonShula ",2.5,null,"Kaltenland ",3]
[null,null,null,null,null,null,null,null,null,null,null,null,null,null,null,null,null,null,"Bouzzy ",2.5,null,"Juniooor7 ",3]
[null,null,null,null,null,null,null,null,null,null,null,null,null,null,null,null,null,null,"Mufflo ",2.5,null,"Melisqus ",3]
[null,null,null,null,null,null,null,null,null,null,null,null,null,null,null,null,null,null,"Dirold ",2.5,null,"Wilzif ",3]
[null,null,null,null,null,null,null,null,null,null,null,null,null,null,null,null,null,null,"Melisqus ",2.5,null,"GreatWhiteHope ",3]
[null,null,null,null,null,null,null,null,null,null,null,null,null,null,null,null,null,null,"edheim ",2.5,null,"MadeofWelsh ",3]
[null,null,null,null,null,null,null,null,null,null,null,null,null,null,null,null,null,null,"Slimaq ",2.5,null,"Dionysian ",3]
[null,null,null,null,null,null,null,null,null,null,null,null,null,null,null,null,null,null,"20Phoenix ",2.5,null,"Malodoror ",2.5]
[null,null,null,null,null,null,null,null,null,null,null,null,null,null,null,null,null,null,"HumptyTrump ",2.5,null,"Jonny_Kanone ",2.5]
[null,null,null,null,null,null,null,null,null,null,null,null,null,null,null,null,null,null,"Joemanji ",2,null,"Tank ",2.5]
[null,null,null,null,null,null,null,null,null,null,null,null,null,null,null,null,null,null,"Domingo ",2,null,"Garrick ",2.5]
[null,null,null,null,null,null,null,null,null,null,null,null,null,null,null,null,null,null,"Endalos ",2,null,"Gaunab ",2.5]
[null,null,null,null,null,null,null,null,null,null,null,null,null,null,null,null,null,null,"Tank ",2,null,"BeerBeer ",2.5]
[null,null,null,null,null,null,null,null,null,null,null,null,null,null,null,null,null,null,"Gros Nain ",2,null,"Candlejack ",2.5]
[null,null,null,null,null,null,null,null,null,null,null,null,null,null,null,null,null,null,"BlackOrc ",2,null,"Purdindas ",2.5]
[null,null,null,null,null,null,null,null,null,null,null,null,null,null,null,null,null,null,"Tactel ",2,null,"bothun ",2.5]
[null,null,null,null,null,null,null,null,null,null,null,null,null,null,null,null,null,null,"Favi ",2,null,"J-Ho",2.5]
[null,null,null,null,null,null,null,null,null,null,null,null,null,null,null,null,null,null,"Justicium ",2,null,"Harza ",2.5]
[null,null,null,null,null,null,null,null,null,null,null,null,null,null,null,null,null,null,"Jonny_Kanone ",2,null,"Mubo ",2.5]
[null,null,null,null,null,null,null,null,null,null,null,null,null,null,null,null,null,null,"Geggster ",2,null,"Endalos ",2.5]
[null,null,null,null,null,null,null,null,null,null,null,null,null,null,null,null,null,null,"Kaltenland ",2,null,"Muadib ",2.5]
[null,null,null,null,null,null,null,null,null,null,null,null,null,null,null,null,null,null,"MadeofWelsh ",2,null,"ratogre ",2]
[null,null,null,null,null,null,null,null,null,null,null,null,null,null,null,null,null,null,"Loki ",1.5,null,"straume ",2]
[null,null,null,null,null,null,null,null,null,null,null,null,null,null,null,null,null,null,"Harza ",1.5,null,"JimJimany ",2]
[null,null,null,null,null,null,null,null,null,null,null,null,null,null,null,null,null,null,"bothun ",1.5,null,"The_Ref ",2]
[null,null,null,null,null,null,null,null,null,null,null,null,null,null,null,null,null,null,"swifty ",1.5,null,"Joemanji ",2]
[null,null,null,null,null,null,null,null,null,null,null,null,null,null,null,null,null,null,"Garrick ",1.5,null,"Tactel ",2]
[null,null,null,null,null,null,null,null,null,null,null,null,null,null,null,null,null,null,"J-Ho",1.5,null,"Obeliz ",2]
[null,null,null,null,null,null,null,null,null,null,null,null,null,null,null,null,null,null,"The_Ref ",1.5,null,"Favi ",2]
[null,null,null,null,null,null,null,null,null,null,null,null,null,null,null,null,null,null,"Gaunab ",1.5,null,"Barry ",2]
[null,null,null,null,null,null,null,null,null,null,null,null,null,null,null,null,null,null,"Inforthepain ",1.5,null,"Inforthepain ",2]
[null,null,null,null,null,null,null,null,null,null,null,null,null,null,null,null,null,null,"BeerBeer ",1.5,null,"Gros Nain ",2]
[null,null,null,null,null,null,null,null,null,null,null,null,null,null,null,null,null,null,"JimJimany ",1.5,null,"BlackOrc ",2]
[null,null,null,null,null,null,null,null,null,null,null,null,null,null,null,null,null,null,"Barry ",1.5,null,"MissSweden ",2]
[null,null,null,null,null,null,null,null,null,null,null,null,null,null,null,null,null,null,"Duke_Luthor_Von_Hawkfire ",1.5,null,"Duke_Luthor_Von_Hawkfire ",2]
[null,null,null,null,null,null,null,null,null,null,null,null,null,null,null,null,null,null,"Shawass ",1.5,null,"swifty ",2]
[null,null,null,null,null,null,null,null,null,null,null,null,null,null,null,null,null,null,"Matt le fou ",1.5,null,"Geggster ",2]
[null,null,null,null,null,null,null,null,null,null,null,null,null,null,null,null,null,null,"straume ",1.5,null,"Domingo ",2]
[null,null,null,null,null,null,null,null,null,null,null,null,null,null,null,null,null,null,"Obeliz ",1,null,"BudWiser ",1.5]
[null,null,null,null,null,null,null,null,null,null,null,null,null,null,null,null,null,null,"MissSweden ",1,null,"JamesEs ",1.5]
[null,null,null,null,null,null,null,null,null,null,null,null,null,null,null,null,null,null,"ratogre ",1,null,"Shawass ",1.5]
[null,null,null,null,null,null,null,null,null,null,null,null,null,null,null,null,null,null,"jopotzuki ",1,null,"jopotzuki ",1.5]
[null,null,null,null,null,null,null,null,null,null,null,null,null,null,null,null,null,null,"Jaqra ",1,null,"Loki ",1.5]
[null,null,null,null,null,null,null,null,null,null,null,null,null,null,null,null,null,null,"Joanet ",1,null,"Matt le fou ",1.5]
[null,null,null,null,null,null,null,null,null,null,null,null,null,null,null,null,null,null,"BudWiser ",1,null,"Phoenix11 ",1]
[null,null,null,null,null,null,null,null,null,null,null,null,null,null,null,null,null,null,"cz ",1,null,"FrankPedersen ",1]
[null,null,null,null,null,null,null,null,null,null,null,null,null,null,null,null,null,null,"Topper ",1,null,"Jaqra ",1]
[null,null,null,null,null,null,null,null,null,null,null,null,null,null,null,null,null,null,"JamesEs ",0.5,null,"Joanet ",1]
[null,null,null,null,null,null,null,null,null,null,null,null,null,null,null,null,null,null,"FrankPedersen ",0.5,null,"cz ",1]
[null,null,null,null,null,null,null,null,null,null,null,null,null,null,null,null,null,null,"Phoenix11 ",0,null,"Topper ",1]

{"sheet":"Round7","index":15,"n_rows":0,"n_cols":0,"rows_kept":0,"cut":false,"hidden":false,"merged":[]}

{"sheet":"Round8","index":16,"n_rows":0,"n_cols":0,"rows_kept":0,"cut":false,"hidden":false,"merged":[]}

{"sheet":"Round9","index":17,"n_rows":0,"n_cols":0,"rows_kept":0,"cut":false,"hidden":false,"merged":[]}

{"sheet":"NAF","index":18,"n_rows":861,"n_cols":1,"rows_kept":861,"cut":false,"hidden":false,"merged":[]}
["<?xml version=\"1.0\" encoding=\"UTF-8\"?>"]
["<nafReport xmlns:blo=\"http://www.bloodbowl.net\">"]
["<organiser>Mike</organiser>"]
["<coaches>"]
["<coach>"]
["<name>Alex</name>"]
["<number>16761</number>"]
["<team>Skaven</team>"]
["</coach>"]
["<coach>"]
["<name>Mike</name>"]
["<number>10468</number>"]
["<team>Elves</team>"]
["</coach>"]
["<coach>"]
["<name>Linus</name>"]
["<number>15676</number>"]
["<team>Dwarves</team>"]
["</coach>"]
["<coach>"]
["<name>Player4</name>"]
["<number>9106</number>"]
["<team>Wood Elves</team>"]
["</coach>"]
["<coach>"]
["<name>Player5</name>"]
["<number>12789</number>"]
["<team>Dark Elves</team>"]
["</coach>"]
["<coach>"]
["<name>Player6</name>"]
["<number>18136</number>"]
["<team>Wood Elves</team>"]
["</coach>"]
["<coach>"]
["<name>Player7</name>"]
["<number>9672</number>"]
["<team>Wood Elves</team>"]
["</coach>"]
["<coach>"]
["<name>Player8</name>"]
["<number>4118</number>"]
["<team>Chaos Dwarves</team>"]
["</coach>"]
["<coach>"]
["<name>Player9</name>"]
["<number>14129</number>"]
["<team>Nurgle's Rotters</team>"]
["</coach>"]
["<coach>"]
["<name>Player10</name>"]
["<number>1739</number>"]
["<team>Lizardmen</team>"]
["</coach>"]
["<coach>"]
["<name>Player11</name>"]
["<number>19602</number>"]
["<team>Slann</team>"]
["</coach>"]
["<coach>"]
["<name>Player12</name>"]
["<number>15064</number>"]
["<team>Wood Elves</team>"]
["</coach>"]
["<coach>"]
["<name>Player13</name>"]
["<number>6092</number>"]
["<team>Amazons</team>"]
["</coach>"]
["<coach>"]
["<name>Player14</name>"]
["<number>9080</number>"]
["<team>Dwarves</team>"]
["</coach>"]
["<coach>"]
["<name>Player15</name>"]
["<number>7960</number>"]
["<team>Undead</team>"]
["</coach>"]
["<coach>"]
["<name>Player16</name>"]
["<number>15062</number>"]
["<team>Goblins</team>"]
["</coach>"]
["<coach>"]
["<name>Player17</name>"]
["<number>7106</number>"]
["<team>Wood Elves</team>"]
["</coach>"]
["<coach>"]
["<name>Player18</name>"]
["<number>7371</number>"]
["<team>Khemri</team>"]
["</coach>"]
["</coaches>"]
["<game>"]
["<timestamp>2016-09-18 01:00</timestamp>"]
["<playerRecord>"]
["<name>Player7</name>"]
["<number>9672</number>"]
["<teamRating>100</teamRating>"]
["<touchDowns>12</touchDowns>"]
["<badlyHurt>2</badlyHurt>"]
["</playerRecord>"]
["<playerRecord>"]
["<name>Player9</name>"]
["<number>14129</number>"]
["<teamRating>100</teamRating>"]
["<touchDowns>7</touchDowns>"]
["<badlyHurt>1</badlyHurt>"]
["</playerRecord>"]
["</game>"]
["<game>"]
["<timestamp>2016-09-18 01:00</timestamp>"]
["<playerRecord>"]
["<name>Player6</name>"]
["<number>18136</number>"]
["<teamRating>100</teamRating>"]
["<touchDowns>12</touchDowns>"]
["<badlyHurt>2</badlyHurt>"]
["</playerRecord>"]
["<playerRecord>"]
["<name>Player11</name>"]
["<number>19602</number>"]
["<teamRating>100</teamRating>"]
["<touchDowns>12</touchDowns>"]
["<badlyHurt>2</badlyHurt>"]
["</playerRecord>"]
["</game>"]
["<game>"]
["<timestamp>2016-09-18 01:00</timestamp>"]
["<playerRecord>"]
["<name>Player17</name>"]
["<number>7106</number>"]
["<teamRating>100</teamRating>"]
["<touchDowns>10</touchDowns>"]
["<badlyHurt>2</badlyHurt>"]
["</playerRecord>"]
["<playerRecord>"]
["<name>Player13</name>"]
["<number>6092</number>"]
["<teamRating>100</teamRating>"]
["<touchDowns>8</touchDowns>"]
["<badlyHurt>2</badlyHurt>"]
["</playerRecord>"]
["</game>"]
["<game>"]
["<timestamp>2016-09-18 01:00</timestamp>"]
["<playerRecord>"]
["<name>Player8</name>"]
["<number>4118</number>"]
["<teamRating>100</teamRating>"]
["<touchDowns>3</touchDowns>"]
["<badlyHurt>1</badlyHurt>"]
["</playerRecord>"]
["<playerRecord>"]
["<name>Linus</name>"]
["<number>15676</number>"]
["<teamRating>100</teamRating>"]
["<touchDowns>16</touchDowns>"]
["<badlyHurt>3</badlyHurt>"]
["</playerRecord>"]
["</game>"]
["<game>"]
["<timestamp>2016-09-18 01:00</timestamp>"]
["<playerRecord>"]
["<name>Player14</name>"]
["<number>9080</number>"]
["<teamRating>100</teamRating>"]
["<touchDowns>9</touchDowns>"]
["<badlyHurt>1</badlyHurt>"]
["</playerRecord>"]
["<playerRecord>"]
["<name>Player10</name>"]
["<number>1739</number>"]
["<teamRating>100</teamRating>"]
["<touchDowns>11</touchDowns>"]
["<badlyHurt>2</badlyHurt>"]
["</playerRecord>"]
["</game>"]
["<game>"]
["<timestamp>2016-09-18 01:00</timestamp>"]
["<playerRecord>"]
["<name>Mike</name>"]
["<number>10468</number>"]
["<teamRating>100</teamRating>"]
["<touchDowns>4</touchDowns>"]
["<badlyHurt>0</badlyHurt>"]
["</playerRecord>"]
["<playerRecord>"]
["<name>Player5</name>"]
["<number>12789</number>"]
["<teamRating>100</teamRating>"]
["<touchDowns>17</touchDowns>"]
["<badlyHurt>2</badlyHurt>"]
["</playerRecord>"]
["</game>"]
["<game>"]
["<timestamp>2016-09-18 01:00</timestamp>"]
["<playerRecord>"]
["<name>Player15</name>"]
["<number>7960</number>"]
["<teamRating>100</teamRating>"]
["<touchDowns>7</touchDowns>"]
["<badlyHurt>0</badlyHurt>"]
["</playerRecord>"]
["<playerRecord>"]
["<name>Player16</name>"]
["<number>15062</number>"]
["<teamRating>100</teamRating>"]
["<touchDowns>8</touchDowns>"]
["<badlyHurt>0</badlyHurt>"]
["</playerRecord>"]
["</game>"]
["<game>"]
["<timestamp>2016-09-18 01:00</timestamp>"]
["<playerRecord>"]
["<name>Player18</name>"]
["<number>7371</number>"]
["<teamRating>100</teamRating>"]
["<touchDowns>14</touchDowns>"]
["<badlyHurt>2</badlyHurt>"]
["</playerRecord>"]
["<playerRecord>"]
["<name>Player12</name>"]
["<number>15064</number>"]
["<teamRating>100</teamRating>"]
["<touchDowns>6</touchDowns>"]
["<badlyHurt>0</badlyHurt>"]
["</playerRecord>"]
["</game>"]
["<game>"]
["<timestamp>2016-09-18 01:00</timestamp>"]
["<playerRecord>"]
["<name>Alex</name>"]
["<number>16761</number>"]
["<teamRating>100</teamRating>"]
["<touchDowns>11</touchDowns>"]
["<badlyHurt>3</badlyHurt>"]
["</playerRecord>"]
["<playerRecord>"]
["<name>Player4</name>"]
["<number>9106</number>"]
["<teamRating>100</teamRating>"]
["<touchDowns>7</touchDowns>"]
["<badlyHurt>2</badlyHurt>"]
["</playerRecord>"]
["</game>"]
["<game>"]
["<timestamp>2016-09-18 02:00</timestamp>"]
["<playerRecord>"]
["<name>Player5</name>"]
["<number>12789</number>"]
["<teamRating>100</teamRating>"]
["<touchDowns>13</touchDowns>"]
["<badlyHurt>1</badlyHurt>"]
["</playerRecord>"]
["<playerRecord>"]
["<name>Linus</name>"]
["<number>15676</number>"]
["<teamRating>100</teamRating>"]
["<touchDowns>3</touchDowns>"]
["<badlyHurt>0</badlyHurt>"]
["</playerRecord>"]
["</game>"]
["<game>"]
["<timestamp>2016-09-18 02:00</timestamp>"]
["<playerRecord>"]
["<name>Player18</name>"]
["<number>7371</number>"]
["<teamRating>100</teamRating>"]
["<touchDowns>11</touchDowns>"]
["<badlyHurt>3</badlyHurt>"]
["</playerRecord>"]
["<playerRecord>"]
["<name>Player7</name>"]
["<number>9672</number>"]
["<teamRating>100</teamRating>"]
["<touchDowns>6</touchDowns>"]
["<badlyHurt>2</badlyHurt>"]
["</playerRecord>"]
["</game>"]
["<game>"]
["<timestamp>2016-09-18 02:00</timestamp>"]
["<playerRecord>"]
["<name>Player6</name>"]
["<number>18136</number>"]
["<teamRating>100</teamRating>"]
["<touchDowns>10</touchDowns>"]
["<badlyHurt>2</badlyHurt>"]
["</playerRecord>"]
["<playerRecord>"]
["<name>Player10</name>"]
["<number>1739</number>"]
["<teamRating>100</teamRating>"]
["<touchDowns>5</touchDowns>"]
["<badlyHurt>1</badlyHurt>"]
["</playerRecord>"]
["</game>"]
["<game>"]
["<timestamp>2016-09-18 02:00</timestamp>"]
["<playerRecord>"]
["<name>Player11</name>"]
["<number>19602</number>"]
["<teamRating>100</teamRating>"]
["<touchDowns>9</touchDowns>"]
["<badlyHurt>1</badlyHurt>"]
["</playerRecord>"]
["<playerRecord>"]
["<name>Alex</name>"]
["<number>16761</number>"]
["<teamRating>100</teamRating>"]
["<touchDowns>16</touchDowns>"]
["<badlyHurt>3</badlyHurt>"]
["</playerRecord>"]
["</game>"]
["<game>"]
["<timestamp>2016-09-18 02:00</timestamp>"]
["<playerRecord>"]
["<name>Player17</name>"]
["<number>7106</number>"]
["<teamRating>100</teamRating>"]
["<touchDowns>15</touchDowns>"]
["<badlyHurt>2</badlyHurt>"]
["</playerRecord>"]
["<playerRecord>"]
["<name>Player14</name>"]
["<number>9080</number>"]
["<teamRating>100</teamRating>"]
["<touchDowns>4</touchDowns>"]
["<badlyHurt>1</badlyHurt>"]
["</playerRecord>"]
["</game>"]
["<game>"]
["<timestamp>2016-09-18 02:00</timestamp>"]
["<playerRecord>"]
["<name>Player13</name>"]
["<number>6092</number>"]
["<teamRating>100</teamRating>"]
["<touchDowns>10</touchDowns>"]
["<badlyHurt>1</badlyHurt>"]
["</playerRecord>"]
["<playerRecord>"]
["<name>Player16</name>"]
["<number>15062</number>"]
["<teamRating>100</teamRating>"]
["<touchDowns>9</touchDowns>"]
["<badlyHurt>1</badlyHurt>"]
["</playerRecord>"]
["</game>"]
["<game>"]
["<timestamp>2016-09-18 02:00</timestamp>"]
["<playerRecord>"]
["<name>Player15</name>"]
["<number>7960</number>"]
["<teamRating>100</teamRating>"]
["<touchDowns>16</touchDowns>"]
["<badlyHurt>2</badlyHurt>"]
["</playerRecord>"]
["<playerRecord>"]
["<name>Player9</name>"]
["<number>14129</number>"]
["<teamRating>100</teamRating>"]
["<touchDowns>7</touchDowns>"]
["<badlyHurt>1</badlyHurt>"]
["</playerRecord>"]
["</game>"]
["<game>"]
["<timestamp>2016-09-18 02:00</timestamp>"]
["<playerRecord>"]
["<name>Player4</name>"]
["<number>9106</number>"]
["<teamRating>100</teamRating>"]
["<touchDowns>10</touchDowns>"]
["<badlyHurt>1</badlyHurt>"]
["</playerRecord>"]
["<playerRecord>"]
["<name>Player12</name>"]
["<number>15064</number>"]
["<teamRating>100</teamRating>"]
["<touchDowns>10</touchDowns>"]
["<badlyHurt>1</badlyHurt>"]
["</playerRecord>"]
["</game>"]
["<game>"]
["<timestamp>2016-09-18 02:00</timestamp>"]
["<playerRecord>"]
["<name>Mike</name>"]
["<number>10468</number>"]
["<teamRating>100</teamRating>"]
["<touchDowns>7</touchDowns>"]
["<badlyHurt>1</badlyHurt>"]
["</playerRecord>"]
["<playerRecord>"]
["<name>Player8</name>"]
["<number>4118</number>"]
["<teamRating>100</teamRating>"]
["<touchDowns>13</touchDowns>"]
["<badlyHurt>2</badlyHurt>"]
["</playerRecord>"]
["</game>"]
["<game>"]
["<timestamp>2016-09-18 03:00</timestamp>"]
["<playerRecord>"]
["<name>Player5</name>"]
["<number>12789</number>"]
["<teamRating>100</teamRating>"]
["<touchDowns>7</touchDowns>"]
["<badlyHurt>1</badlyHurt>"]
["</playerRecord>"]
["<playerRecord>"]
["<name>Alex</name>"]
["<number>16761</number>"]
["<teamRating>100</teamRating>"]
["<touchDowns>12</touchDowns>"]
["<badlyHurt>1</badlyHurt>"]
["</playerRecord>"]
["</game>"]
["<game>"]
["<timestamp>2016-09-18 03:00</timestamp>"]
["<playerRecord>"]
["<name>Player18</name>"]
["<number>7371</number>"]
["<teamRating>100</teamRating>"]
["<touchDowns>9</touchDowns>"]
["<badlyHurt>1</badlyHurt>"]
["</playerRecord>"]
["<playerRecord>"]
["<name>Player17</name>"]
["<number>7106</number>"]
["<teamRating>100</teamRating>"]
["<touchDowns>11</touchDowns>"]
["<badlyHurt>1</badlyHurt>"]
["</playerRecord>"]
["</game>"]
["<game>"]
["<timestamp>2016-09-18 03:00</timestamp>"]
["<playerRecord>"]
["<name>Player15</name>"]
["<number>7960</number>"]
["<teamRating>100</teamRating>"]
["<touchDowns>5</touchDowns>"]
["<badlyHurt>1</badlyHurt>"]
["</playerRecord>"]
["<playerRecord>"]
["<name>Player6</name>"]
["<number>18136</number>"]
["<teamRating>100</teamRating>"]
["<touchDowns>14</touchDowns>"]
["<badlyHurt>3</badlyHurt>"]
["</playerRecord>"]
["</game>"]
["<game>"]
["<timestamp>2016-09-18 03:00</timestamp>"]
["<playerRecord>"]
["<name>Player11</name>"]
["<number>19602</number>"]
["<teamRating>100</teamRating>"]
["<touchDowns>4</touchDowns>"]
["<badlyHurt>0</badlyHurt>"]
["</playerRecord>"]
["<playerRecord>"]
["<name>Linus</name>"]
["<number>15676</number>"]
["<teamRating>100</teamRating>"]
["<touchDowns>12</touchDowns>"]
["<badlyHurt>1</badlyHurt>"]
["</playerRecord>"]
["</game>"]
["<game>"]
["<timestamp>2016-09-18 03:00</timestamp>"]
["<playerRecord>"]
["<name>Player7</name>"]
["<number>9672</number>"]
["<teamRating>100</teamRating>"]
["<touchDowns>11</touchDowns>"]
["<badlyHurt>2</badlyHurt>"]
["</playerRecord>"]
["<playerRecord>"]
["<name>Player13</name>"]
["<number>6092</number>"]
["<teamRating>100</teamRating>"]
["<touchDowns>11</touchDowns>"]
["<badlyHurt>2</badlyHurt>"]
["</playerRecord>"]
["</game>"]
["<game>"]
["<timestamp>2016-09-18 03:00</timestamp>"]
["<playerRecord>"]
["<name>Player16</name>"]
["<number>15062</number>"]
["<teamRating>100</teamRating>"]
["<touchDowns>7</touchDowns>"]
["<badlyHurt>0</badlyHurt>"]
["</playerRecord>"]
["<playerRecord>"]
["<name>Player4</name>"]
["<number>9106</number>"]
["<teamRating>100</teamRating>"]
["<touchDowns>11</touchDowns>"]
["<badlyHurt>1</badlyHurt>"]
["</playerRecord>"]
["</game>"]
["<game>"]
["<timestamp>2016-09-18 03:00</timestamp>"]
["<playerRecord>"]
["<name>Player10</name>"]
["<number>1739</number>"]
["<teamRating>100</teamRating>"]
["<touchDowns>14</touchDowns>"]
["<badlyHurt>2</badlyHurt>"]
["</playerRecord>"]
["<playerRecord>"]
["<name>Player8</name>"]
["<number>4118</number>"]
["<teamRating>100</teamRating>"]
["<touchDowns>4</touchDowns>"]
["<badlyHurt>1</badlyHurt>"]
["</playerRecord>"]
["</game>"]
["<game>"]
["<timestamp>2016-09-18 03:00</timestamp>"]
["<playerRecord>"]
["<name>Player12</name>"]
["<number>15064</number>"]
["<teamRating>100</teamRating>"]
["<touchDowns>5</touchDowns>"]
["<badlyHurt>0</badlyHurt>"]
["</playerRecord>"]
["<playerRecord>"]
["<name>Player9</name>"]
["<number>14129</number>"]
["<teamRating>100</teamRating>"]
["<touchDowns>13</touchDowns>"]
["<badlyHurt>1</badlyHurt>"]
["</playerRecord>"]
["</game>"]
["<game>"]
["<timestamp>2016-09-18 03:00</timestamp>"]
["<playerRecord>"]
["<name>Player14</name>"]
["<number>9080</number>"]
["<teamRating>100</teamRating>"]
["<touchDowns>10</touchDowns>"]
["<badlyHurt>1</badlyHurt>"]
["</playerRecord>"]
["<playerRecord>"]
["<name>Mike</name>"]
["<number>10468</number>"]
["<teamRating>100</teamRating>"]
["<touchDowns>9</touchDowns>"]
["<badlyHurt>1</badlyHurt>"]
["</playerRecord>"]
["</game>"]
["<game>"]
["<timestamp>2016-09-18 04:00</timestamp>"]
["<playerRecord>"]
["<name>Alex</name>"]
["<number>16761</number>"]
["<teamRating>100</teamRating>"]
["<touchDowns>9</touchDowns>"]
["<badlyHurt>2</badlyHurt>"]
["</playerRecord>"]
["<playerRecord>"]
["<name>Player6</name>"]
["<number>18136</number>"]
["<teamRating>100</teamRating>"]
["<touchDowns>12</touchDowns>"]
["<badlyHurt>3</badlyHurt>"]
["</playerRecord>"]
["</game>"]
["<game>"]
["<timestamp>2016-09-18 04:00</timestamp>"]
["<playerRecord>"]
["<name>Player5</name>"]
["<number>12789</number>"]
["<teamRating>100</teamRating>"]
["<touchDowns>12</touchDowns>"]
["<badlyHurt>1</badlyHurt>"]
["</playerRecord>"]
["<playerRecord>"]
["<name>Player17</name>"]
["<number>7106</number>"]
["<teamRating>100</teamRating>"]
["<touchDowns>4</touchDowns>"]
["<badlyHurt>0</badlyHurt>"]
["</playerRecord>"]
["</game>"]
["<game>"]
["<timestamp>2016-09-18 04:00</timestamp>"]
["<playerRecord>"]
["<name>Player18</name>"]
["<number>7371</number>"]
["<teamRating>100</teamRating>"]
["<touchDowns>16</touchDowns>"]
["<badlyHurt>2</badlyHurt>"]
["</playerRecord>"]
["<playerRecord>"]
["<name>Linus</name>"]
["<number>15676</number>"]
["<teamRating>100</teamRating>"]
["<touchDowns>8</touchDowns>"]
["<badlyHurt>1</badlyHurt>"]
["</playerRecord>"]
["</game>"]
["<game>"]
["<timestamp>2016-09-18 04:00</timestamp>"]
["<playerRecord>"]
["<name>Player10</name>"]
["<number>1739</number>"]
["<teamRating>100</teamRating>"]
["<touchDowns>5</touchDowns>"]
["<badlyHurt>0</badlyHurt>"]
["</playerRecord>"]
["<playerRecord>"]
["<name>Player13</name>"]
["<number>6092</number>"]
["<teamRating>100</teamRating>"]
["<touchDowns>15</touchDowns>"]
["<badlyHurt>3</badlyHurt>"]
["</playerRecord>"]
["</game>"]
["<game>"]
["<timestamp>2016-09-18 04:00</timestamp>"]
["<playerRecord>"]
["<name>Player7</name>"]
["<number>9672</number>"]
["<teamRating>100</teamRating>"]
["<touchDowns>11</touchDowns>"]
["<badlyHurt>2</badlyHurt>"]
["</playerRecord>"]
["<playerRecord>"]
["<name>Player4</name>"]
["<number>9106</number>"]
["<teamRating>100</teamRating>"]
["<touchDowns>7</touchDowns>"]
["<badlyHurt>1</badlyHurt>"]
["</playerRecord>"]
["</game>"]
["<game>"]
["<timestamp>2016-09-18 04:00</timestamp>"]
["<playerRecord>"]
["<name>Player15</name>"]
["<number>7960</number>"]
["<teamRating>100</teamRating>"]
["<touchDowns>16</touchDowns>"]
["<badlyHurt>3</badlyHurt>"]
["</playerRecord>"]
["<playerRecord>"]
["<name>Player11</name>"]
["<number>19602</number>"]
["<teamRating>100</teamRating>"]
["<touchDowns>8</touchDowns>"]
["<badlyHurt>1</badlyHurt>"]
["</playerRecord>"]
["</game>"]
["<game>"]
["<timestamp>2016-09-18 04:00</timestamp>"]
["<playerRecord>"]
["<name>Player9</name>"]
["<number>14129</number>"]
["<teamRating>100</teamRating>"]
["<touchDowns>13</touchDowns>"]
["<badlyHurt>2</badlyHurt>"]
["</playerRecord>"]
["<playerRecord>"]
["<name>Player16</name>"]
["<number>15062</number>"]
["<teamRating>100</teamRating>"]
["<touchDowns>9</touchDowns>"]
["<badlyHurt>1</badlyHurt>"]
["</playerRecord>"]
["</game>"]
["<game>"]
["<timestamp>2016-09-18 04:00</timestamp>"]
["<playerRecord>"]
["<name>Player14</name>"]
["<number>9080</number>"]
["<teamRating>100</teamRating>"]
["<touchDowns>17</touchDowns>"]
["<badlyHurt>3</badlyHurt>"]
["</playerRecord>"]
["<playerRecord>"]
["<name>Player8</name>"]
["<number>4118</number>"]
["<teamRating>100</teamRating>"]
["<touchDowns>6</touchDowns>"]
["<badlyHurt>1</badlyHurt>"]
["</playerRecord>"]
["</game>"]
["<game>"]
["<timestamp>2016-09-18 04:00</timestamp>"]
["<playerRecord>"]
["<name>Mike</name>"]
["<number>10468</number>"]
["<teamRating>100</teamRating>"]
["<touchDowns>5</touchDowns>"]
["<badlyHurt>1</badlyHurt>"]
["</playerRecord>"]
["<playerRecord>"]
["<name>Player12</name>"]
["<number>15064</number>"]
["<teamRating>100</teamRating>"]
["<touchDowns>12</touchDowns>"]
["<badlyHurt>2</badlyHurt>"]
["</playerRecord>"]
["</game>"]
["<game>"]
["<timestamp>2016-09-18 05:00</timestamp>"]
["<playerRecord>"]
["<name>Player18</name>"]
["<number>7371</number>"]
["<teamRating>100</teamRating>"]
["<touchDowns>6</touchDowns>"]
["<badlyHurt>1</badlyHurt>"]
["</playerRecord>"]
["<playerRecord>"]
["<name>Player5</name>"]
["<number>12789</number>"]
["<teamRating>100</teamRating>"]
["<touchDowns>13</touchDowns>"]
["<badlyHurt>2</badlyHurt>"]
["</playerRecord>"]
["</game>"]
["<game>"]
["<timestamp>2016-09-18 05:00</timestamp>"]
["<playerRecord>"]
["<name>Player6</name>"]
["<number>18136</number>"]
["<teamRating>100</teamRating>"]
["<touchDowns>20</touchDowns>"]
["<badlyHurt>3</badlyHurt>"]
["</playerRecord>"]
["<playerRecord>"]
["<name>Player13</name>"]
["<number>6092</number>"]
["<teamRating>100</teamRating>"]
["<touchDowns>7</touchDowns>"]
["<badlyHurt>0</badlyHurt>"]
["</playerRecord>"]
["</game>"]
["<game>"]
["<timestamp>2016-09-18 05:00</timestamp>"]
["<playerRecord>"]
["<name>Alex</name>"]
["<number>16761</number>"]
["<teamRating>100</teamRating>"]
["<touchDowns>16</touchDowns>"]
["<badlyHurt>3</badlyHurt>"]
["</playerRecord>"]
["<playerRecord>"]
["<name>Player15</name>"]
["<number>7960</number>"]
["<teamRating>100</teamRating>"]
["<touchDowns>6</touchDowns>"]
["<badlyHurt>0</badlyHurt>"]
["</playerRecord>"]
["</game>"]
["<game>"]
["<timestamp>2016-09-18 05:00</timestamp>"]
["<playerRecord>"]
["<name>Player7</name>"]
["<number>9672</number>"]
["<teamRating>100</teamRating>"]
["<touchDowns>8</touchDowns>"]
["<badlyHurt>1</badlyHurt>"]
["</playerRecord>"]
["<playerRecord>"]
["<name>Player17</name>"]
["<number>7106</number>"]
["<teamRating>100</teamRating>"]
["<touchDowns>11</touchDowns>"]
["<badlyHurt>2</badlyHurt>"]
["</playerRecord>"]
["</game>"]
["<game>"]
["<timestamp>2016-09-18 05:00</timestamp>"]
["<playerRecord>"]
["<name>Player14</name>"]
["<number>9080</number>"]
["<teamRating>100</teamRating>"]
["<touchDowns>9</touchDowns>"]
["<badlyHurt>1</badlyHurt>"]
["</playerRecord>"]
["<playerRecord>"]
["<name>Player9</name>"]
["<number>14129</number>"]
["<teamRating>100</teamRating>"]
["<touchDowns>17</touchDowns>"]
["<badlyHurt>3</badlyHurt>"]
["</playerRecord>"]
["</game>"]
["<game>"]
["<timestamp>2016-09-18 05:00</timestamp>"]
["<playerRecord>"]
["<name>Linus</name>"]
["<number>15676</number>"]
["<teamRating>100</teamRating>"]
["<touchDowns>9</touchDowns>"]
["<badlyHurt>1</badlyHurt>"]
["</playerRecord>"]
["<playerRecord>"]
["<name>Player4</name>"]
["<number>9106</number>"]
["<teamRating>100</teamRating>"]
["<touchDowns>7</touchDowns>"]
["<badlyHurt>1</badlyHurt>"]
["</playerRecord>"]
["</game>"]
["<game>"]
["<timestamp>2016-09-18 05:00</timestamp>"]
["<playerRecord>"]
["<name>Player10</name>"]
["<number>1739</number>"]
["<teamRating>100</teamRating>"]
["<touchDowns>12</touchDowns>"]
["<badlyHurt>2</badlyHurt>"]
["</playerRecord>"]
["<playerRecord>"]
["<name>Player12</name>"]
["<number>15064</number>"]
["<teamRating>100</teamRating>"]
["<touchDowns>6</touchDowns>"]
["<badlyHurt>1</badlyHurt>"]
["</playerRecord>"]
["</game>"]
["<game>"]
["<timestamp>2016-09-18 05:00</timestamp>"]
["<playerRecord>"]
["<name>Player16</name>"]
["<number>15062</number>"]
["<teamRating>100</teamRating>"]
["<touchDowns>11</touchDowns>"]
["<badlyHurt>3</badlyHurt>"]
["</playerRecord>"]
["<playerRecord>"]
["<name>Player8</name>"]
["<number>4118</number>"]
["<teamRating>100</teamRating>"]
["<touchDowns>4</touchDowns>"]
["<badlyHurt>2</badlyHurt>"]
["</playerRecord>"]
["</game>"]
["<game>"]
["<timestamp>2016-09-18 05:00</timestamp>"]
["<playerRecord>"]
["<name>Mike</name>"]
["<number>10468</number>"]
["<teamRating>100</teamRating>"]
["<touchDowns>9</touchDowns>"]
["<badlyHurt>3</badlyHurt>"]
["</playerRecord>"]
["<playerRecord>"]
["<name>Player11</name>"]
["<number>19602</number>"]
["<teamRating>100</teamRating>"]
["<touchDowns>12</touchDowns>"]
["<badlyHurt>3</badlyHurt>"]
["</playerRecord>"]
["</game>"]
["</nafReport>"]